Workbook

Sheet Instruction Sheet
H4: ORDER ENTRY FORM INSTRUCTIONS
A7: NOTE: This is a template form, so please save a copy that can be reused. Please do not reuse the template for multiple orders.
A9: Order Entry Instructions
A11: Before you can enter data, please click the box under the Tool Bar titled "Enabled Editing" and/or "Enable Content".
A15: Order Information / Billing / Shipping / Payment
A16: Please enter all applicable information.
A19: Drop Down Boxes | C19: (Very Important)
A21: Any cell that has a drop down arrow must be double clicked in the center of the cell.
A23: Do not click the arrow, othwerwise the display will be very small.
A42: Price Level
A43: Price Levels only apply to etched or color printed logos. All other customization methods are priced based on quantity per order.
A44: Please refer to the "Price Sheet" tab for a complete breakdown of our pricing incentives for bulk quantities.
A45: Lock in your pricing for all future orders. We grandfather all prior purchases when computing your current volume discount on each successive order.
A47: Example: You place an order for your Annual Invitational Golf Tournament - 200 belts. This quantity puts you into price level 4.
B48: Your next order, no matter the quantity of that next order, will start at Price Level 4. Depending on the number of items purchased
B49: that order may elevate the Price Level again.
A51: Please remember to enter your price level before choosing your product, the price level will default to Price Level 1 if left blank. | O51: Price Level
A52: The Price Level selection can be found in the top left section of the form, just below the "Payment Information" section. | O52: 4
A54: Building Your Package
A55: Step 1 | B55: Choose Either Complete Packages, Buckles Only, Separate Straps, or Custom Hampton Ribbon Belt
B56: Complete Packages Include Buckle and Strap | G56: *To order separate straps, under "Customization" - choose "Strap Only", then select your strap and QTY.
A58: Step 2 | B58: Identify Logo To Be Used
B59: Enter the description of which logo will be used (best if logo file name matches description)
A60: Step 3 | B60: Choose Your Customization Method
B61: Etched - Laser Etched Logo | J61: Embossed - Raised Logo - MOQ 100 pieces per order.
B62: Color Print - Full Color Logo | J62: Debossed - Stamped / Impressed Logo - MOQ 100 pieces per order.
A64: Step 4 | B64: Choose Your Buckle
B65: We have a variety of finishes and styles to choose from, buckle styles below - see order form for finish options:
B66: Go-In! Buckles with Hidden Ball Marker* | F66: Fast Eddie Buckles with Hidden Ball Marker and Divot Tool / Bottle Opener* | K66: Classic Buckles perfect for Dress or Golf
A73: Step 5 | B73: Choose Where To Place Your Logo
B74: You have the option of a Full Size logo in the center of the buckle, or a lower corner (right) with a reduced size logo for a subtle touch.
A75: Step 6 | B75: Choose Your Strap
B76: We have 10 different standard straps to choose from. Or you can choose from over 20 additional limited stock straps* (please call first for availability)
B78: Important Notice: A qty of 30+ pcs of any one strap requires call ahead confirmation
A79: Step 7 | B79: Choose Your Presentation Box
B80: Finish your custom belts off with unique packaging options:
B81: Polycarbonate Box (Standard) | F81: Polycarbonate Box with Custom Logo Insert* | K81: Satin Black Box with Custom Logo*
F86: Wood Piano Box with Custom Logo*
A92: Step 8 | B92: Customize Your Golf Accessories
B93: If you choose a buckle that includes a ball marker or divot tool/bottle opener, you can customize it as well!
B94: Either Etch or Color Print your logo for a lasting impression.
B97: * Additional charges apply for certain selections

Sheet Price Sheet
B7: Customization Selection and Price Sheet
B9: Please follow the step-by-step listing below to explore your customization options
B11: Customization Methods
B13: Etched / Color Printed | F13: Lead Time 3 weeks
D15: GOLF | G15: FAST EDDIE | J15: CLASSIC
B16: QTY | C16: Price Level | D16: Per Pkg | E16: MSRP | G16: Per Pkg | H16: MSRP | J16: Per Pkg | K16: MSRP
B17: 1-23 | C17: 1 | D17: $42.00 | E17: =D17*2 -> $84.00 | G17: =D17+2.5 -> $44.50 | H17: =G17*2 -> $89.00 | J17: $38.00 | K17: =J17*2 -> $76.00
B18: 24-99 | C18: 2 | D18: $39.00 | E18: $78.00 | G18: $41.50 | H18: $83.00 | J18: $36.00 | K18: $72.00
B19: 100-199 | C19: 3 | D19: $35.00 | E19: $70.00 | G19: $37.50 | H19: $75.00 | J19: $33.00 | K19: $66.00
B20: 200-249 | C20: 4 | D20: $32.00 | E20: $64.00 | G20: $34.50 | H20: $69.00 | J20: $31.00 | K20: $62.00
B21: 250-349 | C21: 5 | D21: $30.00 | E21: $60.00 | G21: $32.50 | H21: $65.00 | J21: $29.00 | K21: $58.00
B22: 350 + | C22: 6 | D22: $29.00 | E22: $58.00 | G22: $31.50 | H22: $63.00 | J22: $28.00 | K22: $56.00
B24: Embossed / Debossed | F24: Lead Time 6-8 Weeks Plate Option 12 Weeks Full Buckle
D26: GOLF | G26: FAST EDDIE | J26: CLASSIC
B27: QTY | D27: Per Pkg | E27: MSRP | G27: Per Pkg | H27: MSRP | J27: Per Pkg | K27: MSRP
B28: 50-199 | D28: $51.00 | E28: =D28*2 -> $102.00 | G28: $53.50 | H28: $107.00 | J28: $49.00 | K28: $98.00
B29: 200-249 | D29: $47.00 | E29: =D29*2 -> $94.00 | G29: $49.50 | H29: $99.00 | J29: $45.00 | K29: $90.00
B30: 250-349 | D30: $42.00 | E30: $84.00 | G30: $44.50 | H30: $89.00 | J30: $40.00 | K30: $80.00
B31: 350+ | D31: $40.00 | E31: $80.00 | G31: $42.50 | H31: $85.00 | J31: $38.00 | K31: $76.00
B33: Buckles Only
G35: Etched / Color Printed
D36: GOLF | G36: FAST EDDIE | J36: CLASSIC
B37: QTY | C37: Price Level | D37: Per Pkg | E37: MSRP | G37: Per Pkg | H37: MSRP | J37: Per Pkg | K37: MSRP
B38: 1-23 | C38: 1 | D38: $22.00 | E38: $44.00 | G38: $24.50 | H38: $45.00 | J38: $18.00 | K38: $36.00
B39: 24-99 | C39: 2 | D39: $20.00 | E39: $40.00 | G39: $22.50 | H39: $45.00 | J39: $17.00 | K39: $34.00
B40: 100-199 | C40: 3 | D40: $18.00 | E40: $36.00 | G40: $20.50 | H40: $41.00 | J40: $16.00 | K40: $32.00
B41: 200-249 | C41: 4 | D41: $16.00 | E41: $32.00 | G41: $18.50 | H41: $37.00 | J41: $15.00 | K41: $30.00
B42: 250-349 | C42: 5 | D42: $14.00 | E42: $28.00 | G42: $16.50 | H42: $33.00 | J42: $13.00 | K42: $26.00
B43: 350 + | C43: 6 | D43: $12.00 | E43: $24.00 | G43: $14.50 | H43: $29.00 | J43: $11.00 | K43: $22.00
G45: Embossed / Debossed
D47: GOLF | G47: FAST EDDIE | J47: CLASSIC
B48: QTY | D48: Per Pkg | E48: MSRP | G48: Per Pkg | H48: MSRP | J48: Per Pkg | K48: MSRP
B49: 50-199 | D49: $31.00 | E49: $62.00 | G49: $33.50 | H49: $67.00 | J49: $29.00 | K49: $58.00
B50: 200-249 | D50: $27.00 | E50: $54.00 | G50: $29.50 | H50: $59.00 | J50: $25.00 | K50: $50.00
B51: 250-349 | D51: $22.00 | E51: $44.00 | G51: $24.50 | H51: $49.00 | J51: $20.00 | K51: $40.00
B52: 350+ | D52: $20.00 | E52: $40.00 | G52: $22.50 | H52: $45.00 | J52: $18.00 | K52: $36.00
B54: Ribbon Belt w/ Aldrich Buckle | F54: Lead Time 8-10 weeks / MOQ 50
C56: Hampton Ribbon Belt w/ Aldrich Buckle
B57: QTY | D57: Per Pkg | E57: MSRP
B58: 50-99 | D58: $35.00 | E58: $70.00
B59: 100-199 | D59: $30.00 | E59: =D59*2 -> $60.00
B60: 200-299 | D60: $28.00 | E60: =D60*2 -> $56.00
B61: 300-399 | D61: $26.00 | E61: $52.00
B62: 400-499 | D62: $24.00 | E62: $48.00
B66: Buckles
B68: Golf | F68: Includes Regular Nexbelt Ball Marker (custom ball marker add $3.00)
B70: (BGG5406) Go-In! Gunmetal Beveled | G70: (BGG5383) Go-In! Stealth Beveled
B71: (BGG4508) Go-In! Brushed Nickel Beveled | G71: (BGG7462) Go-In! Satin Nickel NEW!
B74: Fast Eddie | F74: Includes Ball Marker, Divot Tool and Bottle Opener (custom ball marker add $3, custom divot tool add $3)
B76: (BGF4591) Fast Eddie Matte Nickel Beveled
B78: Classic
B80: (BCE5413) Classic Gunmetal Beveled | G80: (BCE5963) Eagle White (Color Print Only)
B81: (BCE4485) Classic Brushed Nickel Beveled | G81: (BCE5956) Eagle Black (Color Print Only)
B82: (BCE5390) Classic Stealth Beveled
B83: (BCE5949) Classic Aston Black
B84: (BCE5970) Classic Aston Pewter
B87: Straps
B89: Important Notice: A qty of 30+ pcs of any one strap requires call ahead confirmation
B91: Standard
B93: (SEL0869) Smooth Black | F93: (SEL0906) Smooth White | K93: (SBC7745) Braided Charcoal 2.0 NEW!
B94: (SEL0760) Carbon Black | F94: (SCL3617) Deep Sea Navy Pebble Grain
B95: (SEL4683) Espresso | F95: (SCL3723) Smoke Grey Pebble Grain
B96: (SEL0753) Walnut Brown | F96: (SCL1422) Storm Grey Pebble Grain
B98: Upgraded Strap (add $15.00 per belt)
B100: (SAL0913) Alligator Black
B101: (SAL3747) Alligator Coffee
B103: Canvas Strap (subtract $5.00 per belt)
B105: (SNC1385) Newport Navy
B106: (SNC1354) Newport Black | F106: (SNC1361) Newport Grey
B109: Presentation Boxes
B111: Description | J111: Per Pkg | K111: MAP
B112: Poly-Carbonate Box | J112: Included | K112: Included
B113: Tournament Packaging | J113: $1.00 | K113: $2.00
B114: Tournament Packaging w/ Logo | J114: $1.00 | K114: $2.00
B115: Velvet Bag | J115: $1.00 | K115: $2.00
B116: Poly-Carbonate Box with Custom Logo Insert | J116: $2.00 | K116: $4.00
B117: Satin Black Jewel Box with Custom Logo on Top of the Box | J117: $6.00 | K117: $12.00
B118: Satin Black Jewel Box with Custom Logo on Top and Inside of the Box | J118: $8.00 | K118: $16.00
B119: Piano Black Wooden Box with Custom Logo Inside of the Box | J119: $25.00 | K119: $50.00
B121: Ball Markers (Golf and Fast Eddie buckles)
B123: Description | J123: Per Pkg | K123: MSRP
B124: Standard Ball Marker | J124: Included | K124: Included
B125: Custom Ball Marker with Etched Logo | J125: $3.00 | K125: $6.00
B126: Color Printed Logo Ball Marker | J126: $3.00 | K126: $6.00
B128: Custom Extras
B130: Description | J130: Per Pkg | K130: MSRP
B131: Divit Tool Etching | J131: $3.00 | K131: $6.00
B134: Special Terms
B136: A 50% deposit is required on all custom orders
B138: Any custom order over $5,000.00 may require 50% deposit.
B140: RUSH ORDERS: There is a $150 Rush Fee for etched/color print orders with Ship Dates shorter than our stated lead times.
C141: There is a $250 Rush Fee for custom ribbon belt orders with Ship Dates shorter than our stated lead times.
B142: Workspace For Notes

Sheet Order Form
D1: Custom Order Form
J2: 10390 Regis Court
J3: Rancho Cucamonga, CA 91730
J4: Phone: 909-758-0079 Fax: 866-610-4573
J5: Rev. January 19th, 2021
B7: Order Information
B8: Order Date: | I8: Shipping Window
B9: Customer PO: | I9: From:
B10: Rep Name: | I10: To:
B12: Billing Information
C13: Customer Name: | I13: Member #:
C14: Address:
C15: City: | G15: State: | I15: Zip:
C16: Contact: | G16: Phone:
C17: Email:
B19: Shipping Information
C20: Customer Name: | D20: Same as Billing information above
C21: Address:
C22: City: | G22: State: | I22: Zip:
C23: Contact: | G23: Phone:
C24: Email:
B26: Payment Information
C27: Credit Card: | G27: Card Type:
C28: Name on Card: | G28: Zip:
C29: Exp Date: | G29: CVV:
B30: Price Level | C30: Qty
A31: =IFERROR(VLOOKUP(B31,F94:G99,2,FALSE),1) -> 1 | B31: #1 | C31: =IFERROR(VLOOKUP(B31,ClassicData!AJ:AK,2,FALSE),"") -> 1-23
C32: Order Complete Packages Below:
A33: Logo Description | B33: Customization | C33: Buckle | D33: Logo Placement | E33: Strap | F33: Presentation Box | G33: Ball Mark / Tool | H33: Price Ea. | I33: Qty | J33: Total | K33: Base Charge | L33: Buckle Adjust | M33: Strap Adjust | N33: Box Adjust | O33: CapCharge | P33: BM/Tool Adjust | Q33: Embossed Buckle Adjust | R33: Debossed Buckle Adjust | S33: Color Print Buckle Adjust | T33: Etched Buckle Adjust | U33: Fast Eddie | V33: Go-In! | W33: Classic | X33: Strap Only Adjust
H34: =IF(K34="Less Than MOQ",K34,IF(ISBLANK(B34),X34,SUM(K34:P34,X34))) -> $0.00 | J34: =I34*H34 -> $0.00 | K34: =IFERROR(IF(B34=ClassicBreakdown!$B$7,ClassicBreakdown!$G$5,IF('Order Form'!B34=ClassicBreakdown!$C$7,ClassicBreakdown!$G$5,IF('Order Form'!B34=ClassicBreakdown!$J$8,ClassicBreakdown!$L$7,IF('Order Form'!B34=ClassicBreakdown!$B$33,ClassicBreakdown!$D$32,IF('Order Form'!B34=ClassicBreakdown!$J$31,ClassicBreakdown!$L$30,IF('Order Form'!B34=ClassicBreakdown!$O$8,ClassicBreakdown!$Q$7,0)))))),"MOQ") -> $0.00 | L34: =IF(B34="Etched",T34,IF(B34="Color Print",S34,IF(B34="Embossed",Q34,IF(B34="Debossed",R34,IF(B34="Polished Plate",#REF!,0))))) -> $0.00 | M34: =IF(ISBLANK(E34),0,IF(B34="Strap Only",0,VLOOKUP(E34,ClassicData!$U:$V,2,FALSE))) -> $0.00 | N34: =IF(ISBLANK(F34),0,VLOOKUP(F34,ClassicData!$Y:$Z,2,FALSE)) -> $0.00 | O34: =(IF(ISBLANK(B34),0,IF(LEFT(B34,9)="CustomCap",CapPrice,0))) -> $0.00 | P34: =IF(ISBLANK(G34),0,VLOOKUP(G34,ClassicData!$AB:$AC,2,FALSE)) -> $0.00 | Q34: =IF(U34=1,4.5,IF(V34=1,2,0)) -> $0.00 | R34: =IF(U34=1,4.5,IF(V34=1,2,0)) -> $0.00 | S34: =IF(ISBLANK(C34),0,IF(U34=1,'Go-In! & Fast Eddie Package BD'!$G$32,IF('Order Form'!V34=1,'Go-In! & Fast Eddie Package BD'!$G$4,IF('Order Form'!W34=1,0,0)))) -> $0.00 | T34: =IF(ISBLANK(C34),0,IF(U34=1,'Go-In! & Fast Eddie Package BD'!$G$32,IF('Order Form'!V34=1,'Go-In! & Fast Eddie Package BD'!$G$4,IF('Order Form'!W34=1,0,0)))) -> $0.00 | U34: =IFERROR(IF(SEARCH("Fast Eddie",C34,1),1),0) -> 0 | V34: =IFERROR(IF(SEARCH("Go-In!",C34,1),1),0) -> 0 | W34: =IFERROR(IF(SEARCH("Classic",C34,1),1),0) -> 0 | X34: =(IF(ISBLANK(E34),0,IF(B34="StrapOnly",VLOOKUP(E34,ClassicData!$AF:$AG,2,FALSE)))) -> 0
H35: $0.00 | J35: =I35*H35 -> $0.00 | K35: =IFERROR(IF(B35=ClassicBreakdown!$B$7,ClassicBreakdown!$G$5,IF('Order Form'!B35=ClassicBreakdown!$C$7,ClassicBreakdown!$G$5,IF('Order Form'!B35=ClassicBreakdown!$J$8,ClassicBreakdown!$L$7,IF('Order Form'!B35=ClassicBreakdown!$B$33,ClassicBreakdown!$D$32,IF('Order Form'!B35=ClassicBreakdown!$J$31,ClassicBreakdown!$L$30,IF('Order Form'!B35=ClassicBreakdown!$O$8,ClassicBreakdown!$Q$7,0)))))),"MOQ") -> $0.00 | L35: =IF(B35="Etched",T35,IF(B35="Color Print",S35,IF(B35="Embossed",Q35,IF(B35="Debossed",R35,IF(B35="Polished Plate",#REF!,0))))) -> $0.00 | M35: =IF(ISBLANK(E35),0,IF(B35="Strap Only",0,VLOOKUP(E35,ClassicData!$U:$V,2,FALSE))) -> $0.00 | N35: =IF(ISBLANK(F35),0,VLOOKUP(F35,ClassicData!$Y:$Z,2,FALSE)) -> $0.00 | O35: $0.00 | P35: =IF(ISBLANK(G35),0,VLOOKUP(G35,ClassicData!$AB:$AC,2,FALSE)) -> $0.00 | Q35: =IF(U35=1,4.5,IF(V35=1,2,0)) -> $0.00 | R35: =IF(U35=1,4.5,IF(V35=1,2,0)) -> $0.00 | S35: =IF(ISBLANK(C35),0,IF(U35=1,'Go-In! & Fast Eddie Package BD'!$G$32,IF('Order Form'!V35=1,'Go-In! & Fast Eddie Package BD'!$G$4,IF('Order Form'!W35=1,0,0)))) -> $0.00 | T35: =IF(ISBLANK(C35),0,IF(U35=1,'Go-In! & Fast Eddie Package BD'!$G$32,IF('Order Form'!V35=1,'Go-In! & Fast Eddie Package BD'!$G$4,IF('Order Form'!W35=1,0,0)))) -> $0.00 | U35: 0 | V35: 0 | W35: 0 | X35: =(IF(ISBLANK(E35),0,IF(B35="StrapOnly",VLOOKUP(E35,ClassicData!$AF:$AG,2,FALSE)))) -> 0
H36: $0.00 | J36: $0.00 | K36: =IFERROR(IF(B36=ClassicBreakdown!$B$7,ClassicBreakdown!$G$5,IF('Order Form'!B36=ClassicBreakdown!$C$7,ClassicBreakdown!$G$5,IF('Order Form'!B36=ClassicBreakdown!$J$8,ClassicBreakdown!$L$7,IF('Order Form'!B36=ClassicBreakdown!$B$33,ClassicBreakdown!$D$32,IF('Order Form'!B36=ClassicBreakdown!$J$31,ClassicBreakdown!$L$30,IF('Order Form'!B36=ClassicBreakdown!$O$8,ClassicBreakdown!$Q$7,0)))))),"MOQ") -> $0.00 | L36: =IF(B36="Etched",T36,IF(B36="Color Print",S36,IF(B36="Embossed",Q36,IF(B36="Debossed",R36,IF(B36="Polished Plate",#REF!,0))))) -> $0.00 | M36: =IF(ISBLANK(E36),0,IF(B36="Strap Only",0,VLOOKUP(E36,ClassicData!$U:$V,2,FALSE))) -> $0.00 | N36: =IF(ISBLANK(F36),0,VLOOKUP(F36,ClassicData!$Y:$Z,2,FALSE)) -> $0.00 | O36: $0.00 | P36: =IF(ISBLANK(G36),0,VLOOKUP(G36,ClassicData!$AB:$AC,2,FALSE)) -> $0.00 | Q36: $0.00 | R36: $0.00 | S36: =IF(ISBLANK(C36),0,IF(U36=1,'Go-In! & Fast Eddie Package BD'!$G$32,IF('Order Form'!V36=1,'Go-In! & Fast Eddie Package BD'!$G$4,IF('Order Form'!W36=1,0,0)))) -> $0.00 | T36: =IF(ISBLANK(C36),0,IF(U36=1,'Go-In! & Fast Eddie Package BD'!$G$32,IF('Order Form'!V36=1,'Go-In! & Fast Eddie Package BD'!$G$4,IF('Order Form'!W36=1,0,0)))) -> $0.00 | U36: 0 | V36: 0 | W36: 0 | X36: =(IF(ISBLANK(E36),0,IF(B36="StrapOnly",VLOOKUP(E36,ClassicData!$AF:$AG,2,FALSE)))) -> 0
H37: $0.00 | J37: $0.00 | K37: =IFERROR(IF(B37=ClassicBreakdown!$B$7,ClassicBreakdown!$G$5,IF('Order Form'!B37=ClassicBreakdown!$C$7,ClassicBreakdown!$G$5,IF('Order Form'!B37=ClassicBreakdown!$J$8,ClassicBreakdown!$L$7,IF('Order Form'!B37=ClassicBreakdown!$B$33,ClassicBreakdown!$D$32,IF('Order Form'!B37=ClassicBreakdown!$J$31,ClassicBreakdown!$L$30,IF('Order Form'!B37=ClassicBreakdown!$O$8,ClassicBreakdown!$Q$7,0)))))),"MOQ") -> $0.00 | L37: =IF(B37="Etched",T37,IF(B37="Color Print",S37,IF(B37="Embossed",Q37,IF(B37="Debossed",R37,IF(B37="Polished Plate",#REF!,0))))) -> $0.00 | M37: =IF(ISBLANK(E37),0,IF(B37="Strap Only",0,VLOOKUP(E37,ClassicData!$U:$V,2,FALSE))) -> $0.00 | N37: =IF(ISBLANK(F37),0,VLOOKUP(F37,ClassicData!$Y:$Z,2,FALSE)) -> $0.00 | O37: $0.00 | P37: =IF(ISBLANK(G37),0,VLOOKUP(G37,ClassicData!$AB:$AC,2,FALSE)) -> $0.00 | Q37: $0.00 | R37: $0.00 | S37: =IF(ISBLANK(C37),0,IF(U37=1,'Go-In! & Fast Eddie Package BD'!$G$32,IF('Order Form'!V37=1,'Go-In! & Fast Eddie Package BD'!$G$4,IF('Order Form'!W37=1,0,0)))) -> $0.00 | T37: =IF(ISBLANK(C37),0,IF(U37=1,'Go-In! & Fast Eddie Package BD'!$G$32,IF('Order Form'!V37=1,'Go-In! & Fast Eddie Package BD'!$G$4,IF('Order Form'!W37=1,0,0)))) -> $0.00 | U37: 0 | V37: 0 | W37: 0 | X37: =(IF(ISBLANK(E37),0,IF(B37="StrapOnly",VLOOKUP(E37,ClassicData!$AF:$AG,2,FALSE)))) -> 0
H38: $0.00 | J38: $0.00 | K38: =IFERROR(IF(B38=ClassicBreakdown!$B$7,ClassicBreakdown!$G$5,IF('Order Form'!B38=ClassicBreakdown!$C$7,ClassicBreakdown!$G$5,IF('Order Form'!B38=ClassicBreakdown!$J$8,ClassicBreakdown!$L$7,IF('Order Form'!B38=ClassicBreakdown!$B$33,ClassicBreakdown!$D$32,IF('Order Form'!B38=ClassicBreakdown!$J$31,ClassicBreakdown!$L$30,IF('Order Form'!B38=ClassicBreakdown!$O$8,ClassicBreakdown!$Q$7,0)))))),"MOQ") -> $0.00 | L38: =IF(B38="Etched",T38,IF(B38="Color Print",S38,IF(B38="Embossed",Q38,IF(B38="Debossed",R38,IF(B38="Polished Plate",#REF!,0))))) -> $0.00 | M38: =IF(ISBLANK(E38),0,IF(B38="Strap Only",0,VLOOKUP(E38,ClassicData!$U:$V,2,FALSE))) -> $0.00 | N38: =IF(ISBLANK(F38),0,VLOOKUP(F38,ClassicData!$Y:$Z,2,FALSE)) -> $0.00 | O38: $0.00 | P38: =IF(ISBLANK(G38),0,VLOOKUP(G38,ClassicData!$AB:$AC,2,FALSE)) -> $0.00 | Q38: $0.00 | R38: $0.00 | S38: =IF(ISBLANK(C38),0,IF(U38=1,'Go-In! & Fast Eddie Package BD'!$G$32,IF('Order Form'!V38=1,'Go-In! & Fast Eddie Package BD'!$G$4,IF('Order Form'!W38=1,0,0)))) -> $0.00 | T38: =IF(ISBLANK(C38),0,IF(U38=1,'Go-In! & Fast Eddie Package BD'!$G$32,IF('Order Form'!V38=1,'Go-In! & Fast Eddie Package BD'!$G$4,IF('Order Form'!W38=1,0,0)))) -> $0.00 | U38: 0 | V38: 0 | W38: 0 | X38: =(IF(ISBLANK(E38),0,IF(B38="StrapOnly",VLOOKUP(E38,ClassicData!$AF:$AG,2,FALSE)))) -> 0
H39: $0.00 | J39: $0.00 | K39: =IFERROR(IF(B39=ClassicBreakdown!$B$7,ClassicBreakdown!$G$5,IF('Order Form'!B39=ClassicBreakdown!$C$7,ClassicBreakdown!$G$5,IF('Order Form'!B39=ClassicBreakdown!$J$8,ClassicBreakdown!$L$7,IF('Order Form'!B39=ClassicBreakdown!$B$33,ClassicBreakdown!$D$32,IF('Order Form'!B39=ClassicBreakdown!$J$31,ClassicBreakdown!$L$30,IF('Order Form'!B39=ClassicBreakdown!$O$8,ClassicBreakdown!$Q$7,0)))))),"MOQ") -> $0.00 | L39: =IF(B39="Etched",T39,IF(B39="Color Print",S39,IF(B39="Embossed",Q39,IF(B39="Debossed",R39,IF(B39="Polished Plate",#REF!,0))))) -> $0.00 | M39: =IF(ISBLANK(E39),0,IF(B39="Strap Only",0,VLOOKUP(E39,ClassicData!$U:$V,2,FALSE))) -> $0.00 | N39: =IF(ISBLANK(F39),0,VLOOKUP(F39,ClassicData!$Y:$Z,2,FALSE)) -> $0.00 | O39: $0.00 | P39: =IF(ISBLANK(G39),0,VLOOKUP(G39,ClassicData!$AB:$AC,2,FALSE)) -> $0.00 | Q39: $0.00 | R39: $0.00 | S39: =IF(ISBLANK(C39),0,IF(U39=1,'Go-In! & Fast Eddie Package BD'!$G$32,IF('Order Form'!V39=1,'Go-In! & Fast Eddie Package BD'!$G$4,IF('Order Form'!W39=1,0,0)))) -> $0.00 | T39: =IF(ISBLANK(C39),0,IF(U39=1,'Go-In! & Fast Eddie Package BD'!$G$32,IF('Order Form'!V39=1,'Go-In! & Fast Eddie Package BD'!$G$4,IF('Order Form'!W39=1,0,0)))) -> $0.00 | U39: 0 | V39: 0 | W39: 0 | X39: =(IF(ISBLANK(E39),0,IF(B39="StrapOnly",VLOOKUP(E39,ClassicData!$AF:$AG,2,FALSE)))) -> 0
H40: $0.00 | J40: $0.00 | K40: =IFERROR(IF(B40=ClassicBreakdown!$B$7,ClassicBreakdown!$G$5,IF('Order Form'!B40=ClassicBreakdown!$C$7,ClassicBreakdown!$G$5,IF('Order Form'!B40=ClassicBreakdown!$J$8,ClassicBreakdown!$L$7,IF('Order Form'!B40=ClassicBreakdown!$B$33,ClassicBreakdown!$D$32,IF('Order Form'!B40=ClassicBreakdown!$J$31,ClassicBreakdown!$L$30,IF('Order Form'!B40=ClassicBreakdown!$O$8,ClassicBreakdown!$Q$7,0)))))),"MOQ") -> $0.00 | L40: =IF(B40="Etched",T40,IF(B40="Color Print",S40,IF(B40="Embossed",Q40,IF(B40="Debossed",R40,IF(B40="Polished Plate",#REF!,0))))) -> $0.00 | M40: =IF(ISBLANK(E40),0,IF(B40="Strap Only",0,VLOOKUP(E40,ClassicData!$U:$V,2,FALSE))) -> $0.00 | N40: =IF(ISBLANK(F40),0,VLOOKUP(F40,ClassicData!$Y:$Z,2,FALSE)) -> $0.00 | O40: $0.00 | P40: =IF(ISBLANK(G40),0,VLOOKUP(G40,ClassicData!$AB:$AC,2,FALSE)) -> $0.00 | Q40: $0.00 | R40: $0.00 | S40: =IF(ISBLANK(C40),0,IF(U40=1,'Go-In! & Fast Eddie Package BD'!$G$32,IF('Order Form'!V40=1,'Go-In! & Fast Eddie Package BD'!$G$4,IF('Order Form'!W40=1,0,0)))) -> $0.00 | T40: =IF(ISBLANK(C40),0,IF(U40=1,'Go-In! & Fast Eddie Package BD'!$G$32,IF('Order Form'!V40=1,'Go-In! & Fast Eddie Package BD'!$G$4,IF('Order Form'!W40=1,0,0)))) -> $0.00 | U40: 0 | V40: 0 | W40: 0 | X40: =(IF(ISBLANK(E40),0,IF(B40="StrapOnly",VLOOKUP(E40,ClassicData!$AF:$AG,2,FALSE)))) -> 0
H41: $0.00 | J41: $0.00 | K41: =IFERROR(IF(B41=ClassicBreakdown!$B$7,ClassicBreakdown!$G$5,IF('Order Form'!B41=ClassicBreakdown!$C$7,ClassicBreakdown!$G$5,IF('Order Form'!B41=ClassicBreakdown!$J$8,ClassicBreakdown!$L$7,IF('Order Form'!B41=ClassicBreakdown!$B$33,ClassicBreakdown!$D$32,IF('Order Form'!B41=ClassicBreakdown!$J$31,ClassicBreakdown!$L$30,IF('Order Form'!B41=ClassicBreakdown!$O$8,ClassicBreakdown!$Q$7,0)))))),"MOQ") -> $0.00 | L41: =IF(B41="Etched",T41,IF(B41="Color Print",S41,IF(B41="Embossed",Q41,IF(B41="Debossed",R41,IF(B41="Polished Plate",#REF!,0))))) -> $0.00 | M41: =IF(ISBLANK(E41),0,IF(B41="Strap Only",0,VLOOKUP(E41,ClassicData!$U:$V,2,FALSE))) -> $0.00 | N41: =IF(ISBLANK(F41),0,VLOOKUP(F41,ClassicData!$Y:$Z,2,FALSE)) -> $0.00 | O41: $0.00 | P41: =IF(ISBLANK(G41),0,VLOOKUP(G41,ClassicData!$AB:$AC,2,FALSE)) -> $0.00 | Q41: $0.00 | R41: $0.00 | S41: =IF(ISBLANK(C41),0,IF(U41=1,'Go-In! & Fast Eddie Package BD'!$G$32,IF('Order Form'!V41=1,'Go-In! & Fast Eddie Package BD'!$G$4,IF('Order Form'!W41=1,0,0)))) -> $0.00 | T41: =IF(ISBLANK(C41),0,IF(U41=1,'Go-In! & Fast Eddie Package BD'!$G$32,IF('Order Form'!V41=1,'Go-In! & Fast Eddie Package BD'!$G$4,IF('Order Form'!W41=1,0,0)))) -> $0.00 | U41: 0 | V41: 0 | W41: 0 | X41: =(IF(ISBLANK(E41),0,IF(B41="StrapOnly",VLOOKUP(E41,ClassicData!$AF:$AG,2,FALSE)))) -> 0
H42: $0.00 | J42: $0.00 | K42: =IFERROR(IF(B42=ClassicBreakdown!$B$7,ClassicBreakdown!$G$5,IF('Order Form'!B42=ClassicBreakdown!$C$7,ClassicBreakdown!$G$5,IF('Order Form'!B42=ClassicBreakdown!$J$8,ClassicBreakdown!$L$7,IF('Order Form'!B42=ClassicBreakdown!$B$33,ClassicBreakdown!$D$32,IF('Order Form'!B42=ClassicBreakdown!$J$31,ClassicBreakdown!$L$30,IF('Order Form'!B42=ClassicBreakdown!$O$8,ClassicBreakdown!$Q$7,0)))))),"MOQ") -> $0.00 | L42: =IF(B42="Etched",T42,IF(B42="Color Print",S42,IF(B42="Embossed",Q42,IF(B42="Debossed",R42,IF(B42="Polished Plate",#REF!,0))))) -> $0.00 | M42: =IF(ISBLANK(E42),0,IF(B42="Strap Only",0,VLOOKUP(E42,ClassicData!$U:$V,2,FALSE))) -> $0.00 | N42: =IF(ISBLANK(F42),0,VLOOKUP(F42,ClassicData!$Y:$Z,2,FALSE)) -> $0.00 | O42: $0.00 | P42: =IF(ISBLANK(G42),0,VLOOKUP(G42,ClassicData!$AB:$AC,2,FALSE)) -> $0.00 | Q42: $0.00 | R42: $0.00 | S42: =IF(ISBLANK(C42),0,IF(U42=1,'Go-In! & Fast Eddie Package BD'!$G$32,IF('Order Form'!V42=1,'Go-In! & Fast Eddie Package BD'!$G$4,IF('Order Form'!W42=1,0,0)))) -> $0.00 | T42: =IF(ISBLANK(C42),0,IF(U42=1,'Go-In! & Fast Eddie Package BD'!$G$32,IF('Order Form'!V42=1,'Go-In! & Fast Eddie Package BD'!$G$4,IF('Order Form'!W42=1,0,0)))) -> $0.00 | U42: 0 | V42: 0 | W42: 0 | X42: =(IF(ISBLANK(E42),0,IF(B42="StrapOnly",VLOOKUP(E42,ClassicData!$AF:$AG,2,FALSE)))) -> 0
H43: $0.00 | J43: $0.00 | K43: =IFERROR(IF(B43=ClassicBreakdown!$B$7,ClassicBreakdown!$G$5,IF('Order Form'!B43=ClassicBreakdown!$C$7,ClassicBreakdown!$G$5,IF('Order Form'!B43=ClassicBreakdown!$J$8,ClassicBreakdown!$L$7,IF('Order Form'!B43=ClassicBreakdown!$B$33,ClassicBreakdown!$D$32,IF('Order Form'!B43=ClassicBreakdown!$J$31,ClassicBreakdown!$L$30,IF('Order Form'!B43=ClassicBreakdown!$O$8,ClassicBreakdown!$Q$7,0)))))),"MOQ") -> $0.00 | L43: =IF(B43="Etched",T43,IF(B43="Color Print",S43,IF(B43="Embossed",Q43,IF(B43="Debossed",R43,IF(B43="Polished Plate",#REF!,0))))) -> $0.00 | M43: =IF(ISBLANK(E43),0,IF(B43="Strap Only",0,VLOOKUP(E43,ClassicData!$U:$V,2,FALSE))) -> $0.00 | N43: =IF(ISBLANK(F43),0,VLOOKUP(F43,ClassicData!$Y:$Z,2,FALSE)) -> $0.00 | O43: $0.00 | P43: =IF(ISBLANK(G43),0,VLOOKUP(G43,ClassicData!$AB:$AC,2,FALSE)) -> $0.00 | Q43: $0.00 | R43: $0.00 | S43: =IF(ISBLANK(C43),0,IF(U43=1,'Go-In! & Fast Eddie Package BD'!$G$32,IF('Order Form'!V43=1,'Go-In! & Fast Eddie Package BD'!$G$4,IF('Order Form'!W43=1,0,0)))) -> $0.00 | T43: =IF(ISBLANK(C43),0,IF(U43=1,'Go-In! & Fast Eddie Package BD'!$G$32,IF('Order Form'!V43=1,'Go-In! & Fast Eddie Package BD'!$G$4,IF('Order Form'!W43=1,0,0)))) -> $0.00 | U43: 0 | V43: 0 | W43: 0 | X43: =(IF(ISBLANK(E43),0,IF(B43="StrapOnly",VLOOKUP(E43,ClassicData!$AF:$AG,2,FALSE)))) -> 0
H44: $0.00 | J44: $0.00 | K44: =IFERROR(IF(B44=ClassicBreakdown!$B$7,ClassicBreakdown!$G$5,IF('Order Form'!B44=ClassicBreakdown!$C$7,ClassicBreakdown!$G$5,IF('Order Form'!B44=ClassicBreakdown!$J$8,ClassicBreakdown!$L$7,IF('Order Form'!B44=ClassicBreakdown!$B$33,ClassicBreakdown!$D$32,IF('Order Form'!B44=ClassicBreakdown!$J$31,ClassicBreakdown!$L$30,IF('Order Form'!B44=ClassicBreakdown!$O$8,ClassicBreakdown!$Q$7,0)))))),"MOQ") -> $0.00 | L44: =IF(B44="Etched",T44,IF(B44="Color Print",S44,IF(B44="Embossed",Q44,IF(B44="Debossed",R44,IF(B44="Polished Plate",#REF!,0))))) -> $0.00 | M44: =IF(ISBLANK(E44),0,IF(B44="Strap Only",0,VLOOKUP(E44,ClassicData!$U:$V,2,FALSE))) -> $0.00 | N44: =IF(ISBLANK(F44),0,VLOOKUP(F44,ClassicData!$Y:$Z,2,FALSE)) -> $0.00 | O44: $0.00 | P44: =IF(ISBLANK(G44),0,VLOOKUP(G44,ClassicData!$AB:$AC,2,FALSE)) -> $0.00 | Q44: $0.00 | R44: $0.00 | S44: =IF(ISBLANK(C44),0,IF(U44=1,'Go-In! & Fast Eddie Package BD'!$G$32,IF('Order Form'!V44=1,'Go-In! & Fast Eddie Package BD'!$G$4,IF('Order Form'!W44=1,0,0)))) -> $0.00 | T44: =IF(ISBLANK(C44),0,IF(U44=1,'Go-In! & Fast Eddie Package BD'!$G$32,IF('Order Form'!V44=1,'Go-In! & Fast Eddie Package BD'!$G$4,IF('Order Form'!W44=1,0,0)))) -> $0.00 | U44: 0 | V44: 0 | W44: 0 | X44: =(IF(ISBLANK(E44),0,IF(B44="StrapOnly",VLOOKUP(E44,ClassicData!$AF:$AG,2,FALSE)))) -> 0
H45: $0.00 | J45: $0.00 | K45: =IFERROR(IF(B45=ClassicBreakdown!$B$7,ClassicBreakdown!$G$5,IF('Order Form'!B45=ClassicBreakdown!$C$7,ClassicBreakdown!$G$5,IF('Order Form'!B45=ClassicBreakdown!$J$8,ClassicBreakdown!$L$7,IF('Order Form'!B45=ClassicBreakdown!$B$33,ClassicBreakdown!$D$32,IF('Order Form'!B45=ClassicBreakdown!$J$31,ClassicBreakdown!$L$30,IF('Order Form'!B45=ClassicBreakdown!$O$8,ClassicBreakdown!$Q$7,0)))))),"MOQ") -> $0.00 | L45: =IF(B45="Etched",T45,IF(B45="Color Print",S45,IF(B45="Embossed",Q45,IF(B45="Debossed",R45,IF(B45="Polished Plate",#REF!,0))))) -> $0.00 | M45: =IF(ISBLANK(E45),0,IF(B45="Strap Only",0,VLOOKUP(E45,ClassicData!$U:$V,2,FALSE))) -> $0.00 | N45: =IF(ISBLANK(F45),0,VLOOKUP(F45,ClassicData!$Y:$Z,2,FALSE)) -> $0.00 | O45: $0.00 | P45: =IF(ISBLANK(G45),0,VLOOKUP(G45,ClassicData!$AB:$AC,2,FALSE)) -> $0.00 | Q45: $0.00 | R45: $0.00 | S45: =IF(ISBLANK(C45),0,IF(U45=1,'Go-In! & Fast Eddie Package BD'!$G$32,IF('Order Form'!V45=1,'Go-In! & Fast Eddie Package BD'!$G$4,IF('Order Form'!W45=1,0,0)))) -> $0.00 | T45: =IF(ISBLANK(C45),0,IF(U45=1,'Go-In! & Fast Eddie Package BD'!$G$32,IF('Order Form'!V45=1,'Go-In! & Fast Eddie Package BD'!$G$4,IF('Order Form'!W45=1,0,0)))) -> $0.00 | U45: 0 | V45: 0 | W45: 0 | X45: =(IF(ISBLANK(E45),0,IF(B45="StrapOnly",VLOOKUP(E45,ClassicData!$AF:$AG,2,FALSE)))) -> 0
H46: $0.00 | J46: $0.00 | K46: =IFERROR(IF(B46=ClassicBreakdown!$B$7,ClassicBreakdown!$G$5,IF('Order Form'!B46=ClassicBreakdown!$C$7,ClassicBreakdown!$G$5,IF('Order Form'!B46=ClassicBreakdown!$J$8,ClassicBreakdown!$L$7,IF('Order Form'!B46=ClassicBreakdown!$B$33,ClassicBreakdown!$D$32,IF('Order Form'!B46=ClassicBreakdown!$J$31,ClassicBreakdown!$L$30,IF('Order Form'!B46=ClassicBreakdown!$O$8,ClassicBreakdown!$Q$7,0)))))),"MOQ") -> $0.00 | L46: =IF(B46="Etched",T46,IF(B46="Color Print",S46,IF(B46="Embossed",Q46,IF(B46="Debossed",R46,IF(B46="Polished Plate",#REF!,0))))) -> $0.00 | M46: =IF(ISBLANK(E46),0,IF(B46="Strap Only",0,VLOOKUP(E46,ClassicData!$U:$V,2,FALSE))) -> $0.00 | N46: =IF(ISBLANK(F46),0,VLOOKUP(F46,ClassicData!$Y:$Z,2,FALSE)) -> $0.00 | O46: $0.00 | P46: =IF(ISBLANK(G46),0,VLOOKUP(G46,ClassicData!$AB:$AC,2,FALSE)) -> $0.00 | Q46: $0.00 | R46: $0.00 | S46: =IF(ISBLANK(C46),0,IF(U46=1,'Go-In! & Fast Eddie Package BD'!$G$32,IF('Order Form'!V46=1,'Go-In! & Fast Eddie Package BD'!$G$4,IF('Order Form'!W46=1,0,0)))) -> $0.00 | T46: =IF(ISBLANK(C46),0,IF(U46=1,'Go-In! & Fast Eddie Package BD'!$G$32,IF('Order Form'!V46=1,'Go-In! & Fast Eddie Package BD'!$G$4,IF('Order Form'!W46=1,0,0)))) -> $0.00 | U46: 0 | V46: 0 | W46: 0 | X46: =(IF(ISBLANK(E46),0,IF(B46="StrapOnly",VLOOKUP(E46,ClassicData!$AF:$AG,2,FALSE)))) -> 0
H47: $0.00 | J47: $0.00 | K47: =IFERROR(IF(B47=ClassicBreakdown!$B$7,ClassicBreakdown!$G$5,IF('Order Form'!B47=ClassicBreakdown!$C$7,ClassicBreakdown!$G$5,IF('Order Form'!B47=ClassicBreakdown!$J$8,ClassicBreakdown!$L$7,IF('Order Form'!B47=ClassicBreakdown!$B$33,ClassicBreakdown!$D$32,IF('Order Form'!B47=ClassicBreakdown!$J$31,ClassicBreakdown!$L$30,IF('Order Form'!B47=ClassicBreakdown!$O$8,ClassicBreakdown!$Q$7,0)))))),"MOQ") -> $0.00 | L47: =IF(B47="Etched",T47,IF(B47="Color Print",S47,IF(B47="Embossed",Q47,IF(B47="Debossed",R47,IF(B47="Polished Plate",#REF!,0))))) -> $0.00 | M47: =IF(ISBLANK(E47),0,IF(B47="Strap Only",0,VLOOKUP(E47,ClassicData!$U:$V,2,FALSE))) -> $0.00 | N47: =IF(ISBLANK(F47),0,VLOOKUP(F47,ClassicData!$Y:$Z,2,FALSE)) -> $0.00 | O47: $0.00 | P47: =IF(ISBLANK(G47),0,VLOOKUP(G47,ClassicData!$AB:$AC,2,FALSE)) -> $0.00 | Q47: $0.00 | R47: $0.00 | S47: =IF(ISBLANK(C47),0,IF(U47=1,'Go-In! & Fast Eddie Package BD'!$G$32,IF('Order Form'!V47=1,'Go-In! & Fast Eddie Package BD'!$G$4,IF('Order Form'!W47=1,0,0)))) -> $0.00 | T47: =IF(ISBLANK(C47),0,IF(U47=1,'Go-In! & Fast Eddie Package BD'!$G$32,IF('Order Form'!V47=1,'Go-In! & Fast Eddie Package BD'!$G$4,IF('Order Form'!W47=1,0,0)))) -> $0.00 | U47: 0 | V47: 0 | W47: 0 | X47: =(IF(ISBLANK(E47),0,IF(B47="StrapOnly",VLOOKUP(E47,ClassicData!$AF:$AG,2,FALSE)))) -> 0
H48: $0.00 | J48: $0.00 | K48: =IFERROR(IF(B48=ClassicBreakdown!$B$7,ClassicBreakdown!$G$5,IF('Order Form'!B48=ClassicBreakdown!$C$7,ClassicBreakdown!$G$5,IF('Order Form'!B48=ClassicBreakdown!$J$8,ClassicBreakdown!$L$7,IF('Order Form'!B48=ClassicBreakdown!$B$33,ClassicBreakdown!$D$32,IF('Order Form'!B48=ClassicBreakdown!$J$31,ClassicBreakdown!$L$30,IF('Order Form'!B48=ClassicBreakdown!$O$8,ClassicBreakdown!$Q$7,0)))))),"MOQ") -> $0.00 | L48: =IF(B48="Etched",T48,IF(B48="Color Print",S48,IF(B48="Embossed",Q48,IF(B48="Debossed",R48,IF(B48="Polished Plate",#REF!,0))))) -> $0.00 | M48: =IF(ISBLANK(E48),0,IF(B48="Strap Only",0,VLOOKUP(E48,ClassicData!$U:$V,2,FALSE))) -> $0.00 | N48: =IF(ISBLANK(F48),0,VLOOKUP(F48,ClassicData!$Y:$Z,2,FALSE)) -> $0.00 | O48: $0.00 | P48: =IF(ISBLANK(G48),0,VLOOKUP(G48,ClassicData!$AB:$AC,2,FALSE)) -> $0.00 | Q48: $0.00 | R48: $0.00 | S48: =IF(ISBLANK(C48),0,IF(U48=1,'Go-In! & Fast Eddie Package BD'!$G$32,IF('Order Form'!V48=1,'Go-In! & Fast Eddie Package BD'!$G$4,IF('Order Form'!W48=1,0,0)))) -> $0.00 | T48: =IF(ISBLANK(C48),0,IF(U48=1,'Go-In! & Fast Eddie Package BD'!$G$32,IF('Order Form'!V48=1,'Go-In! & Fast Eddie Package BD'!$G$4,IF('Order Form'!W48=1,0,0)))) -> $0.00 | U48: 0 | V48: 0 | W48: 0 | X48: =(IF(ISBLANK(E48),0,IF(B48="StrapOnly",VLOOKUP(E48,ClassicData!$AF:$AG,2,FALSE)))) -> 0
H49: $0.00 | J49: $0.00 | K49: =IFERROR(IF(B49=ClassicBreakdown!$B$7,ClassicBreakdown!$G$5,IF('Order Form'!B49=ClassicBreakdown!$C$7,ClassicBreakdown!$G$5,IF('Order Form'!B49=ClassicBreakdown!$J$8,ClassicBreakdown!$L$7,IF('Order Form'!B49=ClassicBreakdown!$B$33,ClassicBreakdown!$D$32,IF('Order Form'!B49=ClassicBreakdown!$J$31,ClassicBreakdown!$L$30,IF('Order Form'!B49=ClassicBreakdown!$O$8,ClassicBreakdown!$Q$7,0)))))),"MOQ") -> $0.00 | L49: =IF(B49="Etched",T49,IF(B49="Color Print",S49,IF(B49="Embossed",Q49,IF(B49="Debossed",R49,IF(B49="Polished Plate",#REF!,0))))) -> $0.00 | M49: =IF(ISBLANK(E49),0,IF(B49="Strap Only",0,VLOOKUP(E49,ClassicData!$U:$V,2,FALSE))) -> $0.00 | N49: =IF(ISBLANK(F49),0,VLOOKUP(F49,ClassicData!$Y:$Z,2,FALSE)) -> $0.00 | O49: $0.00 | P49: =IF(ISBLANK(G49),0,VLOOKUP(G49,ClassicData!$AB:$AC,2,FALSE)) -> $0.00 | Q49: $0.00 | R49: $0.00 | S49: =IF(ISBLANK(C49),0,IF(U49=1,'Go-In! & Fast Eddie Package BD'!$G$32,IF('Order Form'!V49=1,'Go-In! & Fast Eddie Package BD'!$G$4,IF('Order Form'!W49=1,0,0)))) -> $0.00 | T49: =IF(ISBLANK(C49),0,IF(U49=1,'Go-In! & Fast Eddie Package BD'!$G$32,IF('Order Form'!V49=1,'Go-In! & Fast Eddie Package BD'!$G$4,IF('Order Form'!W49=1,0,0)))) -> $0.00 | U49: 0 | V49: 0 | W49: 0 | X49: =(IF(ISBLANK(E49),0,IF(B49="StrapOnly",VLOOKUP(E49,ClassicData!$AF:$AG,2,FALSE)))) -> 0
H50: $0.00 | J50: $0.00 | K50: =IFERROR(IF(B50=ClassicBreakdown!$B$7,ClassicBreakdown!$G$5,IF('Order Form'!B50=ClassicBreakdown!$C$7,ClassicBreakdown!$G$5,IF('Order Form'!B50=ClassicBreakdown!$J$8,ClassicBreakdown!$L$7,IF('Order Form'!B50=ClassicBreakdown!$B$33,ClassicBreakdown!$D$32,IF('Order Form'!B50=ClassicBreakdown!$J$31,ClassicBreakdown!$L$30,IF('Order Form'!B50=ClassicBreakdown!$O$8,ClassicBreakdown!$Q$7,0)))))),"MOQ") -> $0.00 | L50: =IF(B50="Etched",T50,IF(B50="Color Print",S50,IF(B50="Embossed",Q50,IF(B50="Debossed",R50,IF(B50="Polished Plate",#REF!,0))))) -> $0.00 | M50: =IF(ISBLANK(E50),0,IF(B50="Strap Only",0,VLOOKUP(E50,ClassicData!$U:$V,2,FALSE))) -> $0.00 | N50: =IF(ISBLANK(F50),0,VLOOKUP(F50,ClassicData!$Y:$Z,2,FALSE)) -> $0.00 | O50: $0.00 | P50: =IF(ISBLANK(G50),0,VLOOKUP(G50,ClassicData!$AB:$AC,2,FALSE)) -> $0.00 | Q50: $0.00 | R50: $0.00 | S50: =IF(ISBLANK(C50),0,IF(U50=1,'Go-In! & Fast Eddie Package BD'!$G$32,IF('Order Form'!V50=1,'Go-In! & Fast Eddie Package BD'!$G$4,IF('Order Form'!W50=1,0,0)))) -> $0.00 | T50: =IF(ISBLANK(C50),0,IF(U50=1,'Go-In! & Fast Eddie Package BD'!$G$32,IF('Order Form'!V50=1,'Go-In! & Fast Eddie Package BD'!$G$4,IF('Order Form'!W50=1,0,0)))) -> $0.00 | U50: 0 | V50: 0 | W50: 0 | X50: =(IF(ISBLANK(E50),0,IF(B50="StrapOnly",VLOOKUP(E50,ClassicData!$AF:$AG,2,FALSE)))) -> 0
H51: $0.00 | J51: $0.00 | K51: =IFERROR(IF(B51=ClassicBreakdown!$B$7,ClassicBreakdown!$G$5,IF('Order Form'!B51=ClassicBreakdown!$C$7,ClassicBreakdown!$G$5,IF('Order Form'!B51=ClassicBreakdown!$J$8,ClassicBreakdown!$L$7,IF('Order Form'!B51=ClassicBreakdown!$B$33,ClassicBreakdown!$D$32,IF('Order Form'!B51=ClassicBreakdown!$J$31,ClassicBreakdown!$L$30,IF('Order Form'!B51=ClassicBreakdown!$O$8,ClassicBreakdown!$Q$7,0)))))),"MOQ") -> $0.00 | L51: =IF(B51="Etched",T51,IF(B51="Color Print",S51,IF(B51="Embossed",Q51,IF(B51="Debossed",R51,IF(B51="Polished Plate",#REF!,0))))) -> $0.00 | M51: =IF(ISBLANK(E51),0,IF(B51="Strap Only",0,VLOOKUP(E51,ClassicData!$U:$V,2,FALSE))) -> $0.00 | N51: =IF(ISBLANK(F51),0,VLOOKUP(F51,ClassicData!$Y:$Z,2,FALSE)) -> $0.00 | O51: $0.00 | P51: =IF(ISBLANK(G51),0,VLOOKUP(G51,ClassicData!$AB:$AC,2,FALSE)) -> $0.00 | Q51: $0.00 | R51: $0.00 | S51: =IF(ISBLANK(C51),0,IF(U51=1,'Go-In! & Fast Eddie Package BD'!$G$32,IF('Order Form'!V51=1,'Go-In! & Fast Eddie Package BD'!$G$4,IF('Order Form'!W51=1,0,0)))) -> $0.00 | T51: =IF(ISBLANK(C51),0,IF(U51=1,'Go-In! & Fast Eddie Package BD'!$G$32,IF('Order Form'!V51=1,'Go-In! & Fast Eddie Package BD'!$G$4,IF('Order Form'!W51=1,0,0)))) -> $0.00 | U51: 0 | V51: 0 | W51: 0 | X51: =(IF(ISBLANK(E51),0,IF(B51="StrapOnly",VLOOKUP(E51,ClassicData!$AF:$AG,2,FALSE)))) -> 0
H52: $0.00 | J52: $0.00 | K52: =IFERROR(IF(B52=ClassicBreakdown!$B$7,ClassicBreakdown!$G$5,IF('Order Form'!B52=ClassicBreakdown!$C$7,ClassicBreakdown!$G$5,IF('Order Form'!B52=ClassicBreakdown!$J$8,ClassicBreakdown!$L$7,IF('Order Form'!B52=ClassicBreakdown!$B$33,ClassicBreakdown!$D$32,IF('Order Form'!B52=ClassicBreakdown!$J$31,ClassicBreakdown!$L$30,IF('Order Form'!B52=ClassicBreakdown!$O$8,ClassicBreakdown!$Q$7,0)))))),"MOQ") -> $0.00 | L52: =IF(B52="Etched",T52,IF(B52="Color Print",S52,IF(B52="Embossed",Q52,IF(B52="Debossed",R52,IF(B52="Polished Plate",#REF!,0))))) -> $0.00 | M52: =IF(ISBLANK(E52),0,IF(B52="Strap Only",0,VLOOKUP(E52,ClassicData!$U:$V,2,FALSE))) -> $0.00 | N52: =IF(ISBLANK(F52),0,VLOOKUP(F52,ClassicData!$Y:$Z,2,FALSE)) -> $0.00 | O52: $0.00 | P52: =IF(ISBLANK(G52),0,VLOOKUP(G52,ClassicData!$AB:$AC,2,FALSE)) -> $0.00 | Q52: $0.00 | R52: $0.00 | S52: =IF(ISBLANK(C52),0,IF(U52=1,'Go-In! & Fast Eddie Package BD'!$G$32,IF('Order Form'!V52=1,'Go-In! & Fast Eddie Package BD'!$G$4,IF('Order Form'!W52=1,0,0)))) -> $0.00 | T52: =IF(ISBLANK(C52),0,IF(U52=1,'Go-In! & Fast Eddie Package BD'!$G$32,IF('Order Form'!V52=1,'Go-In! & Fast Eddie Package BD'!$G$4,IF('Order Form'!W52=1,0,0)))) -> $0.00 | U52: 0 | V52: 0 | W52: 0 | X52: =(IF(ISBLANK(E52),0,IF(B52="StrapOnly",VLOOKUP(E52,ClassicData!$AF:$AG,2,FALSE)))) -> 0
H53: $0.00 | J53: $0.00 | K53: =IFERROR(IF(B53=ClassicBreakdown!$B$7,ClassicBreakdown!$G$5,IF('Order Form'!B53=ClassicBreakdown!$C$7,ClassicBreakdown!$G$5,IF('Order Form'!B53=ClassicBreakdown!$J$8,ClassicBreakdown!$L$7,IF('Order Form'!B53=ClassicBreakdown!$B$33,ClassicBreakdown!$D$32,IF('Order Form'!B53=ClassicBreakdown!$J$31,ClassicBreakdown!$L$30,IF('Order Form'!B53=ClassicBreakdown!$O$8,ClassicBreakdown!$Q$7,0)))))),"MOQ") -> $0.00 | L53: =IF(B53="Etched",T53,IF(B53="Color Print",S53,IF(B53="Embossed",Q53,IF(B53="Debossed",R53,IF(B53="Polished Plate",#REF!,0))))) -> $0.00 | M53: =IF(ISBLANK(E53),0,IF(B53="Strap Only",0,VLOOKUP(E53,ClassicData!$U:$V,2,FALSE))) -> $0.00 | N53: =IF(ISBLANK(F53),0,VLOOKUP(F53,ClassicData!$Y:$Z,2,FALSE)) -> $0.00 | O53: $0.00 | P53: =IF(ISBLANK(G53),0,VLOOKUP(G53,ClassicData!$AB:$AC,2,FALSE)) -> $0.00 | Q53: $0.00 | R53: $0.00 | S53: =IF(ISBLANK(C53),0,IF(U53=1,'Go-In! & Fast Eddie Package BD'!$G$32,IF('Order Form'!V53=1,'Go-In! & Fast Eddie Package BD'!$G$4,IF('Order Form'!W53=1,0,0)))) -> $0.00 | T53: =IF(ISBLANK(C53),0,IF(U53=1,'Go-In! & Fast Eddie Package BD'!$G$32,IF('Order Form'!V53=1,'Go-In! & Fast Eddie Package BD'!$G$4,IF('Order Form'!W53=1,0,0)))) -> $0.00 | U53: 0 | V53: 0 | W53: 0 | X53: =(IF(ISBLANK(E53),0,IF(B53="StrapOnly",VLOOKUP(E53,ClassicData!$AF:$AG,2,FALSE)))) -> 0
E54: * Limited Stock Strap - Subject to availability
F55: Important Notice: A qty of 30+ pcs of any one strap requires call ahead confirmation
C56: Order Buckles ONLY Below:
A57: Logo Description | B57: Customization | C57: Buckle | D57: Logo Placement | E57: Ball Mark / Tool | H57: Price Ea. | I57: Qty | J57: Total | K57: Base Charge | L57: Buckle Adjust | M57: BM/Tool Adjust | Q57: Embossed Buckle Adjust | R57: Debossed Buckle Adjust | S57: Color Print Buckle Adjust | T57: Etched Buckle Adjust | U57: Fast Eddie | V57: Go-In! | W57: Classic
H58: =IF(K58="Less Than MOQ",K58,SUM(K58:M58)) -> $0.00 | J58: =H58*I58 -> $0.00 | K58: =IF(B58=BuckleBreakdown!$B$7,BuckleBreakdown!$G$5,IF('Order Form'!B58=BuckleBreakdown!$C$7,BuckleBreakdown!$G$5,IF('Order Form'!B58=BuckleBreakdown!$B$23,BuckleBreakdown!$D$22,IF('Order Form'!B58=BuckleBreakdown!$J$8,BuckleBreakdown!$L$7,IF('Order Form'!B58=BuckleBreakdown!$J$21,BuckleBreakdown!$L$20,0))))) -> $0.00 | L58: =IF(B58="Etched",T58,IF(B58="Color Print",S58,IF(B58="Embossed",Q58,IF(B58="Debossed",R58,IF(B58="Polished Plate",#REF!,0))))) -> $0.00 | M58: =IF(ISBLANK(E58),0,VLOOKUP(E58,BuckleData!$Q:$R,2,FALSE)) -> $0.00 | Q58: =IF(U58=1,4.5,IF(V58=1,2,0)) -> $0.00 | R58: =IF(U58=1,4.5,IF(V58=1,2,0)) -> $0.00 | S58: =IF(ISBLANK(B58),0,IF(U58=1,'Go-In! & Fast Eddie Buckle BD'!$G$30,IF('Order Form'!V58=1,'Go-In! & Fast Eddie Buckle BD'!$G$4,IF('Order Form'!W58=1,0,0)))) -> $0.00 | T58: =IF(ISBLANK(C58),0,IF(U58=1,'Go-In! & Fast Eddie Buckle BD'!$G$30,IF('Order Form'!V58=1,'Go-In! & Fast Eddie Buckle BD'!$G$4,IF('Order Form'!W58=1,0,0)))) -> $0.00 | U58: =IFERROR(IF(SEARCH("Fast Eddie",C58,1),1),0) -> 0 | V58: =IFERROR(IF(SEARCH("Go-In!",C58,1),1),0) -> 0 | W58: =IFERROR(IF(SEARCH("Classic",C58,1),1),0) -> 0
H59: $0.00 | J59: =H59*I59 -> $0.00 | K59: =IF(B59=BuckleBreakdown!$B$7,BuckleBreakdown!$G$5,IF('Order Form'!B59=BuckleBreakdown!$C$7,BuckleBreakdown!$G$5,IF('Order Form'!B59=BuckleBreakdown!$B$23,BuckleBreakdown!$D$22,IF('Order Form'!B59=BuckleBreakdown!$J$8,BuckleBreakdown!$L$7,IF('Order Form'!B59=BuckleBreakdown!$J$21,BuckleBreakdown!$L$20,0))))) -> $0.00 | L59: =IF(B59="Etched",T59,IF(B59="Color Print",S59,IF(B59="Embossed",Q59,IF(B59="Debossed",R59,IF(B59="Polished Plate",#REF!,0))))) -> $0.00 | M59: =IF(ISBLANK(E59),0,VLOOKUP(E59,BuckleData!$Q:$R,2,FALSE)) -> $0.00 | Q59: =IF(U59=1,4.5,IF(V59=1,2,0)) -> $0.00 | R59: =IF(U59=1,4.5,IF(V59=1,2,0)) -> $0.00 | S59: =IF(ISBLANK(B59),0,IF(U59=1,'Go-In! & Fast Eddie Buckle BD'!$G$30,IF('Order Form'!V59=1,'Go-In! & Fast Eddie Buckle BD'!$G$4,IF('Order Form'!W59=1,0,0)))) -> $0.00 | T59: =IF(ISBLANK(C59),0,IF(U59=1,'Go-In! & Fast Eddie Buckle BD'!$G$30,IF('Order Form'!V59=1,'Go-In! & Fast Eddie Buckle BD'!$G$4,IF('Order Form'!W59=1,0,0)))) -> $0.00 | U59: =IFERROR(IF(SEARCH("Fast Eddie",C59,1),1),0) -> 0 | V59: =IFERROR(IF(SEARCH("Go-In!",C59,1),1),0) -> 0 | W59: =IFERROR(IF(SEARCH("Classic",C59,1),1),0) -> 0
H60: $0.00 | J60: $0.00 | K60: =IF(B60=BuckleBreakdown!$B$7,BuckleBreakdown!$G$5,IF('Order Form'!B60=BuckleBreakdown!$C$7,BuckleBreakdown!$G$5,IF('Order Form'!B60=BuckleBreakdown!$B$23,BuckleBreakdown!$D$22,IF('Order Form'!B60=BuckleBreakdown!$J$8,BuckleBreakdown!$L$7,IF('Order Form'!B60=BuckleBreakdown!$J$21,BuckleBreakdown!$L$20,0))))) -> $0.00 | L60: =IF(B60="Etched",T60,IF(B60="Color Print",S60,IF(B60="Embossed",Q60,IF(B60="Debossed",R60,IF(B60="Polished Plate",#REF!,0))))) -> $0.00 | M60: =IF(ISBLANK(E60),0,VLOOKUP(E60,BuckleData!$Q:$R,2,FALSE)) -> $0.00 | Q60: $0.00 | R60: $0.00 | S60: =IF(ISBLANK(B60),0,IF(U60=1,'Go-In! & Fast Eddie Buckle BD'!$G$30,IF('Order Form'!V60=1,'Go-In! & Fast Eddie Buckle BD'!$G$4,IF('Order Form'!W60=1,0,0)))) -> $0.00 | T60: =IF(ISBLANK(C60),0,IF(U60=1,'Go-In! & Fast Eddie Buckle BD'!$G$30,IF('Order Form'!V60=1,'Go-In! & Fast Eddie Buckle BD'!$G$4,IF('Order Form'!W60=1,0,0)))) -> $0.00 | U60: 0 | V60: 0 | W60: 0
H61: $0.00 | J61: $0.00 | K61: =IF(B61=BuckleBreakdown!$B$7,BuckleBreakdown!$G$5,IF('Order Form'!B61=BuckleBreakdown!$C$7,BuckleBreakdown!$G$5,IF('Order Form'!B61=BuckleBreakdown!$B$23,BuckleBreakdown!$D$22,IF('Order Form'!B61=BuckleBreakdown!$J$8,BuckleBreakdown!$L$7,IF('Order Form'!B61=BuckleBreakdown!$J$21,BuckleBreakdown!$L$20,0))))) -> $0.00 | L61: =IF(B61="Etched",T61,IF(B61="Color Print",S61,IF(B61="Embossed",Q61,IF(B61="Debossed",R61,IF(B61="Polished Plate",#REF!,0))))) -> $0.00 | M61: =IF(ISBLANK(E61),0,VLOOKUP(E61,BuckleData!$Q:$R,2,FALSE)) -> $0.00 | Q61: $0.00 | R61: $0.00 | S61: =IF(ISBLANK(B61),0,IF(U61=1,'Go-In! & Fast Eddie Buckle BD'!$G$30,IF('Order Form'!V61=1,'Go-In! & Fast Eddie Buckle BD'!$G$4,IF('Order Form'!W61=1,0,0)))) -> $0.00 | T61: =IF(ISBLANK(C61),0,IF(U61=1,'Go-In! & Fast Eddie Buckle BD'!$G$30,IF('Order Form'!V61=1,'Go-In! & Fast Eddie Buckle BD'!$G$4,IF('Order Form'!W61=1,0,0)))) -> $0.00 | U61: 0 | V61: 0 | W61: 0
H62: $0.00 | J62: $0.00 | K62: =IF(B62=BuckleBreakdown!$B$7,BuckleBreakdown!$G$5,IF('Order Form'!B62=BuckleBreakdown!$C$7,BuckleBreakdown!$G$5,IF('Order Form'!B62=BuckleBreakdown!$B$23,BuckleBreakdown!$D$22,IF('Order Form'!B62=BuckleBreakdown!$J$8,BuckleBreakdown!$L$7,IF('Order Form'!B62=BuckleBreakdown!$J$21,BuckleBreakdown!$L$20,0))))) -> $0.00 | L62: =IF(B62="Etched",T62,IF(B62="Color Print",S62,IF(B62="Embossed",Q62,IF(B62="Debossed",R62,IF(B62="Polished Plate",#REF!,0))))) -> $0.00 | M62: =IF(ISBLANK(E62),0,VLOOKUP(E62,BuckleData!$Q:$R,2,FALSE)) -> $0.00 | Q62: $0.00 | R62: $0.00 | S62: =IF(ISBLANK(B62),0,IF(U62=1,'Go-In! & Fast Eddie Buckle BD'!$G$30,IF('Order Form'!V62=1,'Go-In! & Fast Eddie Buckle BD'!$G$4,IF('Order Form'!W62=1,0,0)))) -> $0.00 | T62: =IF(ISBLANK(C62),0,IF(U62=1,'Go-In! & Fast Eddie Buckle BD'!$G$30,IF('Order Form'!V62=1,'Go-In! & Fast Eddie Buckle BD'!$G$4,IF('Order Form'!W62=1,0,0)))) -> $0.00 | U62: 0 | V62: 0 | W62: 0
H63: $0.00 | J63: $0.00 | K63: =IF(B63=BuckleBreakdown!$B$7,BuckleBreakdown!$G$5,IF('Order Form'!B63=BuckleBreakdown!$C$7,BuckleBreakdown!$G$5,IF('Order Form'!B63=BuckleBreakdown!$B$23,BuckleBreakdown!$D$22,IF('Order Form'!B63=BuckleBreakdown!$J$8,BuckleBreakdown!$L$7,IF('Order Form'!B63=BuckleBreakdown!$J$21,BuckleBreakdown!$L$20,0))))) -> $0.00 | L63: =IF(B63="Etched",T63,IF(B63="Color Print",S63,IF(B63="Embossed",Q63,IF(B63="Debossed",R63,IF(B63="Polished Plate",#REF!,0))))) -> $0.00 | M63: =IF(ISBLANK(E63),0,VLOOKUP(E63,BuckleData!$Q:$R,2,FALSE)) -> $0.00 | Q63: $0.00 | R63: $0.00 | S63: =IF(ISBLANK(B63),0,IF(U63=1,'Go-In! & Fast Eddie Buckle BD'!$G$30,IF('Order Form'!V63=1,'Go-In! & Fast Eddie Buckle BD'!$G$4,IF('Order Form'!W63=1,0,0)))) -> $0.00 | T63: =IF(ISBLANK(C63),0,IF(U63=1,'Go-In! & Fast Eddie Buckle BD'!$G$30,IF('Order Form'!V63=1,'Go-In! & Fast Eddie Buckle BD'!$G$4,IF('Order Form'!W63=1,0,0)))) -> $0.00 | U63: 0 | V63: 0 | W63: 0
H64: $0.00 | J64: $0.00 | K64: =IF(B64=BuckleBreakdown!$B$7,BuckleBreakdown!$G$5,IF('Order Form'!B64=BuckleBreakdown!$C$7,BuckleBreakdown!$G$5,IF('Order Form'!B64=BuckleBreakdown!$B$23,BuckleBreakdown!$D$22,IF('Order Form'!B64=BuckleBreakdown!$J$8,BuckleBreakdown!$L$7,IF('Order Form'!B64=BuckleBreakdown!$J$21,BuckleBreakdown!$L$20,0))))) -> $0.00 | L64: =IF(B64="Etched",T64,IF(B64="Color Print",S64,IF(B64="Embossed",Q64,IF(B64="Debossed",R64,IF(B64="Polished Plate",#REF!,0))))) -> $0.00 | M64: =IF(ISBLANK(E64),0,VLOOKUP(E64,BuckleData!$Q:$R,2,FALSE)) -> $0.00 | Q64: $0.00 | R64: $0.00 | S64: =IF(ISBLANK(B64),0,IF(U64=1,'Go-In! & Fast Eddie Buckle BD'!$G$30,IF('Order Form'!V64=1,'Go-In! & Fast Eddie Buckle BD'!$G$4,IF('Order Form'!W64=1,0,0)))) -> $0.00 | T64: =IF(ISBLANK(C64),0,IF(U64=1,'Go-In! & Fast Eddie Buckle BD'!$G$30,IF('Order Form'!V64=1,'Go-In! & Fast Eddie Buckle BD'!$G$4,IF('Order Form'!W64=1,0,0)))) -> $0.00 | U64: 0 | V64: 0 | W64: 0
H65: $0.00 | J65: $0.00 | K65: =IF(B65=BuckleBreakdown!$B$7,BuckleBreakdown!$G$5,IF('Order Form'!B65=BuckleBreakdown!$C$7,BuckleBreakdown!$G$5,IF('Order Form'!B65=BuckleBreakdown!$B$23,BuckleBreakdown!$D$22,IF('Order Form'!B65=BuckleBreakdown!$J$8,BuckleBreakdown!$L$7,IF('Order Form'!B65=BuckleBreakdown!$J$21,BuckleBreakdown!$L$20,0))))) -> $0.00 | L65: =IF(B65="Etched",T65,IF(B65="Color Print",S65,IF(B65="Embossed",Q65,IF(B65="Debossed",R65,IF(B65="Polished Plate",#REF!,0))))) -> $0.00 | M65: =IF(ISBLANK(E65),0,VLOOKUP(E65,BuckleData!$Q:$R,2,FALSE)) -> $0.00 | Q65: $0.00 | R65: $0.00 | S65: =IF(ISBLANK(B65),0,IF(U65=1,'Go-In! & Fast Eddie Buckle BD'!$G$30,IF('Order Form'!V65=1,'Go-In! & Fast Eddie Buckle BD'!$G$4,IF('Order Form'!W65=1,0,0)))) -> $0.00 | T65: =IF(ISBLANK(C65),0,IF(U65=1,'Go-In! & Fast Eddie Buckle BD'!$G$30,IF('Order Form'!V65=1,'Go-In! & Fast Eddie Buckle BD'!$G$4,IF('Order Form'!W65=1,0,0)))) -> $0.00 | U65: 0 | V65: 0 | W65: 0
H66: $0.00 | J66: $0.00 | K66: =IF(B66=BuckleBreakdown!$B$7,BuckleBreakdown!$G$5,IF('Order Form'!B66=BuckleBreakdown!$C$7,BuckleBreakdown!$G$5,IF('Order Form'!B66=BuckleBreakdown!$B$23,BuckleBreakdown!$D$22,IF('Order Form'!B66=BuckleBreakdown!$J$8,BuckleBreakdown!$L$7,IF('Order Form'!B66=BuckleBreakdown!$J$21,BuckleBreakdown!$L$20,0))))) -> $0.00 | L66: =IF(B66="Etched",T66,IF(B66="Color Print",S66,IF(B66="Embossed",Q66,IF(B66="Debossed",R66,IF(B66="Polished Plate",#REF!,0))))) -> $0.00 | M66: =IF(ISBLANK(E66),0,VLOOKUP(E66,BuckleData!$Q:$R,2,FALSE)) -> $0.00 | Q66: $0.00 | R66: $0.00 | S66: =IF(ISBLANK(B66),0,IF(U66=1,'Go-In! & Fast Eddie Buckle BD'!$G$30,IF('Order Form'!V66=1,'Go-In! & Fast Eddie Buckle BD'!$G$4,IF('Order Form'!W66=1,0,0)))) -> $0.00 | T66: =IF(ISBLANK(C66),0,IF(U66=1,'Go-In! & Fast Eddie Buckle BD'!$G$30,IF('Order Form'!V66=1,'Go-In! & Fast Eddie Buckle BD'!$G$4,IF('Order Form'!W66=1,0,0)))) -> $0.00 | U66: 0 | V66: 0 | W66: 0
H67: $0.00 | J67: $0.00 | K67: =IF(B67=BuckleBreakdown!$B$7,BuckleBreakdown!$G$5,IF('Order Form'!B67=BuckleBreakdown!$C$7,BuckleBreakdown!$G$5,IF('Order Form'!B67=BuckleBreakdown!$B$23,BuckleBreakdown!$D$22,IF('Order Form'!B67=BuckleBreakdown!$J$8,BuckleBreakdown!$L$7,IF('Order Form'!B67=BuckleBreakdown!$J$21,BuckleBreakdown!$L$20,0))))) -> $0.00 | L67: =IF(B67="Etched",T67,IF(B67="Color Print",S67,IF(B67="Embossed",Q67,IF(B67="Debossed",R67,IF(B67="Polished Plate",#REF!,0))))) -> $0.00 | M67: =IF(ISBLANK(E67),0,VLOOKUP(E67,BuckleData!$Q:$R,2,FALSE)) -> $0.00 | Q67: $0.00 | R67: $0.00 | S67: =IF(ISBLANK(B67),0,IF(U67=1,'Go-In! & Fast Eddie Buckle BD'!$G$30,IF('Order Form'!V67=1,'Go-In! & Fast Eddie Buckle BD'!$G$4,IF('Order Form'!W67=1,0,0)))) -> $0.00 | T67: =IF(ISBLANK(C67),0,IF(U67=1,'Go-In! & Fast Eddie Buckle BD'!$G$30,IF('Order Form'!V67=1,'Go-In! & Fast Eddie Buckle BD'!$G$4,IF('Order Form'!W67=1,0,0)))) -> $0.00 | U67: 0 | V67: 0 | W67: 0
C69: Price Level For Future Orders
C70: =IFERROR(VLOOKUP(D71,G94:H99,2,FALSE),"#1") -> #1 | H70: ORDER TOTAL: | I70: =SUM(I34:I53,I58:I67) -> 0 | J70: =SUM(J34:J53,J58:J67) -> $0.00
D71: =MAX(A31,ClassicBreakdown!E6,BuckleBreakdown!E6,'Go-In! & Fast Eddie Package BD'!E5,'Go-In! & Fast Eddie Buckle BD'!E5) -> 1.00
B72: Terms & Conditions: | F72: Orders are not scheduled for production until final approval from customer is received. Missing approval will delay order.
B73: 1) A 50% Deposit is required on all custom orders
B74: 2) Any custom order over $5,000.00 may require 50% deposit subject to approval.
B75: 3) RUSH ORDER: Any order that is shorter than the required lead time is subject to a rush order fee.
B77: Order Notes:
F94: #1 | G94: 1 | H94: #1
F95: #2 | G95: 2 | H95: #2
F96: #3 | G96: 3 | H96: #3
F97: #4 | G97: 4 | H97: #4
F98: #5 | G98: 5 | H98: #5
F99: #6 | G99: 6 | H99: #6

Sheet Lists (hidden)
B2: Master Lists
B4: Price Level | D4: Customization | F4: Buckles | H4: Straps | L4: Packaging | N4: BallMarkTool
B6: PriceLevel | D6: Customization | F6: Embossed | H6: Strap | J6: LogoPlacement | L6: Packaging | N6: BallMarkTool
B8: #1 | D8: Embossed | F8: (BGG7783) Go-In! Blank Gunmetal Beveled | H8: (SEL0869) Smooth Black | J8: Full (Center) | L8: Poly Carbonate Box | N8: Standard Ball Mark
B9: #2 | D9: Debossed | F9: (BGG7790) Go-In! Blank Nickel Beveled | H9: (SEL0760) Carbon Black | J9: Lower Right Corner (Reduced) | L9: Tournament Packaging | N9: Ball Mark - Etched Logo (add $3)
B10: #3 | D10: Etched | F10: (BCE7813) Classic Blank Gunmetal Beveled | H10: (SEL4683) Espresso | J10: Front logo hat only | L10: Tourney Pkg w/ Logo (add $1) | N10: Ball Mark - Color Logo (add $3)
B11: #4 | D11: ColorPrint | F11: (BCE7806) Classic Blank Nickel Beveled | H11: (SEL0753) Walnut Brown | L11: Velvet Bag (add $1) | N11: Divot Tool - Etched Logo (add $3)
B12: #5 | D12: StrapOnly | F12: (BGG5406) Go-In! Gunmetal Beveled | H12: (SEL0906) Smooth White | L12: Poly Carbonate Logo Insert (add $2) | N12: Divot Tool - Color Logo (add $3)
B13: #6 | D13: CustomRibbon | F13: (BGG4508) Go-In! Brushed Nickel Beveled | H13: (SCL3617) Deep Sea Navy Pebble Grain | L13: Satin Box - Top Logo (add $6) | N13: Mark & Tool - Etched Logo (add $6)
D14: CustomCapBlack HCN3456 | F14: (BGG5383) Go-In! Stealth Beveled | H14: (SCL3723) Smoke Grey Pebble Grain | L14: Satin Box - Top & Inside Logo (add $8) | N14: Mark & Tool - Color Logo (add $6)
D15: CustomCapNavy HCN4567 | F15: (BGF4591) Fast Eddie Matte Nickel Beveled | H15: (SCL1422) Storm Grey Pebble Grain | L15: Wood Piano Box - Inside Logo (add $25)
D16: CustomCapWhite HCN1234 | F16: (BCE5413) Classic Gunmetal Beveled | H16: (SBC7745) Braided Charcoal
D17: CustomCapGrey HCN2345 | F17: (BCE4485) Classic Brushed Nickel Beveled | H17: (SAL0913) Alligator Black (add $15)
F18: (BCE5390) Classic Stealth Beveled | H18: (SAL3747) Alligator Coffee (add $15)
F19: (BCE5949) Classic Aston Black | H19: (SNC1385) Newport Navy (less $5)
F20: (BCE5970) Classic Aston Pewter | H20: (SNC1354) Newport Black (less $5)
H21: (SNC1361) Newport Grey (less $5)
H22: Blue Ribbon
H23: Red Ribbon
H24: Navy Ribbon
D25: CustomBuckle | F25: Debossed | H25: Tan Ribbon
H26: Green Ribbon
D27: Embossed | F27: (BGG7783) Go-In! Blank Gunmetal Beveled | H27: Grey Ribbon
D28: Debossed | F28: (BGG7790) Go-In! Blank Nickel Beveled | H28: Black Ribbon
D29: Etched | F29: (BCE7813) Classic Blank Gunmetal Beveled
D30: ColorPrint | F30: (BCE7806) Classic Blank Nickel Beveled
F31: (BGG5406) Go-In! Gunmetal Beveled
F32: (BGG4508) Go-In! Brushed Nickel Beveled
F33: (BGG1576) Go-In! Brass
F34: (BGG5383) Go-In! Stealth Beveled
F35: (BGF4591) Fast Eddie Matte Nickel Beveled
F36: (BCE5413) Classic Gunmetal Beveled
F37: (BCE4485) Classic Brushed Nickel Beveled
F38: (BCE5390) Classic Stealth Beveled
F39: (BCE5949) Classic Aston Black
F40: (BCE5970) Classic Aston Pewter
F41: (BCE0241) Classic Aston Brushed Nickel
F44: Etched
F46: (BGG5406) Go-In! Gunmetal Beveled
F47: (BGG4508) Go-In! Brushed Nickel Beveled
F48: (BGG5383) Go-In! Stealth Beveled
F49: (BGF4591) Fast Eddie Matte Nickel Beveled
F50: (BCE5413) Classic Gunmetal Beveled
F51: (BCE4485) Classic Brushed Nickel Beveled
F52: (BCE5390) Classic Stealth Beveled
F53: (BCE5949) Classic Aston Black
F54: (BCE5970) Classic Aston Pewter
F55: (BCE5963) Eagle White (Color Print Only)
F56: (BCE5956) Eagle Black (Color Print Only)
F66: ColorPrint
F68: (BGG5406) Go-In! Gunmetal Beveled
F69: (BGG4508) Go-In! Brushed Nickel Beveled
F70: (BGG5383) Go-In! Stealth Beveled
F71: (BGF4591) Fast Eddie Matte Nickel Beveled
F72: (BCE5413) Classic Gunmetal Beveled
F73: (BCE4485) Classic Brushed Nickel Beveled
F74: (BCE5390) Classic Stealth Beveled
F75: (BCE5949) Classic Aston Black
F76: (BCE5970) Classic Aston Pewter
F77: (BCE5963) Eagle White (Color Print Only)
F78: (BCE5956) Eagle Black (Color Print Only)
F85: StrapOnly
F87: (BGG5406) Go-In! Gunmetal Beveled
F88: (BGG4508) Go-In! Brushed Nickel Beveled
F89: (BGG5383) Go-In! Stealth Beveled
F90: (BGF4591) Fast Eddie Matte Nickel Beveled
F91: (BCE5413) Classic Gunmetal Beveled
F92: (BCE4485) Classic Brushed Nickel Beveled
F93: (BCE5390) Classic Stealth Beveled
F94: (BCE5949) Classic Aston Black
F95: (BCE5970) Classic Aston Pewter
F96: (BCE5963) Eagle White (Color Print Only)
F97: (BCE5956) Eagle Black (Color Print Only)
F104: CustomRibbon
F106: (BCA2635) Aldrich Brass
F107: (BCM2634) Aldrich Satin Nickel
F111: CustomBuckleList
F113: (BGG7783) Go-In! Blank Gunmetal Beveled
F114: (BGG7790) Go-In! Blank Nickel Beveled
F115: (BCE7813) Classic Blank Gunmetal Beveled
F116: (BCE7806) Classic Blank Nickel Beveled
F117: (BGG5406) Go-In! Gunmetal Beveled
F118: (BGG4508) Go-In! Brushed Nickel Beveled
F119: (BGG5383) Go-In! Stealth Beveled
F120: (BGF4591) Fast Eddie Matte Nickel Beveled
F121: (BCE5413) Classic Gunmetal Beveled
F122: (BCE4485) Classic Brushed Nickel Beveled
F123: (BCE5390) Classic Stealth Beveled
F124: (BCE5949) Classic Aston Black
F125: (BCE5970) Classic Aston Pewter
F126: (BCE5963) Eagle White (Color Print Only)
F127: (BCE5956) Eagle Black (Color Print Only)
B131: =IFERROR(IF(B34=ClassicBreakdown!$B$7,ClassicBreakdown!$G$5,IF('Order Form'!B34=ClassicBreakdown!$C$7,ClassicBreakdown!$G$5,IF('Order Form'!B34=ClassicBreakdown!$J$8,ClassicBreakdown!$L$7,IF('Order Form'!B34=ClassicBreakdown!$B$33,ClassicBreakdown!$D$32,IF('Order Form'!B34=ClassicBreakdown!$J$31,ClassicBreakdown!$L$30,0))))),"MOQ")

Sheet Summary Sheet (hidden)
A1: Custom Order Form | C1: Customer Name: | D1: ='Order Form'!D13 -> 0
A2: Order Summary | C2: Order Date: | D2: =+'Order Form'!D8 -> 00:00:00
C3: Customer PO: | D3: =+'Order Form'!D9 -> 0
A5: Customization | B5: Buckle | C5: Logo Placement | D5: Item Code | E5: Qty
A6: Etched | B6: (BGG5406) Go-In! Gunmetal Beveled | C6: Full (Center) | E6: =SUMIFS('Order Form'!$I$34:$I$67,'Order Form'!$B$34:$B$67,A6,'Order Form'!$C$34:$C$67,B6,'Order Form'!$D$34:$D$67,C6) -> 0
A7: Etched | B7: (BGG4508) Go-In! Brushed Nickel Beveled | C7: Full (Center) | E7: =SUMIFS('Order Form'!$I$34:$I$67,'Order Form'!$B$34:$B$67,A7,'Order Form'!$C$34:$C$67,B7,'Order Form'!$D$34:$D$67,C7) -> 0
A8: Etched | B8: (BGG1576) Go-In! Brass | C8: Full (Center) | E8: =SUMIFS('Order Form'!$I$34:$I$67,'Order Form'!$B$34:$B$67,A8,'Order Form'!$C$34:$C$67,B8,'Order Form'!$D$34:$D$67,C8) -> 0
A9: Etched | B9: (BGG5383) Go-In! Stealth Beveled | C9: Full (Center) | E9: =SUMIFS('Order Form'!$I$34:$I$67,'Order Form'!$B$34:$B$67,A9,'Order Form'!$C$34:$C$67,B9,'Order Form'!$D$34:$D$67,C9) -> 0
A10: Etched | B10: (BGG1835) Go-In! Matte Nickel* | C10: Full (Center) | E10: =SUMIFS('Order Form'!$I$34:$I$67,'Order Form'!$B$34:$B$67,A10,'Order Form'!$C$34:$C$67,B10,'Order Form'!$D$34:$D$67,C10) -> 0
A11: Etched | B11: (BGF4591) Fast Eddie Matte Nickel Beveled | C11: Full (Center) | E11: =SUMIFS('Order Form'!$I$34:$I$67,'Order Form'!$B$34:$B$67,A11,'Order Form'!$C$34:$C$67,B11,'Order Form'!$D$34:$D$67,C11) -> 0
A12: Etched | B12: (BCE5413) Classic Gunmetal Beveled | C12: Full (Center) | E12: =SUMIFS('Order Form'!$I$34:$I$67,'Order Form'!$B$34:$B$67,A12,'Order Form'!$C$34:$C$67,B12,'Order Form'!$D$34:$D$67,C12) -> 0
A13: Etched | B13: (BCE4485) Classic Brushed Nickel Beveled | C13: Full (Center) | E13: =SUMIFS('Order Form'!$I$34:$I$67,'Order Form'!$B$34:$B$67,A13,'Order Form'!$C$34:$C$67,B13,'Order Form'!$D$34:$D$67,C13) -> 0
A14: Etched | B14: (BCE1224) Classic Brass | C14: Full (Center) | E14: =SUMIFS('Order Form'!$I$34:$I$67,'Order Form'!$B$34:$B$67,A14,'Order Form'!$C$34:$C$67,B14,'Order Form'!$D$34:$D$67,C14) -> 0
A15: Etched | B15: (BCE5390) Classic Stealth Beveled | C15: Full (Center) | E15: =SUMIFS('Order Form'!$I$34:$I$67,'Order Form'!$B$34:$B$67,A15,'Order Form'!$C$34:$C$67,B15,'Order Form'!$D$34:$D$67,C15) -> 0
A16: Etched | B16: (BCE5949) Classic Aston Black | C16: Full (Center) | E16: =SUMIFS('Order Form'!$I$34:$I$67,'Order Form'!$B$34:$B$67,A16,'Order Form'!$C$34:$C$67,B16,'Order Form'!$D$34:$D$67,C16) -> 0
A17: Etched | B17: (BCE5970) Classic Aston Pewter | C17: Full (Center) | E17: =SUMIFS('Order Form'!$I$34:$I$67,'Order Form'!$B$34:$B$67,A17,'Order Form'!$C$34:$C$67,B17,'Order Form'!$D$34:$D$67,C17) -> 0
A18: Etched | B18: (BCE0241) Classic Aston Brushed Nickel | C18: Full (Center) | E18: =SUMIFS('Order Form'!$I$34:$I$67,'Order Form'!$B$34:$B$67,A18,'Order Form'!$C$34:$C$67,B18,'Order Form'!$D$34:$D$67,C18) -> 0
A19: Etched | B19: (BCE5963) Eagle White (Color Print Only) | C19: Full (Center) | E19: =SUMIFS('Order Form'!$I$34:$I$67,'Order Form'!$B$34:$B$67,A19,'Order Form'!$C$34:$C$67,B19,'Order Form'!$D$34:$D$67,C19) -> 0
A20: Etched | B20: (BCE5956) Eagle Black (Color Print Only) | C20: Full (Center) | E20: =SUMIFS('Order Form'!$I$34:$I$67,'Order Form'!$B$34:$B$67,A20,'Order Form'!$C$34:$C$67,B20,'Order Form'!$D$34:$D$67,C20) -> 0
A21: Etched | B21: (BCE1842) Classic Matte Nickel* | C21: Full (Center) | E21: =SUMIFS('Order Form'!$I$34:$I$67,'Order Form'!$B$34:$B$67,A21,'Order Form'!$C$34:$C$67,B21,'Order Form'!$D$34:$D$67,C21) -> 0
A22: Etched | B22: (BGG5406) Go-In! Gunmetal Beveled | C22: Lower Right Corner (Reduced) | E22: =SUMIFS('Order Form'!$I$34:$I$67,'Order Form'!$B$34:$B$67,A22,'Order Form'!$C$34:$C$67,B22,'Order Form'!$D$34:$D$67,C22) -> 0
A23: Etched | B23: (BGG4508) Go-In! Brushed Nickel Beveled | C23: Lower Right Corner (Reduced) | E23: =SUMIFS('Order Form'!$I$34:$I$67,'Order Form'!$B$34:$B$67,A23,'Order Form'!$C$34:$C$67,B23,'Order Form'!$D$34:$D$67,C23) -> 0
A24: Etched | B24: (BGG1576) Go-In! Brass | C24: Lower Right Corner (Reduced) | E24: =SUMIFS('Order Form'!$I$34:$I$67,'Order Form'!$B$34:$B$67,A24,'Order Form'!$C$34:$C$67,B24,'Order Form'!$D$34:$D$67,C24) -> 0
A25: Etched | B25: (BGG5383) Go-In! Stealth Beveled | C25: Lower Right Corner (Reduced) | E25: =SUMIFS('Order Form'!$I$34:$I$67,'Order Form'!$B$34:$B$67,A25,'Order Form'!$C$34:$C$67,B25,'Order Form'!$D$34:$D$67,C25) -> 0
A26: Etched | B26: (BGG1835) Go-In! Matte Nickel* | C26: Lower Right Corner (Reduced) | E26: =SUMIFS('Order Form'!$I$34:$I$67,'Order Form'!$B$34:$B$67,A26,'Order Form'!$C$34:$C$67,B26,'Order Form'!$D$34:$D$67,C26) -> 0
A27: Etched | B27: (BGF4591) Fast Eddie Matte Nickel Beveled | C27: Lower Right Corner (Reduced) | E27: =SUMIFS('Order Form'!$I$34:$I$67,'Order Form'!$B$34:$B$67,A27,'Order Form'!$C$34:$C$67,B27,'Order Form'!$D$34:$D$67,C27) -> 0
A28: Etched | B28: (BCE5413) Classic Gunmetal Beveled | C28: Lower Right Corner (Reduced) | E28: =SUMIFS('Order Form'!$I$34:$I$67,'Order Form'!$B$34:$B$67,A28,'Order Form'!$C$34:$C$67,B28,'Order Form'!$D$34:$D$67,C28) -> 0
A29: Etched | B29: (BCE4485) Classic Brushed Nickel Beveled | C29: Lower Right Corner (Reduced) | E29: =SUMIFS('Order Form'!$I$34:$I$67,'Order Form'!$B$34:$B$67,A29,'Order Form'!$C$34:$C$67,B29,'Order Form'!$D$34:$D$67,C29) -> 0
A30: Etched | B30: (BCE1224) Classic Brass | C30: Lower Right Corner (Reduced) | E30: =SUMIFS('Order Form'!$I$34:$I$67,'Order Form'!$B$34:$B$67,A30,'Order Form'!$C$34:$C$67,B30,'Order Form'!$D$34:$D$67,C30) -> 0
A31: Etched | B31: (BCE5390) Classic Stealth Beveled | C31: Lower Right Corner (Reduced) | E31: =SUMIFS('Order Form'!$I$34:$I$67,'Order Form'!$B$34:$B$67,A31,'Order Form'!$C$34:$C$67,B31,'Order Form'!$D$34:$D$67,C31) -> 0
A32: Etched | B32: (BCE5949) Classic Aston Black | C32: Lower Right Corner (Reduced) | E32: =SUMIFS('Order Form'!$I$34:$I$67,'Order Form'!$B$34:$B$67,A32,'Order Form'!$C$34:$C$67,B32,'Order Form'!$D$34:$D$67,C32) -> 0
A33: Etched | B33: (BCE5970) Classic Aston Pewter | C33: Lower Right Corner (Reduced) | E33: =SUMIFS('Order Form'!$I$34:$I$67,'Order Form'!$B$34:$B$67,A33,'Order Form'!$C$34:$C$67,B33,'Order Form'!$D$34:$D$67,C33) -> 0
A34: Etched | B34: (BCE0241) Classic Aston Brushed Nickel | C34: Lower Right Corner (Reduced) | E34: =SUMIFS('Order Form'!$I$34:$I$67,'Order Form'!$B$34:$B$67,A34,'Order Form'!$C$34:$C$67,B34,'Order Form'!$D$34:$D$67,C34) -> 0
A35: Etched | B35: (BCE5963) Eagle White (Color Print Only) | C35: Lower Right Corner (Reduced) | E35: =SUMIFS('Order Form'!$I$34:$I$67,'Order Form'!$B$34:$B$67,A35,'Order Form'!$C$34:$C$67,B35,'Order Form'!$D$34:$D$67,C35) -> 0
A36: Etched | B36: (BCE5956) Eagle Black (Color Print Only) | C36: Lower Right Corner (Reduced) | E36: =SUMIFS('Order Form'!$I$34:$I$67,'Order Form'!$B$34:$B$67,A36,'Order Form'!$C$34:$C$67,B36,'Order Form'!$D$34:$D$67,C36) -> 0
A37: Etched | B37: (BCE1842) Classic Matte Nickel* | C37: Lower Right Corner (Reduced) | E37: =SUMIFS('Order Form'!$I$34:$I$67,'Order Form'!$B$34:$B$67,A37,'Order Form'!$C$34:$C$67,B37,'Order Form'!$D$34:$D$67,C37) -> 0
A38: Embossed | B38: (BGG5406) Go-In! Gunmetal Beveled | C38: Full (Center) | E38: =SUMIFS('Order Form'!$I$34:$I$67,'Order Form'!$B$34:$B$67,A38,'Order Form'!$C$34:$C$67,B38,'Order Form'!$D$34:$D$67,C38) -> 0
A39: Embossed | B39: (BGG4508) Go-In! Brushed Nickel Beveled | C39: Full (Center) | E39: =SUMIFS('Order Form'!$I$34:$I$67,'Order Form'!$B$34:$B$67,A39,'Order Form'!$C$34:$C$67,B39,'Order Form'!$D$34:$D$67,C39) -> 0
A40: Embossed | B40: (BGG1576) Go-In! Brass | C40: Full (Center) | E40: =SUMIFS('Order Form'!$I$34:$I$67,'Order Form'!$B$34:$B$67,A40,'Order Form'!$C$34:$C$67,B40,'Order Form'!$D$34:$D$67,C40) -> 0
A41: Embossed | B41: (BGG5383) Go-In! Stealth Beveled | C41: Full (Center) | E41: =SUMIFS('Order Form'!$I$34:$I$67,'Order Form'!$B$34:$B$67,A41,'Order Form'!$C$34:$C$67,B41,'Order Form'!$D$34:$D$67,C41) -> 0
A42: Embossed | B42: (BGG1835) Go-In! Matte Nickel* | C42: Full (Center) | E42: =SUMIFS('Order Form'!$I$34:$I$67,'Order Form'!$B$34:$B$67,A42,'Order Form'!$C$34:$C$67,B42,'Order Form'!$D$34:$D$67,C42) -> 0
A43: Embossed | B43: (BGF4591) Fast Eddie Matte Nickel Beveled | C43: Full (Center) | E43: =SUMIFS('Order Form'!$I$34:$I$67,'Order Form'!$B$34:$B$67,A43,'Order Form'!$C$34:$C$67,B43,'Order Form'!$D$34:$D$67,C43) -> 0
A44: Embossed | B44: (BCE5413) Classic Gunmetal Beveled | C44: Full (Center) | E44: =SUMIFS('Order Form'!$I$34:$I$67,'Order Form'!$B$34:$B$67,A44,'Order Form'!$C$34:$C$67,B44,'Order Form'!$D$34:$D$67,C44) -> 0
A45: Embossed | B45: (BCE4485) Classic Brushed Nickel Beveled | C45: Full (Center) | E45: =SUMIFS('Order Form'!$I$34:$I$67,'Order Form'!$B$34:$B$67,A45,'Order Form'!$C$34:$C$67,B45,'Order Form'!$D$34:$D$67,C45) -> 0
A46: Embossed | B46: (BCE1224) Classic Brass | C46: Full (Center) | E46: =SUMIFS('Order Form'!$I$34:$I$67,'Order Form'!$B$34:$B$67,A46,'Order Form'!$C$34:$C$67,B46,'Order Form'!$D$34:$D$67,C46) -> 0
A47: Embossed | B47: (BCE5390) Classic Stealth Beveled | C47: Full (Center) | E47: =SUMIFS('Order Form'!$I$34:$I$67,'Order Form'!$B$34:$B$67,A47,'Order Form'!$C$34:$C$67,B47,'Order Form'!$D$34:$D$67,C47) -> 0
A48: Embossed | B48: (BCE5949) Classic Aston Black | C48: Full (Center) | E48: =SUMIFS('Order Form'!$I$34:$I$67,'Order Form'!$B$34:$B$67,A48,'Order Form'!$C$34:$C$67,B48,'Order Form'!$D$34:$D$67,C48) -> 0
A49: Embossed | B49: (BCE5970) Classic Aston Pewter | C49: Full (Center) | E49: =SUMIFS('Order Form'!$I$34:$I$67,'Order Form'!$B$34:$B$67,A49,'Order Form'!$C$34:$C$67,B49,'Order Form'!$D$34:$D$67,C49) -> 0
A50: Embossed | B50: (BCE0241) Classic Aston Brushed Nickel | C50: Full (Center) | E50: =SUMIFS('Order Form'!$I$34:$I$67,'Order Form'!$B$34:$B$67,A50,'Order Form'!$C$34:$C$67,B50,'Order Form'!$D$34:$D$67,C50) -> 0
A51: Embossed | B51: (BCE5963) Eagle White (Color Print Only) | C51: Full (Center) | E51: =SUMIFS('Order Form'!$I$34:$I$67,'Order Form'!$B$34:$B$67,A51,'Order Form'!$C$34:$C$67,B51,'Order Form'!$D$34:$D$67,C51) -> 0
A52: Embossed | B52: (BCE5956) Eagle Black (Color Print Only) | C52: Full (Center) | E52: =SUMIFS('Order Form'!$I$34:$I$67,'Order Form'!$B$34:$B$67,A52,'Order Form'!$C$34:$C$67,B52,'Order Form'!$D$34:$D$67,C52) -> 0
A53: Embossed | B53: (BCE1842) Classic Matte Nickel* | C53: Full (Center) | E53: =SUMIFS('Order Form'!$I$34:$I$67,'Order Form'!$B$34:$B$67,A53,'Order Form'!$C$34:$C$67,B53,'Order Form'!$D$34:$D$67,C53) -> 0
A54: Embossed | B54: (BGG5406) Go-In! Gunmetal Beveled | C54: Lower Right Corner (Reduced) | E54: =SUMIFS('Order Form'!$I$34:$I$67,'Order Form'!$B$34:$B$67,A54,'Order Form'!$C$34:$C$67,B54,'Order Form'!$D$34:$D$67,C54) -> 0
A55: Embossed | B55: (BGG4508) Go-In! Brushed Nickel Beveled | C55: Lower Right Corner (Reduced) | E55: =SUMIFS('Order Form'!$I$34:$I$67,'Order Form'!$B$34:$B$67,A55,'Order Form'!$C$34:$C$67,B55,'Order Form'!$D$34:$D$67,C55) -> 0
A56: Embossed | B56: (BGG1576) Go-In! Brass | C56: Lower Right Corner (Reduced) | E56: =SUMIFS('Order Form'!$I$34:$I$67,'Order Form'!$B$34:$B$67,A56,'Order Form'!$C$34:$C$67,B56,'Order Form'!$D$34:$D$67,C56) -> 0
A57: Embossed | B57: (BGG5383) Go-In! Stealth Beveled | C57: Lower Right Corner (Reduced) | E57: =SUMIFS('Order Form'!$I$34:$I$67,'Order Form'!$B$34:$B$67,A57,'Order Form'!$C$34:$C$67,B57,'Order Form'!$D$34:$D$67,C57) -> 0
A58: Embossed | B58: (BGG1835) Go-In! Matte Nickel* | C58: Lower Right Corner (Reduced) | E58: =SUMIFS('Order Form'!$I$34:$I$67,'Order Form'!$B$34:$B$67,A58,'Order Form'!$C$34:$C$67,B58,'Order Form'!$D$34:$D$67,C58) -> 0
A59: Embossed | B59: (BGF4591) Fast Eddie Matte Nickel Beveled | C59: Lower Right Corner (Reduced) | E59: =SUMIFS('Order Form'!$I$34:$I$67,'Order Form'!$B$34:$B$67,A59,'Order Form'!$C$34:$C$67,B59,'Order Form'!$D$34:$D$67,C59) -> 0
A60: Embossed | B60: (BCE5413) Classic Gunmetal Beveled | C60: Lower Right Corner (Reduced) | E60: =SUMIFS('Order Form'!$I$34:$I$67,'Order Form'!$B$34:$B$67,A60,'Order Form'!$C$34:$C$67,B60,'Order Form'!$D$34:$D$67,C60) -> 0
A61: Embossed | B61: (BCE4485) Classic Brushed Nickel Beveled | C61: Lower Right Corner (Reduced) | E61: =SUMIFS('Order Form'!$I$34:$I$67,'Order Form'!$B$34:$B$67,A61,'Order Form'!$C$34:$C$67,B61,'Order Form'!$D$34:$D$67,C61) -> 0
A62: Embossed | B62: (BCE1224) Classic Brass | C62: Lower Right Corner (Reduced) | E62: =SUMIFS('Order Form'!$I$34:$I$67,'Order Form'!$B$34:$B$67,A62,'Order Form'!$C$34:$C$67,B62,'Order Form'!$D$34:$D$67,C62) -> 0
A63: Embossed | B63: (BCE5390) Classic Stealth Beveled | C63: Lower Right Corner (Reduced) | E63: =SUMIFS('Order Form'!$I$34:$I$67,'Order Form'!$B$34:$B$67,A63,'Order Form'!$C$34:$C$67,B63,'Order Form'!$D$34:$D$67,C63) -> 0
A64: Embossed | B64: (BCE5949) Classic Aston Black | C64: Lower Right Corner (Reduced) | E64: =SUMIFS('Order Form'!$I$34:$I$67,'Order Form'!$B$34:$B$67,A64,'Order Form'!$C$34:$C$67,B64,'Order Form'!$D$34:$D$67,C64) -> 0
A65: Embossed | B65: (BCE5970) Classic Aston Pewter | C65: Lower Right Corner (Reduced) | E65: =SUMIFS('Order Form'!$I$34:$I$67,'Order Form'!$B$34:$B$67,A65,'Order Form'!$C$34:$C$67,B65,'Order Form'!$D$34:$D$67,C65) -> 0
A66: Embossed | B66: (BCE0241) Classic Aston Brushed Nickel | C66: Lower Right Corner (Reduced) | E66: =SUMIFS('Order Form'!$I$34:$I$67,'Order Form'!$B$34:$B$67,A66,'Order Form'!$C$34:$C$67,B66,'Order Form'!$D$34:$D$67,C66) -> 0
A67: Embossed | B67: (BCE5963) Eagle White (Color Print Only) | C67: Lower Right Corner (Reduced) | E67: =SUMIFS('Order Form'!$I$34:$I$67,'Order Form'!$B$34:$B$67,A67,'Order Form'!$C$34:$C$67,B67,'Order Form'!$D$34:$D$67,C67) -> 0
A68: Embossed | B68: (BCE5956) Eagle Black (Color Print Only) | C68: Lower Right Corner (Reduced) | E68: =SUMIFS('Order Form'!$I$34:$I$67,'Order Form'!$B$34:$B$67,A68,'Order Form'!$C$34:$C$67,B68,'Order Form'!$D$34:$D$67,C68) -> 0
A69: Embossed | B69: (BCE1842) Classic Matte Nickel* | C69: Lower Right Corner (Reduced) | E69: =SUMIFS('Order Form'!$I$34:$I$67,'Order Form'!$B$34:$B$67,A69,'Order Form'!$C$34:$C$67,B69,'Order Form'!$D$34:$D$67,C69) -> 0
A70: ColorPrint | B70: (BGG5406) Go-In! Gunmetal Beveled | C70: Full (Center) | E70: =SUMIFS('Order Form'!$I$34:$I$67,'Order Form'!$B$34:$B$67,A70,'Order Form'!$C$34:$C$67,B70,'Order Form'!$D$34:$D$67,C70) -> 0
A71: ColorPrint | B71: (BGG4508) Go-In! Brushed Nickel Beveled | C71: Full (Center) | E71: =SUMIFS('Order Form'!$I$34:$I$67,'Order Form'!$B$34:$B$67,A71,'Order Form'!$C$34:$C$67,B71,'Order Form'!$D$34:$D$67,C71) -> 0
A72: ColorPrint | B72: (BGG1576) Go-In! Brass | C72: Full (Center) | E72: =SUMIFS('Order Form'!$I$34:$I$67,'Order Form'!$B$34:$B$67,A72,'Order Form'!$C$34:$C$67,B72,'Order Form'!$D$34:$D$67,C72) -> 0
A73: ColorPrint | B73: (BGG5383) Go-In! Stealth Beveled | C73: Full (Center) | E73: =SUMIFS('Order Form'!$I$34:$I$67,'Order Form'!$B$34:$B$67,A73,'Order Form'!$C$34:$C$67,B73,'Order Form'!$D$34:$D$67,C73) -> 0
A74: ColorPrint | B74: (BGG1835) Go-In! Matte Nickel* | C74: Full (Center) | E74: =SUMIFS('Order Form'!$I$34:$I$67,'Order Form'!$B$34:$B$67,A74,'Order Form'!$C$34:$C$67,B74,'Order Form'!$D$34:$D$67,C74) -> 0
A75: ColorPrint | B75: (BGF4591) Fast Eddie Matte Nickel Beveled | C75: Full (Center) | E75: =SUMIFS('Order Form'!$I$34:$I$67,'Order Form'!$B$34:$B$67,A75,'Order Form'!$C$34:$C$67,B75,'Order Form'!$D$34:$D$67,C75) -> 0
A76: ColorPrint | B76: (BCE5413) Classic Gunmetal Beveled | C76: Full (Center) | E76: =SUMIFS('Order Form'!$I$34:$I$67,'Order Form'!$B$34:$B$67,A76,'Order Form'!$C$34:$C$67,B76,'Order Form'!$D$34:$D$67,C76) -> 0
A77: ColorPrint | B77: (BCE4485) Classic Brushed Nickel Beveled | C77: Full (Center) | E77: =SUMIFS('Order Form'!$I$34:$I$67,'Order Form'!$B$34:$B$67,A77,'Order Form'!$C$34:$C$67,B77,'Order Form'!$D$34:$D$67,C77) -> 0
A78: ColorPrint | B78: (BCE1224) Classic Brass | C78: Full (Center) | E78: =SUMIFS('Order Form'!$I$34:$I$67,'Order Form'!$B$34:$B$67,A78,'Order Form'!$C$34:$C$67,B78,'Order Form'!$D$34:$D$67,C78) -> 0
A79: ColorPrint | B79: (BCE5390) Classic Stealth Beveled | C79: Full (Center) | E79: =SUMIFS('Order Form'!$I$34:$I$67,'Order Form'!$B$34:$B$67,A79,'Order Form'!$C$34:$C$67,B79,'Order Form'!$D$34:$D$67,C79) -> 0
A80: ColorPrint | B80: (BCE5949) Classic Aston Black | C80: Full (Center) | E80: =SUMIFS('Order Form'!$I$34:$I$67,'Order Form'!$B$34:$B$67,A80,'Order Form'!$C$34:$C$67,B80,'Order Form'!$D$34:$D$67,C80) -> 0
A81: ColorPrint | B81: (BCE5970) Classic Aston Pewter | C81: Full (Center) | E81: =SUMIFS('Order Form'!$I$34:$I$67,'Order Form'!$B$34:$B$67,A81,'Order Form'!$C$34:$C$67,B81,'Order Form'!$D$34:$D$67,C81) -> 0
A82: ColorPrint | B82: (BCE0241) Classic Aston Brushed Nickel | C82: Full (Center) | E82: =SUMIFS('Order Form'!$I$34:$I$67,'Order Form'!$B$34:$B$67,A82,'Order Form'!$C$34:$C$67,B82,'Order Form'!$D$34:$D$67,C82) -> 0
A83: ColorPrint | B83: (BCE5963) Eagle White (Color Print Only) | C83: Full (Center) | E83: =SUMIFS('Order Form'!$I$34:$I$67,'Order Form'!$B$34:$B$67,A83,'Order Form'!$C$34:$C$67,B83,'Order Form'!$D$34:$D$67,C83) -> 0
A84: ColorPrint | B84: (BCE5956) Eagle Black (Color Print Only) | C84: Full (Center) | E84: =SUMIFS('Order Form'!$I$34:$I$67,'Order Form'!$B$34:$B$67,A84,'Order Form'!$C$34:$C$67,B84,'Order Form'!$D$34:$D$67,C84) -> 0
A85: ColorPrint | B85: (BCE1842) Classic Matte Nickel* | C85: Full (Center) | E85: =SUMIFS('Order Form'!$I$34:$I$67,'Order Form'!$B$34:$B$67,A85,'Order Form'!$C$34:$C$67,B85,'Order Form'!$D$34:$D$67,C85) -> 0
A86: ColorPrint | B86: (BGG5406) Go-In! Gunmetal Beveled | C86: Lower Right Corner (Reduced) | E86: =SUMIFS('Order Form'!$I$34:$I$67,'Order Form'!$B$34:$B$67,A86,'Order Form'!$C$34:$C$67,B86,'Order Form'!$D$34:$D$67,C86) -> 0
A87: ColorPrint | B87: (BGG4508) Go-In! Brushed Nickel Beveled | C87: Lower Right Corner (Reduced) | E87: =SUMIFS('Order Form'!$I$34:$I$67,'Order Form'!$B$34:$B$67,A87,'Order Form'!$C$34:$C$67,B87,'Order Form'!$D$34:$D$67,C87) -> 0
A88: ColorPrint | B88: (BGG1576) Go-In! Brass | C88: Lower Right Corner (Reduced) | E88: =SUMIFS('Order Form'!$I$34:$I$67,'Order Form'!$B$34:$B$67,A88,'Order Form'!$C$34:$C$67,B88,'Order Form'!$D$34:$D$67,C88) -> 0
A89: ColorPrint | B89: (BGG5383) Go-In! Stealth Beveled | C89: Lower Right Corner (Reduced) | E89: =SUMIFS('Order Form'!$I$34:$I$67,'Order Form'!$B$34:$B$67,A89,'Order Form'!$C$34:$C$67,B89,'Order Form'!$D$34:$D$67,C89) -> 0
A90: ColorPrint | B90: (BGG1835) Go-In! Matte Nickel* | C90: Lower Right Corner (Reduced) | E90: =SUMIFS('Order Form'!$I$34:$I$67,'Order Form'!$B$34:$B$67,A90,'Order Form'!$C$34:$C$67,B90,'Order Form'!$D$34:$D$67,C90) -> 0
A91: ColorPrint | B91: (BGF4591) Fast Eddie Matte Nickel Beveled | C91: Lower Right Corner (Reduced) | E91: =SUMIFS('Order Form'!$I$34:$I$67,'Order Form'!$B$34:$B$67,A91,'Order Form'!$C$34:$C$67,B91,'Order Form'!$D$34:$D$67,C91) -> 0
A92: ColorPrint | B92: (BCE5413) Classic Gunmetal Beveled | C92: Lower Right Corner (Reduced) | E92: =SUMIFS('Order Form'!$I$34:$I$67,'Order Form'!$B$34:$B$67,A92,'Order Form'!$C$34:$C$67,B92,'Order Form'!$D$34:$D$67,C92) -> 0
A93: ColorPrint | B93: (BCE4485) Classic Brushed Nickel Beveled | C93: Lower Right Corner (Reduced) | E93: =SUMIFS('Order Form'!$I$34:$I$67,'Order Form'!$B$34:$B$67,A93,'Order Form'!$C$34:$C$67,B93,'Order Form'!$D$34:$D$67,C93) -> 0
A94: ColorPrint | B94: (BCE1224) Classic Brass | C94: Lower Right Corner (Reduced) | E94: =SUMIFS('Order Form'!$I$34:$I$67,'Order Form'!$B$34:$B$67,A94,'Order Form'!$C$34:$C$67,B94,'Order Form'!$D$34:$D$67,C94) -> 0
A95: ColorPrint | B95: (BCE5390) Classic Stealth Beveled | C95: Lower Right Corner (Reduced) | E95: =SUMIFS('Order Form'!$I$34:$I$67,'Order Form'!$B$34:$B$67,A95,'Order Form'!$C$34:$C$67,B95,'Order Form'!$D$34:$D$67,C95) -> 0
A96: ColorPrint | B96: (BCE5949) Classic Aston Black | C96: Lower Right Corner (Reduced) | E96: =SUMIFS('Order Form'!$I$34:$I$67,'Order Form'!$B$34:$B$67,A96,'Order Form'!$C$34:$C$67,B96,'Order Form'!$D$34:$D$67,C96) -> 0
A97: ColorPrint | B97: (BCE5970) Classic Aston Pewter | C97: Lower Right Corner (Reduced) | E97: =SUMIFS('Order Form'!$I$34:$I$67,'Order Form'!$B$34:$B$67,A97,'Order Form'!$C$34:$C$67,B97,'Order Form'!$D$34:$D$67,C97) -> 0
A98: ColorPrint | B98: (BCE0241) Classic Aston Brushed Nickel | C98: Lower Right Corner (Reduced) | E98: =SUMIFS('Order Form'!$I$34:$I$67,'Order Form'!$B$34:$B$67,A98,'Order Form'!$C$34:$C$67,B98,'Order Form'!$D$34:$D$67,C98) -> 0
A99: ColorPrint | B99: (BCE5963) Eagle White (Color Print Only) | C99: Lower Right Corner (Reduced) | E99: =SUMIFS('Order Form'!$I$34:$I$67,'Order Form'!$B$34:$B$67,A99,'Order Form'!$C$34:$C$67,B99,'Order Form'!$D$34:$D$67,C99) -> 0
A100: ColorPrint | B100: (BCE5956) Eagle Black (Color Print Only) | C100: Lower Right Corner (Reduced) | E100: =SUMIFS('Order Form'!$I$34:$I$67,'Order Form'!$B$34:$B$67,A100,'Order Form'!$C$34:$C$67,B100,'Order Form'!$D$34:$D$67,C100) -> 0
A101: ColorPrint | B101: (BCE1842) Classic Matte Nickel* | C101: Lower Right Corner (Reduced) | E101: =SUMIFS('Order Form'!$I$34:$I$67,'Order Form'!$B$34:$B$67,A101,'Order Form'!$C$34:$C$67,B101,'Order Form'!$D$34:$D$67,C101) -> 0
A102: Debossed | B102: (BGG5406) Go-In! Gunmetal Beveled | C102: Full (Center) | E102: =SUMIFS('Order Form'!$I$34:$I$67,'Order Form'!$B$34:$B$67,A102,'Order Form'!$C$34:$C$67,B102,'Order Form'!$D$34:$D$67,C102) -> 0
A103: Debossed | B103: (BGG4508) Go-In! Brushed Nickel Beveled | C103: Full (Center) | E103: =SUMIFS('Order Form'!$I$34:$I$67,'Order Form'!$B$34:$B$67,A103,'Order Form'!$C$34:$C$67,B103,'Order Form'!$D$34:$D$67,C103) -> 0
A104: Debossed | B104: (BGG1576) Go-In! Brass | C104: Full (Center) | E104: =SUMIFS('Order Form'!$I$34:$I$67,'Order Form'!$B$34:$B$67,A104,'Order Form'!$C$34:$C$67,B104,'Order Form'!$D$34:$D$67,C104) -> 0
A105: Debossed | B105: (BGG5383) Go-In! Stealth Beveled | C105: Full (Center) | E105: =SUMIFS('Order Form'!$I$34:$I$67,'Order Form'!$B$34:$B$67,A105,'Order Form'!$C$34:$C$67,B105,'Order Form'!$D$34:$D$67,C105) -> 0
A106: Debossed | B106: (BGG1835) Go-In! Matte Nickel* | C106: Full (Center) | E106: =SUMIFS('Order Form'!$I$34:$I$67,'Order Form'!$B$34:$B$67,A106,'Order Form'!$C$34:$C$67,B106,'Order Form'!$D$34:$D$67,C106) -> 0
A107: Debossed | B107: (BGF4591) Fast Eddie Matte Nickel Beveled | C107: Full (Center) | E107: =SUMIFS('Order Form'!$I$34:$I$67,'Order Form'!$B$34:$B$67,A107,'Order Form'!$C$34:$C$67,B107,'Order Form'!$D$34:$D$67,C107) -> 0
A108: Debossed | B108: (BCE5413) Classic Gunmetal Beveled | C108: Full (Center) | E108: =SUMIFS('Order Form'!$I$34:$I$67,'Order Form'!$B$34:$B$67,A108,'Order Form'!$C$34:$C$67,B108,'Order Form'!$D$34:$D$67,C108) -> 0
A109: Debossed | B109: (BCE4485) Classic Brushed Nickel Beveled | C109: Full (Center) | E109: =SUMIFS('Order Form'!$I$34:$I$67,'Order Form'!$B$34:$B$67,A109,'Order Form'!$C$34:$C$67,B109,'Order Form'!$D$34:$D$67,C109) -> 0
A110: Debossed | B110: (BCE1224) Classic Brass | C110: Full (Center) | E110: =SUMIFS('Order Form'!$I$34:$I$67,'Order Form'!$B$34:$B$67,A110,'Order Form'!$C$34:$C$67,B110,'Order Form'!$D$34:$D$67,C110) -> 0
A111: Debossed | B111: (BCE5390) Classic Stealth Beveled | C111: Full (Center) | E111: =SUMIFS('Order Form'!$I$34:$I$67,'Order Form'!$B$34:$B$67,A111,'Order Form'!$C$34:$C$67,B111,'Order Form'!$D$34:$D$67,C111) -> 0
A112: Debossed | B112: (BCE5949) Classic Aston Black | C112: Full (Center) | E112: =SUMIFS('Order Form'!$I$34:$I$67,'Order Form'!$B$34:$B$67,A112,'Order Form'!$C$34:$C$67,B112,'Order Form'!$D$34:$D$67,C112) -> 0
A113: Debossed | B113: (BCE5970) Classic Aston Pewter | C113: Full (Center) | E113: =SUMIFS('Order Form'!$I$34:$I$67,'Order Form'!$B$34:$B$67,A113,'Order Form'!$C$34:$C$67,B113,'Order Form'!$D$34:$D$67,C113) -> 0
A114: Debossed | B114: (BCE0241) Classic Aston Brushed Nickel | C114: Full (Center) | E114: =SUMIFS('Order Form'!$I$34:$I$67,'Order Form'!$B$34:$B$67,A114,'Order Form'!$C$34:$C$67,B114,'Order Form'!$D$34:$D$67,C114) -> 0
A115: Debossed | B115: (BCE5963) Eagle White (Color Print Only) | C115: Full (Center) | E115: =SUMIFS('Order Form'!$I$34:$I$67,'Order Form'!$B$34:$B$67,A115,'Order Form'!$C$34:$C$67,B115,'Order Form'!$D$34:$D$67,C115) -> 0
A116: Debossed | B116: (BCE5956) Eagle Black (Color Print Only) | C116: Full (Center) | E116: =SUMIFS('Order Form'!$I$34:$I$67,'Order Form'!$B$34:$B$67,A116,'Order Form'!$C$34:$C$67,B116,'Order Form'!$D$34:$D$67,C116) -> 0
A117: Debossed | B117: (BCE1842) Classic Matte Nickel* | C117: Full (Center) | E117: =SUMIFS('Order Form'!$I$34:$I$67,'Order Form'!$B$34:$B$67,A117,'Order Form'!$C$34:$C$67,B117,'Order Form'!$D$34:$D$67,C117) -> 0
A118: Debossed | B118: (BGG5406) Go-In! Gunmetal Beveled | C118: Lower Right Corner (Reduced) | E118: =SUMIFS('Order Form'!$I$34:$I$67,'Order Form'!$B$34:$B$67,A118,'Order Form'!$C$34:$C$67,B118,'Order Form'!$D$34:$D$67,C118) -> 0
A119: Debossed | B119: (BGG4508) Go-In! Brushed Nickel Beveled | C119: Lower Right Corner (Reduced) | E119: =SUMIFS('Order Form'!$I$34:$I$67,'Order Form'!$B$34:$B$67,A119,'Order Form'!$C$34:$C$67,B119,'Order Form'!$D$34:$D$67,C119) -> 0
A120: Debossed | B120: (BGG1576) Go-In! Brass | C120: Lower Right Corner (Reduced) | E120: =SUMIFS('Order Form'!$I$34:$I$67,'Order Form'!$B$34:$B$67,A120,'Order Form'!$C$34:$C$67,B120,'Order Form'!$D$34:$D$67,C120) -> 0
A121: Debossed | B121: (BGG5383) Go-In! Stealth Beveled | C121: Lower Right Corner (Reduced) | E121: =SUMIFS('Order Form'!$I$34:$I$67,'Order Form'!$B$34:$B$67,A121,'Order Form'!$C$34:$C$67,B121,'Order Form'!$D$34:$D$67,C121) -> 0
A122: Debossed | B122: (BGG1835) Go-In! Matte Nickel* | C122: Lower Right Corner (Reduced) | E122: =SUMIFS('Order Form'!$I$34:$I$67,'Order Form'!$B$34:$B$67,A122,'Order Form'!$C$34:$C$67,B122,'Order Form'!$D$34:$D$67,C122) -> 0
A123: Debossed | B123: (BGF4591) Fast Eddie Matte Nickel Beveled | C123: Lower Right Corner (Reduced) | E123: =SUMIFS('Order Form'!$I$34:$I$67,'Order Form'!$B$34:$B$67,A123,'Order Form'!$C$34:$C$67,B123,'Order Form'!$D$34:$D$67,C123) -> 0
A124: Debossed | B124: (BCE5413) Classic Gunmetal Beveled | C124: Lower Right Corner (Reduced) | E124: =SUMIFS('Order Form'!$I$34:$I$67,'Order Form'!$B$34:$B$67,A124,'Order Form'!$C$34:$C$67,B124,'Order Form'!$D$34:$D$67,C124) -> 0
A125: Debossed | B125: (BCE4485) Classic Brushed Nickel Beveled | C125: Lower Right Corner (Reduced) | E125: =SUMIFS('Order Form'!$I$34:$I$67,'Order Form'!$B$34:$B$67,A125,'Order Form'!$C$34:$C$67,B125,'Order Form'!$D$34:$D$67,C125) -> 0
A126: Debossed | B126: (BCE1224) Classic Brass | C126: Lower Right Corner (Reduced) | E126: =SUMIFS('Order Form'!$I$34:$I$67,'Order Form'!$B$34:$B$67,A126,'Order Form'!$C$34:$C$67,B126,'Order Form'!$D$34:$D$67,C126) -> 0
A127: Debossed | B127: (BCE5390) Classic Stealth Beveled | C127: Lower Right Corner (Reduced) | E127: =SUMIFS('Order Form'!$I$34:$I$67,'Order Form'!$B$34:$B$67,A127,'Order Form'!$C$34:$C$67,B127,'Order Form'!$D$34:$D$67,C127) -> 0
A128: Debossed | B128: (BCE5949) Classic Aston Black | C128: Lower Right Corner (Reduced) | E128: =SUMIFS('Order Form'!$I$34:$I$67,'Order Form'!$B$34:$B$67,A128,'Order Form'!$C$34:$C$67,B128,'Order Form'!$D$34:$D$67,C128) -> 0
A129: Debossed | B129: (BCE5970) Classic Aston Pewter | C129: Lower Right Corner (Reduced) | E129: =SUMIFS('Order Form'!$I$34:$I$67,'Order Form'!$B$34:$B$67,A129,'Order Form'!$C$34:$C$67,B129,'Order Form'!$D$34:$D$67,C129) -> 0
A130: Debossed | B130: (BCE0241) Classic Aston Brushed Nickel | C130: Lower Right Corner (Reduced) | E130: =SUMIFS('Order Form'!$I$34:$I$67,'Order Form'!$B$34:$B$67,A130,'Order Form'!$C$34:$C$67,B130,'Order Form'!$D$34:$D$67,C130) -> 0
A131: Debossed | B131: (BCE5963) Eagle White (Color Print Only) | C131: Lower Right Corner (Reduced) | E131: =SUMIFS('Order Form'!$I$34:$I$67,'Order Form'!$B$34:$B$67,A131,'Order Form'!$C$34:$C$67,B131,'Order Form'!$D$34:$D$67,C131) -> 0
A132: Debossed | B132: (BCE5956) Eagle Black (Color Print Only) | C132: Lower Right Corner (Reduced) | E132: =SUMIFS('Order Form'!$I$34:$I$67,'Order Form'!$B$34:$B$67,A132,'Order Form'!$C$34:$C$67,B132,'Order Form'!$D$34:$D$67,C132) -> 0
A133: Debossed | B133: (BCE1842) Classic Matte Nickel* | C133: Lower Right Corner (Reduced) | E133: =SUMIFS('Order Form'!$I$34:$I$67,'Order Form'!$B$34:$B$67,A133,'Order Form'!$C$34:$C$67,B133,'Order Form'!$D$34:$D$67,C133) -> 0
A134: CustomRibbon | B134: Aldrich Brass | C134: Full (Center) | E134: =SUMIFS('Order Form'!$I$34:$I$67,'Order Form'!$B$34:$B$67,A134,'Order Form'!$C$34:$C$67,B134,'Order Form'!$D$34:$D$67,C134) -> 0
A135: CustomRibbon | B135: Aldrich Brass | C135: Lower Right Corner (Reduced) | E135: =SUMIFS('Order Form'!$I$34:$I$67,'Order Form'!$B$34:$B$67,A135,'Order Form'!$C$34:$C$67,B135,'Order Form'!$D$34:$D$67,C135) -> 0
A136: CustomRibbon | B136: Aldrich Matte Nickel | C136: Full (Center) | E136: =SUMIFS('Order Form'!$I$34:$I$67,'Order Form'!$B$34:$B$67,A136,'Order Form'!$C$34:$C$67,B136,'Order Form'!$D$34:$D$67,C136) -> 0
A137: CustomRibbon | B137: Aldrich Matte Nickel | C137: Lower Right Corner (Reduced) | E137: =SUMIFS('Order Form'!$I$34:$I$67,'Order Form'!$B$34:$B$67,A137,'Order Form'!$C$34:$C$67,B137,'Order Form'!$D$34:$D$67,C137) -> 0
C138: Strap | D138: Item Code | E138: Qty
C139: (SEL0869) Smooth Black | E139: =SUMIF('Order Form'!$E$34:$E$53,C139,'Order Form'!$I$34:$I$53) -> 0
C140: (SEL0760) Carbon Black | E140: =SUMIF('Order Form'!$E$34:$E$53,C140,'Order Form'!$I$34:$I$53) -> 0
C141: (SEL4683) Espresso | E141: =SUMIF('Order Form'!$E$34:$E$53,C141,'Order Form'!$I$34:$I$53) -> 0
C142: (SEL0753) Walnut Brown | E142: =SUMIF('Order Form'!$E$34:$E$53,C142,'Order Form'!$I$34:$I$53) -> 0
C143: (SEL0906) Smooth White | E143: =SUMIF('Order Form'!$E$34:$E$53,C143,'Order Form'!$I$34:$I$53) -> 0
C144: (SCL3617) Deep Sea Navy Pebble Grain | E144: =SUMIF('Order Form'!$E$34:$E$53,C144,'Order Form'!$I$34:$I$53) -> 0
C145: (SCL3723) Smoke Grey Pebble Grain | E145: =SUMIF('Order Form'!$E$34:$E$53,C145,'Order Form'!$I$34:$I$53) -> 0
C146: (SCL1422) Storm Grey Pebble Grain | E146: =SUMIF('Order Form'!$E$34:$E$53,C146,'Order Form'!$I$34:$I$53) -> 0
C147: (SAL0913) Alligator Black (add $15) | E147: =SUMIF('Order Form'!$E$34:$E$53,C147,'Order Form'!$I$34:$I$53) -> 0
C148: (SAL3747) Alligator Coffee (add $15) | E148: =SUMIF('Order Form'!$E$34:$E$53,C148,'Order Form'!$I$34:$I$53) -> 0
C149: (SNC5123) Newport Navy (less $5) | E149: =SUMIF('Order Form'!$E$34:$E$53,C149,'Order Form'!$I$34:$I$53) -> 0
C150: (SNC5109) Newport Black (less $5) | E150: =SUMIF('Order Form'!$E$34:$E$53,C150,'Order Form'!$I$34:$I$53) -> 0
C151: (SNC5130) Newport Tan (less $5) | E151: =SUMIF('Order Form'!$E$34:$E$53,C151,'Order Form'!$I$34:$I$53) -> 0
C152: (SNC5116) Newport Grey (less $5) | E152: =SUMIF('Order Form'!$E$34:$E$53,C152,'Order Form'!$I$34:$I$53) -> 0
C153: Blue Ribbon | E153: =SUMIF('Order Form'!$E$34:$E$53,C153,'Order Form'!$I$34:$I$53) -> 0
C154: Red Ribbon | E154: =SUMIF('Order Form'!$E$34:$E$53,C154,'Order Form'!$I$34:$I$53) -> 0
C155: Navy Ribbon | E155: =SUMIF('Order Form'!$E$34:$E$53,C155,'Order Form'!$I$34:$I$53) -> 0
C156: Tan Ribbon | E156: =SUMIF('Order Form'!$E$34:$E$53,C156,'Order Form'!$I$34:$I$53) -> 0
C157: Green Ribbon | E157: =SUMIF('Order Form'!$E$34:$E$53,C157,'Order Form'!$I$34:$I$53) -> 0
C158: Grey Ribbon (new for 2020) | E158: =SUMIF('Order Form'!$E$34:$E$53,C158,'Order Form'!$I$34:$I$53) -> 0
C159: Presentation Box | D159: Item Code | E159: Qty
C160: Poly Carbonate Box | D160: 100B | E160: =SUMIF('Order Form'!$F$34:$F$53,C160,'Order Form'!$I$34:$I$53) -> 0
C161: Tournament Packaging | E161: =SUMIF('Order Form'!$F$34:$F$53,C161,'Order Form'!$I$34:$I$53) -> 0
C162: Tourney Pkg w/ Logo (add $1) | E162: =SUMIF('Order Form'!$F$34:$F$53,C162,'Order Form'!$I$34:$I$53) -> 0
C163: Velvet Bag (add $1) | D163: Velvet | E163: =SUMIF('Order Form'!$F$34:$F$53,C163,'Order Form'!$I$34:$I$53) -> 0
C164: Poly Carbonate Logo Insert (add $2) | D164: 100B | E164: =SUMIF('Order Form'!$F$34:$F$53,C164,'Order Form'!$I$34:$I$53) -> 0
C165: Satin Box - Top Logo (add $6) | D165: Gift Box | E165: =SUMIF('Order Form'!$F$34:$F$53,C165,'Order Form'!$I$34:$I$53) -> 0
C166: Satin Box - Top & Inside Logo (add $8) | D166: Gift Box | E166: =SUMIF('Order Form'!$F$34:$F$53,C166,'Order Form'!$I$34:$I$53) -> 0
C167: Wood Piano Box - Inside Logo (add $25) | D167: 101B | E167: =SUMIF('Order Form'!$F$34:$F$53,C167,'Order Form'!$I$34:$I$53) -> 0
C168: Ball Mark / Tool | E168: Qty
C169: Standard Ball Mark | E169: =SUMIF('Order Form'!$G$34:$G$53,C169,'Order Form'!$I$34:$I$53) -> 0
C170: Ball Mark - Etched Logo (add $3) | E170: =SUMIF('Order Form'!$G$34:$G$53,C170,'Order Form'!$I$34:$I$53) -> 0
C171: Ball Mark - Color Logo (add $3) | E171: =SUMIF('Order Form'!$G$34:$G$53,C171,'Order Form'!$I$34:$I$53) -> 0
C172: Divot Tool - Etched Logo (add $3) | E172: =SUMIF('Order Form'!$G$34:$G$53,C172,'Order Form'!$I$34:$I$53) -> 0
C173: Divot Tool - Color Logo (add $3) | E173: =SUMIF('Order Form'!$G$34:$G$53,C173,'Order Form'!$I$34:$I$53) -> 0
C174: Mark & Tool - Etched Logo (add $6) | E174: =SUMIF('Order Form'!$G$34:$G$53,C174,'Order Form'!$I$34:$I$53) -> 0
C175: Mark & Tool - Color Logo (add $6) | E175: =SUMIF('Order Form'!$G$34:$G$53,C175,'Order Form'!$I$34:$I$53) -> 0

Sheet ClassicData (hidden)
E3: classic
J4: Embossed / Debossed | M4: Polished Plate | P4: Custom Ribbon | R4: Custom Caps
G5: Etched / Printed | J5: Price Level | M5: Price Level | P5: Price Level | R5: Price Level | U5: Strap | Y5: Presentation Box | AB5: BM / Tool | AF5: StrapOnlyPricing
B6: Price Levels | D6: Price Sumamry | G6: Price Level | J6: Qty | K6: Price | M6: Qty | N6: Price | P6: Qty | Q6: Price | R6: Qty | S6: Price | U6: Price Adjust | Y6: Price Adjust | AB6: Price Adjust | AF6: Price Adjust | AO6: Strap Only OLD
B8: #1 | D8: #1 | E8: 38.00 | G8: 1 | H8: #1 | J8: 50 | K8: 49.00 | M8: 200 | N8: 33.00 | P8: 50 | Q8: 35.00 | R8: 12 | S8: 15.00 | U8: (SEL0869) Smooth Black | V8: 0 | Y8: Poly Carbonate Box | Z8: 0 | AB8: Standard Ball Mark | AC8: 0 | AF8: (SEL0869) Smooth Black | AG8: 20.00 | AJ8: #1 | AK8: 1-23 | AO8: (SEL0760) Carbon Black | AP8: 20.00
B9: #2 | D9: #2 | E9: 36.00 | G9: =+G8+1 -> 2 | H9: #1 | J9: 51 | K9: 49.00 | M9: 201 | N9: 33.00 | P9: 51 | Q9: 35.00 | R9: 13 | S9: 15.00 | U9: (SEL0760) Carbon Black | V9: 0 | Y9: Tournament Packaging | Z9: 0 | AB9: Ball Mark - Etched Logo (add $3) | AC9: 3.00 | AF9: (SEL0760) Carbon Black | AG9: 20.00 | AJ9: #2 | AK9: 24-99 | AO9: (SEL0845) Carbon White | AP9: 20.00
B10: #3 | D10: #3 | E10: 33.00 | G10: =+G9+1 -> 3 | H10: #1 | J10: 52 | K10: 49.00 | M10: 202 | N10: 33.00 | P10: 52 | Q10: 35.00 | R10: 14 | S10: 15.00 | U10: (SEL4683) Espresso | V10: 0 | Y10: Tourney Pkg w/ Logo (add $1) | Z10: 1.00 | AB10: Ball Mark - Color Logo (add $3) | AC10: 3.00 | AF10: (SEL4683) Espresso | AG10: 20.00 | AJ10: #3 | AK10: 100-199 | AO10: (SCL4270) Deep Sea | AP10: 20.00
B11: #4 | D11: #4 | E11: 31.00 | G11: 4 | H11: #1 | J11: 53 | K11: 49.00 | M11: 203 | N11: 33.00 | P11: 53 | Q11: 35.00 | R11: 15 | S11: 15.00 | U11: (SEL0753) Walnut Brown | V11: 0 | Y11: Velvet Bag (add $1) | Z11: 1.00 | AB11: Divot Tool - Etched Logo (add $3) | AC11: 3.00 | AF11: (SEL0753) Walnut Brown | AG11: 20.00 | AJ11: #4 | AK11: 200-249 | AO11: (SCL0715) Dublin Green | AP11: 20.00
B12: #5 | D12: #5 | E12: 29.00 | G12: 5 | H12: #1 | J12: 54 | K12: 49.00 | M12: 204 | N12: 33.00 | P12: 54 | Q12: 35.00 | R12: 16 | S12: 15.00 | U12: (SEL0906) Smooth White | V12: 0 | Y12: Poly Carbonate Logo Insert (add $2) | Z12: 2.00 | AB12: Divot Tool - Color Logo (add $3) | AC12: 3.00 | AF12: (SEL0906) Smooth White | AG12: 20.00 | AJ12: #5 | AK12: 250-349 | AO12: (SEL0852) Ebony Black | AP12: 20.00
B13: #6 | D13: #6 | E13: 28.00 | G13: 6 | H13: #1 | J13: 55 | K13: 49.00 | M13: 205 | N13: 33.00 | P13: 55 | Q13: 35.00 | R13: 17 | S13: 15.00 | U13: (SCL3617) Deep Sea Navy Pebble Grain | V13: 0 | Y13: Satin Box - Top Logo (add $6) | Z13: 6.00 | AB13: Mark & Tool - Etched Logo (add $6) | AC13: 6.00 | AF13: (SCL3617) Deep Sea Navy Pebble Grain | AG13: 20.00 | AJ13: #6 | AK13: 350+ | AO13: (SEL4683) Espresso | AP13: 20.00
G14: 7 | H14: #1 | J14: 56 | K14: 49.00 | M14: 206 | N14: 33.00 | P14: 56 | Q14: 35.00 | R14: 18 | S14: 15.00 | U14: (SCL3723) Smoke Grey Pebble Grain | V14: 0 | Y14: Satin Box - Top & Inside Logo (add $8) | Z14: 8.00 | AB14: Mark & Tool - Color Logo (add $6) | AC14: 6.00 | AF14: (SCL3723) Smoke Grey Pebble Grain | AG14: 20.00 | AO14: (SEL0890) Grid | AP14: 20.00
G15: 8 | H15: #1 | J15: 57 | K15: 49.00 | M15: 207 | N15: 33.00 | P15: 57 | Q15: 35.00 | R15: 19 | S15: 15.00 | U15: (SCL1422) Storm Grey Pebble Grain | V15: 0 | Y15: Wood Piano Box - Inside Logo (add $25) | Z15: 25.00 | AF15: (SCL1422) Storm Grey Pebble Grain | AG15: 20.00 | AO15: (SCL0739) Lava Orange | AP15: 20.00
B16: Cap Price (each) | E16: 15.00 | G16: 9 | H16: #1 | J16: 58 | K16: 49.00 | M16: 208 | N16: 33.00 | P16: 58 | Q16: 35.00 | R16: 20 | S16: 15.00 | U16: (SAL0913) Alligator Black (add $15) | V16: 15.00 | AF16: (SAL0913) Alligator Black (add $15) | AG16: 35.00 | AO16: (SZL4843) Patriot | AP16: 20.00
G17: 10 | H17: #1 | J17: 59 | K17: 49.00 | M17: 209 | N17: 33.00 | P17: 59 | Q17: 35.00 | R17: 21 | S17: 15.00 | U17: (SAL3747) Alligator Coffee (add $15) | V17: 15.00 | AF17: (SAL3747) Alligator Coffee (add $15) | AG17: 35.00 | AO17: (SCL4188) Pitch Black | AP17: 20.00
G18: 11 | H18: #1 | J18: 60 | K18: 49.00 | M18: 210 | N18: 33.00 | P18: 60 | Q18: 35.00 | R18: 22 | S18: 15.00 | U18: (SNC1385) Newport Navy (less $5) | V18: (5.00) | AF18: (SNC5123) Newport Navy (less $5) | AG18: 15.00 | AO18: (SEL4171) Smoke Grey | AP18: 20.00
G19: 12 | H19: #1 | J19: 61 | K19: 49.00 | M19: 211 | N19: 33.00 | P19: 61 | Q19: 35.00 | R19: 23 | S19: 15.00 | U19: (SNC1354) Newport Black (less $5) | V19: (5.00) | AF19: (SNC5109) Newport Black (less $5) | AG19: 15.00 | AO19: (SEL0869) Smooth Black | AP19: 20.00
G20: 13 | H20: #1 | J20: 62 | K20: 49.00 | M20: 212 | N20: 33.00 | P20: 62 | Q20: 35.00 | R20: 24 | S20: 15.00 | U20: (SNC1361) Newport Grey (less $5) | V20: (5.00) | AF20: (SNC5130) Newport Tan (less $5) | AG20: 15.00 | AO20: (SEL0906) Smooth White | AP20: 20.00
G21: 14 | H21: #1 | J21: 63 | K21: 49.00 | M21: 213 | N21: 33.00 | P21: 63 | Q21: 35.00 | R21: 25 | S21: 15.00 | U21: (SBC7745) Braided Charcoal | V21: 0 | AF21: (SNC1750) Newport Grey (less $5) | AG21: 15.00 | AO21: (SEL4263) Stainless Black | AP21: 20.00
G22: 15 | H22: #1 | J22: 64 | K22: 49.00 | M22: 214 | N22: 33.00 | P22: 64 | Q22: 35.00 | R22: 26 | S22: 15.00 | U22: Blue Ribbon | V22: 0 | AF22: Blue Ribbon | AG22: 20.00 | AO22: (SEL6021) Stainless Grey | AP22: 20.00
G23: 16 | H23: #1 | J23: 65 | K23: 49.00 | M23: 215 | N23: 33.00 | P23: 65 | Q23: 35.00 | R23: 27 | S23: 15.00 | U23: Red Ribbon | V23: 0 | AF23: Red Ribbon | AG23: 20.00 | AO23: (SCL4744) Storm Grey | AP23: 20.00
G24: 17 | H24: #1 | J24: 66 | K24: 49.00 | M24: 216 | N24: 33.00 | P24: 66 | Q24: 35.00 | R24: 28 | S24: 15.00 | U24: Navy Ribbon | V24: 0 | AF24: Navy Ribbon | AG24: 20.00 | AO24: (SCL4195) Sunday Red | AP24: 20.00
G25: 18 | H25: #1 | J25: 67 | K25: 49.00 | M25: 217 | N25: 33.00 | P25: 67 | Q25: 35.00 | R25: 29 | S25: 15.00 | U25: Tan Ribbon | V25: 0 | AF25: Tan Ribbon | AG25: 20.00 | AO25: (SCL7042) Sunny Yellow | AP25: 20.00
G26: 19 | H26: #1 | J26: 68 | K26: 49.00 | M26: 218 | N26: 33.00 | P26: 68 | Q26: 35.00 | R26: 30 | S26: 15.00 | U26: Green Ribbon | V26: 0 | AF26: Green Ribbon | AG26: 20.00 | AO26: (SEL0883) Tex | AP26: 20.00
G27: 20 | H27: #1 | J27: 69 | K27: 49.00 | M27: 219 | N27: 33.00 | P27: 69 | Q27: 35.00 | R27: 31 | S27: 15.00 | U27: Grey Ribbon | V27: 0 | AF27: Grey Ribbon | AG27: 20.00 | AO27: (SEL0753) Walnut Brown | AP27: 20.00
G28: 21 | H28: #1 | J28: 70 | K28: 49.00 | M28: 220 | N28: 33.00 | P28: 70 | Q28: 35.00 | R28: 32 | S28: 15.00 | U28: Black Ribbon | V28: 0 | AF28: Black Ribbon | AG28: 20.00 | AO28: (SCL4201) Winner White | AP28: 20.00
G29: 22 | H29: #1 | J29: 71 | K29: 49.00 | M29: 221 | N29: 33.00 | P29: 71 | Q29: 35.00 | R29: 33 | S29: 15.00 | U29: Grey Ribbon | V29: 0 | AF29: Grey Ribbon (new for 2020) | AG29: 20.00 | AO29: (SMC4232) Hampton - Deerwood (less $5) | AP29: 20.00
G30: 23 | H30: #1 | J30: 72 | K30: 49.00 | M30: 222 | N30: 33.00 | P30: 72 | Q30: 35.00 | R30: 34 | S30: 15.00 | U30: Black Ribbon | V30: 0 | AF30: Black Ribbon (new for 2020) | AG30: 20.00 | AO30: (SMC4249) Hampton - Guinness (less $5) | AP30: 20.00
G31: 24 | H31: #2 | J31: 73 | K31: 49.00 | M31: 223 | N31: 33.00 | P31: 73 | Q31: 35.00 | R31: 35 | S31: 15.00 | AO31: (SMC4256) Hampton - Nautical (less $5) | AP31: 20.00
G32: 25 | H32: #2 | J32: 74 | K32: 49.00 | M32: 224 | N32: 33.00 | P32: 74 | Q32: 35.00 | R32: 36 | S32: 15.00 | AO32: (SNC6205) Newport - Admiral (less $5) | AP32: 15.00
G33: 26 | H33: #2 | J33: 75 | K33: 49.00 | M33: 225 | N33: 33.00 | P33: 75 | Q33: 35.00 | R33: 37 | S33: 15.00 | AO33: (SNC0838) Newport - Americana (less $5) | AP33: 10.00
G34: 27 | H34: #2 | J34: 76 | K34: 49.00 | M34: 226 | N34: 33.00 | P34: 76 | Q34: 35.00 | R34: 38 | S34: 15.00 | AO34: (SNC3624) Newport - Black (less $5) | AP34: 10.00
G35: 28 | H35: #2 | J35: 77 | K35: 49.00 | M35: 227 | N35: 33.00 | P35: 77 | Q35: 35.00 | R35: 39 | S35: 15.00 | AO35: (SNC4218) Newport - Cedar (less $5) | AP35: 10.00
G36: 29 | H36: #2 | J36: 78 | K36: 49.00 | M36: 228 | N36: 33.00 | P36: 78 | Q36: 35.00 | R36: 40 | S36: 15.00 | AO36: (SNC6182) Newport - Oliver (less $5) | AP36: 15.00
G37: 30 | H37: #2 | J37: 79 | K37: 49.00 | M37: 229 | N37: 33.00 | P37: 79 | Q37: 35.00 | R37: 41 | S37: 15.00 | AO37: (SNC6199) Newport - Pacific (less $5) | AP37: 15.00
G38: 31 | H38: #2 | J38: 80 | K38: 49.00 | M38: 230 | N38: 33.00 | P38: 80 | Q38: 35.00 | R38: 42 | S38: 15.00 | AO38: (SNC6175) Newport - Snow (less $5) | AP38: 15.00
G39: 32 | H39: #2 | J39: 81 | K39: 49.00 | M39: 231 | N39: 33.00 | P39: 81 | Q39: 35.00 | R39: 43 | S39: 15.00 | AO39: (SAL0913) Alligator Black (add $20) | AP39: 35.00
G40: 33 | H40: #2 | J40: 82 | K40: 49.00 | M40: 232 | N40: 33.00 | P40: 82 | Q40: 35.00 | R40: 44 | S40: 15.00 | AO40: (SAL3747) Alligator Coffee (add $20) | AP40: 35.00
G41: 34 | H41: #2 | J41: 83 | K41: 49.00 | M41: 233 | N41: 33.00 | P41: 83 | Q41: 35.00 | R41: 45 | S41: 15.00 | AO41: (SAL7066) Alligator Grey (add $20) | AP41: 35.00
G42: 35 | H42: #2 | J42: 84 | K42: 49.00 | M42: 234 | N42: 33.00 | P42: 84 | Q42: 35.00 | R42: 46 | S42: 15.00 | AO42: (SAL0944) Alligator Navy (add $20) | AP42: 35.00
G43: 36 | H43: #2 | J43: 85 | K43: 49.00 | M43: 235 | N43: 33.00 | P43: 85 | Q43: 35.00 | R43: 47 | S43: 15.00 | AO43: (SAL0951) Alligator Tan (add $20) | AP43: 35.00
G44: 37 | H44: #2 | J44: 86 | K44: 49.00 | M44: 236 | N44: 33.00 | P44: 86 | Q44: 35.00 | R44: 48 | S44: 15.00 | AO44: (SAL0821) Alligator Burgundy (add $20) | AP44: 35.00
G45: 38 | H45: #2 | J45: 87 | K45: 49.00 | M45: 237 | N45: 33.00 | P45: 87 | Q45: 35.00 | R45: 49 | S45: 15.00 | AO45: (SAL0968) Alligator White (add $20) | AP45: 35.00
G46: 39 | H46: #2 | J46: 88 | K46: 49.00 | M46: 238 | N46: 33.00 | P46: 88 | Q46: 35.00 | R46: 50 | S46: 15.00 | AO46: (SLL0784) Lizard Black (add $20) | AP46: 35.00
G47: 40 | H47: #2 | J47: 89 | K47: 49.00 | M47: 239 | N47: 33.00 | P47: 89 | Q47: 35.00 | R47: 51 | S47: 15.00 | AO47: (SLL3648) Lizard Brown (add $20) | AP47: 35.00
G48: 41 | H48: #2 | J48: 90 | K48: 49.00 | M48: 240 | N48: 33.00 | P48: 90 | Q48: 35.00 | R48: 52 | S48: 15.00 | AO48: (SLL3655) Lizard White (add $20) | AP48: 35.00
G49: 42 | H49: #2 | J49: 91 | K49: 49.00 | M49: 241 | N49: 33.00 | P49: 91 | Q49: 35.00 | R49: 53 | S49: 15.00 | AO49: (WCC7011) Pebble Grain Aqua/Lime (add $20) | AP49: 35.00
G50: 43 | H50: #2 | J50: 92 | K50: 49.00 | M50: 242 | N50: 33.00 | P50: 92 | Q50: 35.00 | R50: 54 | S50: 15.00 | AO50: (WCC7004) Pebble Grain Black/Aqua (add $20) | AP50: 35.00
G51: 44 | H51: #2 | J51: 93 | K51: 49.00 | M51: 243 | N51: 33.00 | P51: 93 | Q51: 35.00 | R51: 55 | S51: 15.00 | AO51: (WCC6984) Pebble Grain Black/Cobalt (add $20) | AP51: 35.00
G52: 45 | H52: #2 | J52: 94 | K52: 49.00 | M52: 244 | N52: 33.00 | P52: 94 | Q52: 35.00 | R52: 56 | S52: 15.00 | AO52: (WCC6953) Pebble Grain Black/Grey (add $20) | AP52: 35.00
G53: 46 | H53: #2 | J53: 95 | K53: 49.00 | M53: 245 | N53: 33.00 | P53: 95 | Q53: 35.00 | R53: 57 | S53: 15.00 | AO53: (WCC7028) Pebble Grain Black/Orange (add $20) | AP53: 35.00
G54: 47 | H54: #2 | J54: 96 | K54: 49.00 | M54: 246 | N54: 33.00 | P54: 96 | Q54: 35.00 | R54: 58 | S54: 15.00 | AO54: (WCC7035) Pebble Grain Camel/Orange (add $20) | AP54: 35.00
G55: 48 | H55: #2 | J55: 97 | K55: 49.00 | M55: 247 | N55: 33.00 | P55: 97 | Q55: 35.00 | R55: 59 | S55: 15.00 | AO55: (WCC6991) Pebble Grain Cobalt/Grey (add $20) | AP55: 35.00
G56: 49 | H56: #2 | J56: 98 | K56: 49.00 | M56: 248 | N56: 33.00 | P56: 98 | Q56: 35.00 | R56: 60 | S56: 15.00 | AO56: (WCC6977) Pebble Grain White/Grey (add $20) | AP56: 35.00
G57: 50 | H57: #2 | J57: 99 | K57: 49.00 | M57: 249 | N57: 33.00 | P57: 99 | Q57: 35.00 | R57: 61 | S57: 15.00
G58: 51 | H58: #2 | J58: 100 | K58: 49.00 | M58: 250 | N58: 30.00 | P58: 100 | Q58: 30.00 | R58: 62 | S58: 15.00
G59: 52 | H59: #2 | J59: =+J58+1 -> 101 | K59: 49.00 | M59: 251 | N59: 30.00 | P59: =+P58+1 -> 101 | Q59: 30.00 | R59: 63 | S59: 15.00
G60: 53 | H60: #2 | J60: 102 | K60: 49.00 | M60: 252 | N60: 30.00 | P60: 102 | Q60: 30.00 | R60: 64 | S60: 15.00
G61: 54 | H61: #2 | J61: 103 | K61: 49.00 | M61: 253 | N61: 30.00 | P61: 103 | Q61: 30.00 | R61: 65 | S61: 15.00
G62: 55 | H62: #2 | J62: 104 | K62: 49.00 | M62: 254 | N62: 30.00 | P62: 104 | Q62: 30.00 | R62: 66 | S62: 15.00
G63: 56 | H63: #2 | J63: 105 | K63: 49.00 | M63: 255 | N63: 30.00 | P63: 105 | Q63: 30.00 | R63: 67 | S63: 15.00
G64: 57 | H64: #2 | J64: 106 | K64: 49.00 | M64: 256 | N64: 30.00 | P64: 106 | Q64: 30.00 | R64: 68 | S64: 15.00
G65: 58 | H65: #2 | J65: 107 | K65: 49.00 | M65: 257 | N65: 30.00 | P65: 107 | Q65: 30.00 | R65: 69 | S65: 15.00
G66: 59 | H66: #2 | J66: 108 | K66: 49.00 | M66: 258 | N66: 30.00 | P66: 108 | Q66: 30.00 | R66: 70 | S66: 15.00
G67: 60 | H67: #2 | J67: 109 | K67: 49.00 | M67: 259 | N67: 30.00 | P67: 109 | Q67: 30.00 | R67: 71 | S67: 15.00
G68: 61 | H68: #2 | J68: 110 | K68: 49.00 | M68: 260 | N68: 30.00 | P68: 110 | Q68: 30.00 | R68: 72 | S68: 15.00
G69: 62 | H69: #2 | J69: 111 | K69: 49.00 | M69: 261 | N69: 30.00 | P69: 111 | Q69: 30.00 | R69: 73 | S69: 15.00
G70: 63 | H70: #2 | J70: 112 | K70: 49.00 | M70: 262 | N70: 30.00 | P70: 112 | Q70: 30.00 | R70: 74 | S70: 15.00
G71: 64 | H71: #2 | J71: 113 | K71: 49.00 | M71: 263 | N71: 30.00 | P71: 113 | Q71: 30.00 | R71: 75 | S71: 15.00
G72: 65 | H72: #2 | J72: 114 | K72: 49.00 | M72: 264 | N72: 30.00 | P72: 114 | Q72: 30.00 | R72: 76 | S72: 15.00
G73: 66 | H73: #2 | J73: 115 | K73: 49.00 | M73: 265 | N73: 30.00 | P73: 115 | Q73: 30.00 | R73: 77 | S73: 15.00
G74: =+G73+1 -> 67 | H74: #2 | J74: 116 | K74: 49.00 | M74: 266 | N74: 30.00 | P74: 116 | Q74: 30.00 | R74: 78 | S74: 15.00
G75: 68 | H75: #2 | J75: 117 | K75: 49.00 | M75: 267 | N75: 30.00 | P75: 117 | Q75: 30.00 | R75: 79 | S75: 15.00
G76: 69 | H76: #2 | J76: 118 | K76: 49.00 | M76: 268 | N76: 30.00 | P76: 118 | Q76: 30.00 | R76: 80 | S76: 15.00
G77: 70 | H77: #2 | J77: 119 | K77: 49.00 | M77: 269 | N77: 30.00 | P77: 119 | Q77: 30.00 | R77: 81 | S77: 15.00
G78: 71 | H78: #2 | J78: 120 | K78: 49.00 | M78: 270 | N78: 30.00 | P78: 120 | Q78: 30.00 | R78: 82 | S78: 15.00
G79: 72 | H79: #2 | J79: 121 | K79: 49.00 | M79: 271 | N79: 30.00 | P79: 121 | Q79: 30.00 | R79: 83 | S79: 15.00
G80: 73 | H80: #2 | J80: 122 | K80: 49.00 | M80: 272 | N80: 30.00 | P80: 122 | Q80: 30.00 | R80: 84 | S80: 15.00
G81: 74 | H81: #2 | J81: 123 | K81: 49.00 | M81: 273 | N81: 30.00 | P81: 123 | Q81: 30.00 | R81: 85 | S81: 15.00
G82: 75 | H82: #2 | J82: 124 | K82: 49.00 | M82: 274 | N82: 30.00 | P82: 124 | Q82: 30.00 | R82: 86 | S82: 15.00
G83: 76 | H83: #2 | J83: 125 | K83: 49.00 | M83: 275 | N83: 30.00 | P83: 125 | Q83: 30.00 | R83: 87 | S83: 15.00
G84: 77 | H84: #2 | J84: 126 | K84: 49.00 | M84: 276 | N84: 30.00 | P84: 126 | Q84: 30.00 | R84: 88 | S84: 15.00
G85: 78 | H85: #2 | J85: 127 | K85: 49.00 | M85: 277 | N85: 30.00 | P85: 127 | Q85: 30.00 | R85: 89 | S85: 15.00
G86: 79 | H86: #2 | J86: 128 | K86: 49.00 | M86: 278 | N86: 30.00 | P86: 128 | Q86: 30.00 | R86: 90 | S86: 15.00
G87: 80 | H87: #2 | J87: 129 | K87: 49.00 | M87: 279 | N87: 30.00 | P87: 129 | Q87: 30.00 | R87: 91 | S87: 15.00
G88: 81 | H88: #2 | J88: 130 | K88: 49.00 | M88: 280 | N88: 30.00 | P88: 130 | Q88: 30.00 | R88: 92 | S88: 15.00
G89: 82 | H89: #2 | J89: 131 | K89: 49.00 | M89: 281 | N89: 30.00 | P89: 131 | Q89: 30.00 | R89: 93 | S89: 15.00
G90: 83 | H90: #2 | J90: 132 | K90: 49.00 | M90: 282 | N90: 30.00 | P90: 132 | Q90: 30.00 | R90: 94 | S90: 15.00
G91: 84 | H91: #2 | J91: 133 | K91: 49.00 | M91: 283 | N91: 30.00 | P91: 133 | Q91: 30.00 | R91: 95 | S91: 15.00
G92: 85 | H92: #2 | J92: 134 | K92: 49.00 | M92: 284 | N92: 30.00 | P92: 134 | Q92: 30.00 | R92: 96 | S92: 15.00
G93: 86 | H93: #2 | J93: 135 | K93: 49.00 | M93: 285 | N93: 30.00 | P93: 135 | Q93: 30.00 | R93: 97 | S93: 15.00
G94: 87 | H94: #2 | J94: 136 | K94: 49.00 | M94: 286 | N94: 30.00 | P94: 136 | Q94: 30.00 | R94: 98 | S94: 15.00
G95: 88 | H95: #2 | J95: 137 | K95: 49.00 | M95: 287 | N95: 30.00 | P95: 137 | Q95: 30.00 | R95: 99 | S95: 15.00
G96: 89 | H96: #2 | J96: 138 | K96: 49.00 | M96: 288 | N96: 30.00 | P96: 138 | Q96: 30.00 | R96: 100 | S96: 15.00
G97: 90 | H97: #2 | J97: 139 | K97: 49.00 | M97: 289 | N97: 30.00 | P97: 139 | Q97: 30.00 | R97: 101 | S97: 15.00
G98: 91 | H98: #2 | J98: 140 | K98: 49.00 | M98: 290 | N98: 30.00 | P98: 140 | Q98: 30.00 | R98: 102 | S98: 15.00
G99: 92 | H99: #2 | J99: 141 | K99: 49.00 | M99: 291 | N99: 30.00 | P99: 141 | Q99: 30.00 | R99: 103 | S99: 15.00
G100: 93 | H100: #2 | J100: 142 | K100: 49.00 | M100: 292 | N100: 30.00 | P100: 142 | Q100: 30.00 | R100: 104 | S100: 15.00
G101: 94 | H101: #2 | J101: 143 | K101: 49.00 | M101: 293 | N101: 30.00 | P101: 143 | Q101: 30.00 | R101: 105 | S101: 15.00
G102: 95 | H102: #2 | J102: 144 | K102: 49.00 | M102: 294 | N102: 30.00 | P102: 144 | Q102: 30.00 | R102: 106 | S102: 15.00
G103: 96 | H103: #2 | J103: 145 | K103: 49.00 | M103: 295 | N103: 30.00 | P103: 145 | Q103: 30.00 | R103: 107 | S103: 15.00
G104: 97 | H104: #2 | J104: 146 | K104: 49.00 | M104: 296 | N104: 30.00 | P104: 146 | Q104: 30.00 | R104: 108 | S104: 15.00
G105: 98 | H105: #2 | J105: 147 | K105: 49.00 | M105: 297 | N105: 30.00 | P105: 147 | Q105: 30.00 | R105: 109 | S105: 15.00
G106: 99 | H106: #2 | J106: 148 | K106: 49.00 | M106: 298 | N106: 30.00 | P106: 148 | Q106: 30.00 | R106: 110 | S106: 15.00
G107: 100 | H107: #3 | J107: 149 | K107: 49.00 | M107: 299 | N107: 30.00 | P107: 149 | Q107: 30.00 | R107: 111 | S107: 15.00
G108: 101 | H108: #3 | J108: 150 | K108: 49.00 | M108: 300 | N108: 30.00 | P108: 150 | Q108: 30.00 | R108: 112 | S108: 15.00
G109: 102 | H109: #3 | J109: 151 | K109: 49.00 | M109: 301 | N109: 30.00 | P109: 151 | Q109: 30.00 | R109: 113 | S109: 15.00
G110: 103 | H110: #3 | J110: 152 | K110: 49.00 | M110: 302 | N110: 30.00 | P110: 152 | Q110: 30.00 | R110: 114 | S110: 15.00
G111: 104 | H111: #3 | J111: 153 | K111: 49.00 | M111: 303 | N111: 30.00 | P111: 153 | Q111: 30.00 | R111: 115 | S111: 15.00
G112: 105 | H112: #3 | J112: 154 | K112: 49.00 | M112: 304 | N112: 30.00 | P112: 154 | Q112: 30.00 | R112: 116 | S112: 15.00
G113: 106 | H113: #3 | J113: 155 | K113: 49.00 | M113: 305 | N113: 30.00 | P113: 155 | Q113: 30.00 | R113: 117 | S113: 15.00
G114: 107 | H114: #3 | J114: 156 | K114: 49.00 | M114: 306 | N114: 30.00 | P114: 156 | Q114: 30.00 | R114: 118 | S114: 15.00
G115: 108 | H115: #3 | J115: 157 | K115: 49.00 | M115: 307 | N115: 30.00 | P115: 157 | Q115: 30.00 | R115: 119 | S115: 15.00
G116: 109 | H116: #3 | J116: 158 | K116: 49.00 | M116: 308 | N116: 30.00 | P116: 158 | Q116: 30.00 | R116: 120 | S116: 15.00
G117: 110 | H117: #3 | J117: 159 | K117: 49.00 | M117: 309 | N117: 30.00 | P117: 159 | Q117: 30.00 | R117: 121 | S117: 15.00
G118: 111 | H118: #3 | J118: 160 | K118: 49.00 | M118: 310 | N118: 30.00 | P118: 160 | Q118: 30.00 | R118: 122 | S118: 15.00
G119: 112 | H119: #3 | J119: 161 | K119: 49.00 | M119: 311 | N119: 30.00 | P119: 161 | Q119: 30.00 | R119: 123 | S119: 15.00
G120: 113 | H120: #3 | J120: 162 | K120: 49.00 | M120: 312 | N120: 30.00 | P120: 162 | Q120: 30.00 | R120: 124 | S120: 15.00
G121: 114 | H121: #3 | J121: 163 | K121: 49.00 | M121: 313 | N121: 30.00 | P121: 163 | Q121: 30.00 | R121: 125 | S121: 15.00
G122: 115 | H122: #3 | J122: 164 | K122: 49.00 | M122: 314 | N122: 30.00 | P122: 164 | Q122: 30.00 | R122: 126 | S122: 15.00
G123: 116 | H123: #3 | J123: =+J122+1 -> 165 | K123: 49.00 | M123: 315 | N123: 30.00 | P123: =+P122+1 -> 165 | Q123: 30.00 | R123: 127 | S123: 15.00
G124: 117 | H124: #3 | J124: 166 | K124: 49.00 | M124: 316 | N124: 30.00 | P124: 166 | Q124: 30.00 | R124: 128 | S124: 15.00
G125: 118 | H125: #3 | J125: 167 | K125: 49.00 | M125: 317 | N125: 30.00 | P125: 167 | Q125: 30.00 | R125: 129 | S125: 15.00
G126: 119 | H126: #3 | J126: 168 | K126: 49.00 | M126: 318 | N126: 30.00 | P126: 168 | Q126: 30.00 | R126: 130 | S126: 15.00
G127: 120 | H127: #3 | J127: 169 | K127: 49.00 | M127: 319 | N127: 30.00 | P127: 169 | Q127: 30.00 | R127: 131 | S127: 15.00
G128: 121 | H128: #3 | J128: 170 | K128: 49.00 | M128: 320 | N128: 30.00 | P128: 170 | Q128: 30.00 | R128: 132 | S128: 15.00
G129: 122 | H129: #3 | J129: 171 | K129: 49.00 | M129: 321 | N129: 30.00 | P129: 171 | Q129: 30.00 | R129: 133 | S129: 15.00
G130: 123 | H130: #3 | J130: 172 | K130: 49.00 | M130: 322 | N130: 30.00 | P130: 172 | Q130: 30.00 | R130: 134 | S130: 15.00
G131: 124 | H131: #3 | J131: 173 | K131: 49.00 | M131: 323 | N131: 30.00 | P131: 173 | Q131: 30.00 | R131: 135 | S131: 15.00
G132: 125 | H132: #3 | J132: 174 | K132: 49.00 | M132: 324 | N132: 30.00 | P132: 174 | Q132: 30.00 | R132: 136 | S132: 15.00
G133: 126 | H133: #3 | J133: 175 | K133: 49.00 | M133: 325 | N133: 30.00 | P133: 175 | Q133: 30.00 | R133: 137 | S133: 15.00
G134: 127 | H134: #3 | J134: 176 | K134: 49.00 | M134: 326 | N134: 30.00 | P134: 176 | Q134: 30.00 | R134: 138 | S134: 15.00
G135: 128 | H135: #3 | J135: 177 | K135: 49.00 | M135: 327 | N135: 30.00 | P135: 177 | Q135: 30.00 | R135: 139 | S135: 15.00
G136: 129 | H136: #3 | J136: 178 | K136: 49.00 | M136: 328 | N136: 30.00 | P136: 178 | Q136: 30.00 | R136: 140 | S136: 15.00
G137: 130 | H137: #3 | J137: 179 | K137: 49.00 | M137: 329 | N137: 30.00 | P137: 179 | Q137: 30.00 | R137: 141 | S137: 15.00
G138: =+G137+1 -> 131 | H138: #3 | J138: 180 | K138: 49.00 | M138: 330 | N138: 30.00 | P138: 180 | Q138: 30.00 | R138: 142 | S138: 15.00
G139: 132 | H139: #3 | J139: 181 | K139: 49.00 | M139: 331 | N139: 30.00 | P139: 181 | Q139: 30.00 | R139: 143 | S139: 15.00
G140: 133 | H140: #3 | J140: 182 | K140: 49.00 | M140: 332 | N140: 30.00 | P140: 182 | Q140: 30.00 | R140: 144 | S140: 15.00
G141: 134 | H141: #3 | J141: 183 | K141: 49.00 | M141: 333 | N141: 30.00 | P141: 183 | Q141: 30.00 | R141: 145 | S141: 15.00
G142: 135 | H142: #3 | J142: 184 | K142: 49.00 | M142: 334 | N142: 30.00 | P142: 184 | Q142: 30.00 | R142: 146 | S142: 15.00
G143: 136 | H143: #3 | J143: 185 | K143: 49.00 | M143: 335 | N143: 30.00 | P143: 185 | Q143: 30.00 | R143: 147 | S143: 15.00
G144: 137 | H144: #3 | J144: 186 | K144: 49.00 | M144: 336 | N144: 30.00 | P144: 186 | Q144: 30.00 | R144: 148 | S144: 15.00
G145: 138 | H145: #3 | J145: 187 | K145: 49.00 | M145: 337 | N145: 30.00 | P145: 187 | Q145: 30.00 | R145: 149 | S145: 15.00
G146: 139 | H146: #3 | J146: 188 | K146: 49.00 | M146: 338 | N146: 30.00 | P146: 188 | Q146: 30.00 | R146: 150 | S146: 15.00
G147: 140 | H147: #3 | J147: 189 | K147: 49.00 | M147: 339 | N147: 30.00 | P147: 189 | Q147: 30.00 | R147: 151 | S147: 15.00
G148: 141 | H148: #3 | J148: 190 | K148: 49.00 | M148: 340 | N148: 30.00 | P148: 190 | Q148: 30.00 | R148: 152 | S148: 15.00
G149: 142 | H149: #3 | J149: 191 | K149: 49.00 | M149: 341 | N149: 30.00 | P149: 191 | Q149: 30.00 | R149: 153 | S149: 15.00
G150: 143 | H150: #3 | J150: 192 | K150: 49.00 | M150: 342 | N150: 30.00 | P150: 192 | Q150: 30.00 | R150: 154 | S150: 15.00
G151: 144 | H151: #3 | J151: 193 | K151: 49.00 | M151: 343 | N151: 30.00 | P151: 193 | Q151: 30.00 | R151: 155 | S151: 15.00
G152: 145 | H152: #3 | J152: 194 | K152: 49.00 | M152: 344 | N152: 30.00 | P152: 194 | Q152: 30.00 | R152: 156 | S152: 15.00
G153: 146 | H153: #3 | J153: 195 | K153: 49.00 | M153: 345 | N153: 30.00 | P153: 195 | Q153: 30.00 | R153: 157 | S153: 15.00
G154: 147 | H154: #3 | J154: 196 | K154: 49.00 | M154: 346 | N154: 30.00 | P154: 196 | Q154: 30.00 | R154: 158 | S154: 15.00
G155: 148 | H155: #3 | J155: 197 | K155: 49.00 | M155: 347 | N155: 30.00 | P155: 197 | Q155: 30.00 | R155: 159 | S155: 15.00
G156: 149 | H156: #3 | J156: 198 | K156: 49.00 | M156: 348 | N156: 30.00 | P156: 198 | Q156: 30.00 | R156: 160 | S156: 15.00
G157: 150 | H157: #3 | J157: 199 | K157: 49.00 | M157: 349 | N157: 30.00 | P157: 199 | Q157: 30.00 | R157: 161 | S157: 15.00
G158: 151 | H158: #3 | J158: 200 | K158: 45.00 | M158: 350 | N158: 29.00 | P158: 200 | Q158: 28.00 | R158: 162 | S158: 15.00
G159: 152 | H159: #3 | J159: 201 | K159: 45.00 | M159: 351 | N159: 29.00 | P159: 201 | Q159: 28.00 | R159: 163 | S159: 15.00
G160: 153 | H160: #3 | J160: 202 | K160: 45.00 | M160: 352 | N160: 29.00 | P160: 202 | Q160: 28.00 | R160: 164 | S160: 15.00
G161: 154 | H161: #3 | J161: 203 | K161: 45.00 | M161: 353 | N161: 29.00 | P161: 203 | Q161: 28.00 | R161: 165 | S161: 15.00
G162: 155 | H162: #3 | J162: 204 | K162: 45.00 | M162: 354 | N162: 29.00 | P162: 204 | Q162: 28.00 | R162: 166 | S162: 15.00
G163: 156 | H163: #3 | J163: 205 | K163: 45.00 | M163: 355 | N163: 29.00 | P163: 205 | Q163: 28.00 | R163: 167 | S163: 15.00
G164: 157 | H164: #3 | J164: 206 | K164: 45.00 | M164: 356 | N164: 29.00 | P164: 206 | Q164: 28.00 | R164: 168 | S164: 15.00
G165: 158 | H165: #3 | J165: 207 | K165: 45.00 | M165: 357 | N165: 29.00 | P165: 207 | Q165: 28.00 | R165: 169 | S165: 15.00
G166: 159 | H166: #3 | J166: 208 | K166: 45.00 | M166: 358 | N166: 29.00 | P166: 208 | Q166: 28.00 | R166: 170 | S166: 15.00
G167: 160 | H167: #3 | J167: 209 | K167: 45.00 | M167: 359 | N167: 29.00 | P167: 209 | Q167: 28.00 | R167: 171 | S167: 15.00
G168: 161 | H168: #3 | J168: 210 | K168: 45.00 | M168: 360 | N168: 29.00 | P168: 210 | Q168: 28.00 | R168: 172 | S168: 15.00
G169: 162 | H169: #3 | J169: 211 | K169: 45.00 | M169: 361 | N169: 29.00 | P169: 211 | Q169: 28.00 | R169: 173 | S169: 15.00
G170: 163 | H170: #3 | J170: 212 | K170: 45.00 | M170: 362 | N170: 29.00 | P170: 212 | Q170: 28.00 | R170: 174 | S170: 15.00
G171: 164 | H171: #3 | J171: 213 | K171: 45.00 | M171: 363 | N171: 29.00 | P171: 213 | Q171: 28.00 | R171: 175 | S171: 15.00
G172: 165 | H172: #3 | J172: 214 | K172: 45.00 | M172: 364 | N172: 29.00 | P172: 214 | Q172: 28.00 | R172: 176 | S172: 15.00
G173: 166 | H173: #3 | J173: 215 | K173: 45.00 | M173: 365 | N173: 29.00 | P173: 215 | Q173: 28.00 | R173: 177 | S173: 15.00
G174: 167 | H174: #3 | J174: 216 | K174: 45.00 | M174: 366 | N174: 29.00 | P174: 216 | Q174: 28.00 | R174: 178 | S174: 15.00
G175: 168 | H175: #3 | J175: 217 | K175: 45.00 | M175: 367 | N175: 29.00 | P175: 217 | Q175: 28.00 | R175: 179 | S175: 15.00
G176: 169 | H176: #3 | J176: 218 | K176: 45.00 | M176: 368 | N176: 29.00 | P176: 218 | Q176: 28.00 | R176: 180 | S176: 15.00
G177: 170 | H177: #3 | J177: 219 | K177: 45.00 | M177: 369 | N177: 29.00 | P177: 219 | Q177: 28.00 | R177: 181 | S177: 15.00
G178: 171 | H178: #3 | J178: 220 | K178: 45.00 | M178: 370 | N178: 29.00 | P178: 220 | Q178: 28.00 | R178: 182 | S178: 15.00
G179: 172 | H179: #3 | J179: 221 | K179: 45.00 | M179: 371 | N179: 29.00 | P179: 221 | Q179: 28.00 | R179: 183 | S179: 15.00
G180: 173 | H180: #3 | J180: 222 | K180: 45.00 | M180: 372 | N180: 29.00 | P180: 222 | Q180: 28.00 | R180: 184 | S180: 15.00
G181: 174 | H181: #3 | J181: 223 | K181: 45.00 | M181: 373 | N181: 29.00 | P181: 223 | Q181: 28.00 | R181: 185 | S181: 15.00
G182: 175 | H182: #3 | J182: 224 | K182: 45.00 | M182: 374 | N182: 29.00 | P182: 224 | Q182: 28.00 | R182: 186 | S182: 15.00
G183: 176 | H183: #3 | J183: 225 | K183: 45.00 | M183: 375 | N183: 29.00 | P183: 225 | Q183: 28.00 | R183: 187 | S183: 15.00
G184: 177 | H184: #3 | J184: 226 | K184: 45.00 | M184: 376 | N184: 29.00 | P184: 226 | Q184: 28.00 | R184: 188 | S184: 15.00
G185: 178 | H185: #3 | J185: 227 | K185: 45.00 | M185: 377 | N185: 29.00 | P185: 227 | Q185: 28.00 | R185: 189 | S185: 15.00
G186: 179 | H186: #3 | J186: 228 | K186: 45.00 | M186: 378 | N186: 29.00 | P186: 228 | Q186: 28.00
G187: 180 | H187: #3 | J187: =+J186+1 -> 229 | K187: 45.00 | M187: 379 | N187: 29.00 | P187: =+P186+1 -> 229 | Q187: 28.00
G188: 181 | H188: #3 | J188: 230 | K188: 45.00 | M188: 380 | N188: 29.00 | P188: 230 | Q188: 28.00
G189: 182 | H189: #3 | J189: 231 | K189: 45.00 | M189: 381 | N189: 29.00 | P189: 231 | Q189: 28.00
G190: 183 | H190: #3 | J190: 232 | K190: 45.00 | M190: 382 | N190: 29.00 | P190: 232 | Q190: 28.00
G191: 184 | H191: #3 | J191: 233 | K191: 45.00 | M191: 383 | N191: 29.00 | P191: 233 | Q191: 28.00
G192: 185 | H192: #3 | J192: 234 | K192: 45.00 | M192: 384 | N192: 29.00 | P192: 234 | Q192: 28.00
G193: 186 | H193: #3 | J193: 235 | K193: 45.00 | M193: 385 | N193: 29.00 | P193: 235 | Q193: 28.00
G194: 187 | H194: #3 | J194: 236 | K194: 45.00 | M194: 386 | N194: 29.00 | P194: 236 | Q194: 28.00
G195: 188 | H195: #3 | J195: 237 | K195: 45.00 | M195: 387 | N195: 29.00 | P195: 237 | Q195: 28.00
G196: 189 | H196: #3 | J196: 238 | K196: 45.00 | M196: 388 | N196: 29.00 | P196: 238 | Q196: 28.00
G197: 190 | H197: #3 | J197: 239 | K197: 45.00 | M197: 389 | N197: 29.00 | P197: 239 | Q197: 28.00
G198: 191 | H198: #3 | J198: 240 | K198: 45.00 | M198: 390 | N198: 29.00 | P198: 240 | Q198: 28.00
G199: 192 | H199: #3 | J199: 241 | K199: 45.00 | M199: 391 | N199: 29.00 | P199: 241 | Q199: 28.00
G200: 193 | H200: #3 | J200: 242 | K200: 45.00 | M200: 392 | N200: 29.00 | P200: 242 | Q200: 28.00
G201: 194 | H201: #3 | J201: 243 | K201: 45.00 | M201: 393 | N201: 29.00 | P201: 243 | Q201: 28.00
G202: =+G201+1 -> 195 | H202: #3 | J202: 244 | K202: 45.00 | M202: 394 | N202: 29.00 | P202: 244 | Q202: 28.00
G203: 196 | H203: #3 | J203: 245 | K203: 45.00 | M203: 395 | N203: 29.00 | P203: 245 | Q203: 28.00
... 303 more rows

Sheet ClassicBreakdown (hidden)
C4: QTY | D4: Grandfather Price | E4: Order Price Level | F4: Order Price | G4: Order Rate
C5: =SUM(B8:C27) -> 0 | D5: =IF(ISBLANK('Order Form'!B31),ClassicData!$E$8,VLOOKUP('Order Form'!B31,ClassicData!$D:$E,2,FALSE)) -> $38 | E5: =IFERROR(VLOOKUP(C5,ClassicData!G:H,2,FALSE),"#1") -> #1 | F5: =VLOOKUP(E5,ClassicData!$D:$E,2,FALSE) -> $38.00 | G5: =MIN(D5,F5) -> $38.00
E6: =VLOOKUP(E5,'Order Form'!F94:G99,2,FALSE) -> 1 | K6: QTY | L6: Order Rate | P6: QTY | Q6: Order Rate
B7: Etched | C7: ColorPrint | K7: =SUM(J9:J28) -> 0 | L7: =IF(K7<50,"Less Than MOQ",VLOOKUP(K7,ClassicData!$J:$K,2,FALSE)) -> Less Than MOQ | P7: =SUM(O9:O28) -> 0 | Q7: =IF(P7<50,"Less Than MOQ",VLOOKUP(P7,ClassicData!$P:$Q,2,FALSE)) -> Less Than MOQ
B8: =IF('Order Form'!B34=ClassicBreakdown!$B$7,+'Order Form'!I34,0) -> 0 | C8: =IF('Order Form'!B34=ClassicBreakdown!$C$7,+'Order Form'!I34,0) -> 0 | J8: Embossed | O8: CustomRibbon
B9: =IF('Order Form'!B35=ClassicBreakdown!$B$7,+'Order Form'!I35,0) -> 0 | C9: =IF('Order Form'!B35=ClassicBreakdown!$C$7,+'Order Form'!I35,0) -> 0 | J9: =IF('Order Form'!B34=ClassicBreakdown!$J$8,+'Order Form'!I34,0) -> 0 | O9: =IF('Order Form'!B34=ClassicBreakdown!$O$8,+'Order Form'!I34,0) -> 0
B10: =IF('Order Form'!B36=ClassicBreakdown!$B$7,+'Order Form'!I36,0) -> 0 | C10: =IF('Order Form'!B36=ClassicBreakdown!$C$7,+'Order Form'!I36,0) -> 0 | J10: =IF('Order Form'!B35=ClassicBreakdown!$J$8,+'Order Form'!I35,0) -> 0 | O10: =IF('Order Form'!B35=ClassicBreakdown!$O$8,+'Order Form'!I35,0) -> 0
B11: =IF('Order Form'!B37=ClassicBreakdown!$B$7,+'Order Form'!I37,0) -> 0 | C11: =IF('Order Form'!B37=ClassicBreakdown!$C$7,+'Order Form'!I37,0) -> 0 | J11: =IF('Order Form'!B36=ClassicBreakdown!$J$8,+'Order Form'!I36,0) -> 0 | O11: =IF('Order Form'!B36=ClassicBreakdown!$O$8,+'Order Form'!I36,0) -> 0
B12: =IF('Order Form'!B38=ClassicBreakdown!$B$7,+'Order Form'!I38,0) -> 0 | C12: =IF('Order Form'!B38=ClassicBreakdown!$C$7,+'Order Form'!I38,0) -> 0 | J12: =IF('Order Form'!B37=ClassicBreakdown!$J$8,+'Order Form'!I37,0) -> 0 | O12: =IF('Order Form'!B37=ClassicBreakdown!$O$8,+'Order Form'!I37,0) -> 0
B13: =IF('Order Form'!B39=ClassicBreakdown!$B$7,+'Order Form'!I39,0) -> 0 | C13: =IF('Order Form'!B39=ClassicBreakdown!$C$7,+'Order Form'!I39,0) -> 0 | J13: =IF('Order Form'!B38=ClassicBreakdown!$J$8,+'Order Form'!I38,0) -> 0 | O13: =IF('Order Form'!B38=ClassicBreakdown!$O$8,+'Order Form'!I38,0) -> 0
B14: =IF('Order Form'!B40=ClassicBreakdown!$B$7,+'Order Form'!I40,0) -> 0 | C14: =IF('Order Form'!B40=ClassicBreakdown!$C$7,+'Order Form'!I40,0) -> 0 | J14: =IF('Order Form'!B39=ClassicBreakdown!$J$8,+'Order Form'!I39,0) -> 0 | O14: =IF('Order Form'!B39=ClassicBreakdown!$O$8,+'Order Form'!I39,0) -> 0
B15: =IF('Order Form'!B41=ClassicBreakdown!$B$7,+'Order Form'!I41,0) -> 0 | C15: =IF('Order Form'!B41=ClassicBreakdown!$C$7,+'Order Form'!I41,0) -> 0 | J15: =IF('Order Form'!B40=ClassicBreakdown!$J$8,+'Order Form'!I40,0) -> 0 | O15: =IF('Order Form'!B40=ClassicBreakdown!$O$8,+'Order Form'!I40,0) -> 0
B16: =IF('Order Form'!B42=ClassicBreakdown!$B$7,+'Order Form'!I42,0) -> 0 | C16: =IF('Order Form'!B42=ClassicBreakdown!$C$7,+'Order Form'!I42,0) -> 0 | J16: =IF('Order Form'!B41=ClassicBreakdown!$J$8,+'Order Form'!I41,0) -> 0 | O16: =IF('Order Form'!B41=ClassicBreakdown!$O$8,+'Order Form'!I41,0) -> 0
B17: =IF('Order Form'!B43=ClassicBreakdown!$B$7,+'Order Form'!I43,0) -> 0 | C17: =IF('Order Form'!B43=ClassicBreakdown!$C$7,+'Order Form'!I43,0) -> 0 | J17: =IF('Order Form'!B42=ClassicBreakdown!$J$8,+'Order Form'!I42,0) -> 0 | O17: =IF('Order Form'!B42=ClassicBreakdown!$O$8,+'Order Form'!I42,0) -> 0
B18: =IF('Order Form'!B44=ClassicBreakdown!$B$7,+'Order Form'!I44,0) -> 0 | C18: =IF('Order Form'!B44=ClassicBreakdown!$C$7,+'Order Form'!I44,0) -> 0 | J18: =IF('Order Form'!B43=ClassicBreakdown!$J$8,+'Order Form'!I43,0) -> 0 | O18: =IF('Order Form'!B43=ClassicBreakdown!$O$8,+'Order Form'!I43,0) -> 0
B19: =IF('Order Form'!B45=ClassicBreakdown!$B$7,+'Order Form'!I45,0) -> 0 | C19: =IF('Order Form'!B45=ClassicBreakdown!$C$7,+'Order Form'!I45,0) -> 0 | J19: =IF('Order Form'!B44=ClassicBreakdown!$J$8,+'Order Form'!I44,0) -> 0 | O19: =IF('Order Form'!B44=ClassicBreakdown!$O$8,+'Order Form'!I44,0) -> 0
B20: =IF('Order Form'!B46=ClassicBreakdown!$B$7,+'Order Form'!I46,0) -> 0 | C20: =IF('Order Form'!B46=ClassicBreakdown!$C$7,+'Order Form'!I46,0) -> 0 | J20: =IF('Order Form'!B45=ClassicBreakdown!$J$8,+'Order Form'!I45,0) -> 0 | O20: =IF('Order Form'!B45=ClassicBreakdown!$O$8,+'Order Form'!I45,0) -> 0
B21: =IF('Order Form'!B47=ClassicBreakdown!$B$7,+'Order Form'!I47,0) -> 0 | C21: =IF('Order Form'!B47=ClassicBreakdown!$C$7,+'Order Form'!I47,0) -> 0 | J21: =IF('Order Form'!B46=ClassicBreakdown!$J$8,+'Order Form'!I46,0) -> 0 | O21: =IF('Order Form'!B46=ClassicBreakdown!$O$8,+'Order Form'!I46,0) -> 0
B22: =IF('Order Form'!B48=ClassicBreakdown!$B$7,+'Order Form'!I48,0) -> 0 | C22: =IF('Order Form'!B48=ClassicBreakdown!$C$7,+'Order Form'!I48,0) -> 0 | J22: =IF('Order Form'!B47=ClassicBreakdown!$J$8,+'Order Form'!I47,0) -> 0 | O22: =IF('Order Form'!B47=ClassicBreakdown!$O$8,+'Order Form'!I47,0) -> 0
B23: =IF('Order Form'!B49=ClassicBreakdown!$B$7,+'Order Form'!I49,0) -> 0 | C23: =IF('Order Form'!B49=ClassicBreakdown!$C$7,+'Order Form'!I49,0) -> 0 | J23: =IF('Order Form'!B48=ClassicBreakdown!$J$8,+'Order Form'!I48,0) -> 0 | O23: =IF('Order Form'!B48=ClassicBreakdown!$O$8,+'Order Form'!I48,0) -> 0
B24: =IF('Order Form'!B50=ClassicBreakdown!$B$7,+'Order Form'!I50,0) -> 0 | C24: =IF('Order Form'!B50=ClassicBreakdown!$C$7,+'Order Form'!I50,0) -> 0 | J24: =IF('Order Form'!B49=ClassicBreakdown!$J$8,+'Order Form'!I49,0) -> 0 | O24: =IF('Order Form'!B49=ClassicBreakdown!$O$8,+'Order Form'!I49,0) -> 0
B25: =IF('Order Form'!B51=ClassicBreakdown!$B$7,+'Order Form'!I51,0) -> 0 | C25: =IF('Order Form'!B51=ClassicBreakdown!$C$7,+'Order Form'!I51,0) -> 0 | J25: =IF('Order Form'!B50=ClassicBreakdown!$J$8,+'Order Form'!I50,0) -> 0 | O25: =IF('Order Form'!B50=ClassicBreakdown!$O$8,+'Order Form'!I50,0) -> 0
B26: =IF('Order Form'!B52=ClassicBreakdown!$B$7,+'Order Form'!I52,0) -> 0 | C26: =IF('Order Form'!B52=ClassicBreakdown!$C$7,+'Order Form'!I52,0) -> 0 | J26: =IF('Order Form'!B51=ClassicBreakdown!$J$8,+'Order Form'!I51,0) -> 0 | O26: =IF('Order Form'!B51=ClassicBreakdown!$O$8,+'Order Form'!I51,0) -> 0
B27: =IF('Order Form'!B54=ClassicBreakdown!$B$7,+'Order Form'!H54,0) -> 0 | C27: =IF('Order Form'!B54=ClassicBreakdown!$C$7,+'Order Form'!H54,0) -> 0 | J27: =IF('Order Form'!B52=ClassicBreakdown!$J$8,+'Order Form'!I52,0) -> 0 | O27: =IF('Order Form'!B52=ClassicBreakdown!$O$8,+'Order Form'!I52,0) -> 0
J28: =IF('Order Form'!B53=ClassicBreakdown!$J$8,+'Order Form'!I53,0) -> 0 | O28: =IF('Order Form'!B53=ClassicBreakdown!$O$8,+'Order Form'!I53,0) -> 0
K29: QTY | L29: Order Rate
K30: =SUM(J32:J51) -> 0 | L30: =IF(K30<200,"Less Than MOQ",VLOOKUP(K30,ClassicData!$M:$N,2,FALSE)) -> Less Than MOQ
C31: QTY | D31: Order Rate | J31: PolishedPlate
C32: =SUM(B34:B53) -> 0 | D32: =IF(C32<50,"Less Than MOQ",VLOOKUP(C32,ClassicData!$J:$K,2,FALSE)) -> Less Than MOQ | J32: =IF('Order Form'!B34=ClassicBreakdown!$J$31,+'Order Form'!I34,0) -> 0
B33: Debossed | J33: =IF('Order Form'!B35=ClassicBreakdown!$J$31,+'Order Form'!I35,0) -> 0
B34: =IF('Order Form'!B34=ClassicBreakdown!$B$33,+'Order Form'!I34,0) -> 0 | J34: =IF('Order Form'!B36=ClassicBreakdown!$J$31,+'Order Form'!I36,0) -> 0
B35: =IF('Order Form'!B35=ClassicBreakdown!$B$33,+'Order Form'!I35,0) -> 0 | J35: =IF('Order Form'!B37=ClassicBreakdown!$J$31,+'Order Form'!I37,0) -> 0
B36: =IF('Order Form'!B36=ClassicBreakdown!$B$33,+'Order Form'!I36,0) -> 0 | J36: =IF('Order Form'!B38=ClassicBreakdown!$J$31,+'Order Form'!I38,0) -> 0
B37: =IF('Order Form'!B37=ClassicBreakdown!$B$33,+'Order Form'!I37,0) -> 0 | J37: =IF('Order Form'!B39=ClassicBreakdown!$J$31,+'Order Form'!I39,0) -> 0
B38: =IF('Order Form'!B38=ClassicBreakdown!$B$33,+'Order Form'!I38,0) -> 0 | J38: =IF('Order Form'!B40=ClassicBreakdown!$J$31,+'Order Form'!I40,0) -> 0
B39: =IF('Order Form'!B39=ClassicBreakdown!$B$33,+'Order Form'!I39,0) -> 0 | J39: =IF('Order Form'!B41=ClassicBreakdown!$J$31,+'Order Form'!I41,0) -> 0
B40: =IF('Order Form'!B40=ClassicBreakdown!$B$33,+'Order Form'!I40,0) -> 0 | J40: =IF('Order Form'!B42=ClassicBreakdown!$J$31,+'Order Form'!I42,0) -> 0
B41: =IF('Order Form'!B41=ClassicBreakdown!$B$33,+'Order Form'!I41,0) -> 0 | J41: =IF('Order Form'!B43=ClassicBreakdown!$J$31,+'Order Form'!I43,0) -> 0
B42: =IF('Order Form'!B42=ClassicBreakdown!$B$33,+'Order Form'!I42,0) -> 0 | J42: =IF('Order Form'!B44=ClassicBreakdown!$J$31,+'Order Form'!I44,0) -> 0
B43: =IF('Order Form'!B43=ClassicBreakdown!$B$33,+'Order Form'!I43,0) -> 0 | J43: =IF('Order Form'!B45=ClassicBreakdown!$J$31,+'Order Form'!I45,0) -> 0
B44: =IF('Order Form'!B44=ClassicBreakdown!$B$33,+'Order Form'!I44,0) -> 0 | J44: =IF('Order Form'!B46=ClassicBreakdown!$J$31,+'Order Form'!I46,0) -> 0
B45: =IF('Order Form'!B45=ClassicBreakdown!$B$33,+'Order Form'!I45,0) -> 0 | J45: =IF('Order Form'!B47=ClassicBreakdown!$J$31,+'Order Form'!I47,0) -> 0
B46: =IF('Order Form'!B46=ClassicBreakdown!$B$33,+'Order Form'!I46,0) -> 0 | J46: =IF('Order Form'!B48=ClassicBreakdown!$J$31,+'Order Form'!I48,0) -> 0
B47: =IF('Order Form'!B47=ClassicBreakdown!$B$33,+'Order Form'!I47,0) -> 0 | J47: =IF('Order Form'!B49=ClassicBreakdown!$J$31,+'Order Form'!I49,0) -> 0
B48: =IF('Order Form'!B48=ClassicBreakdown!$B$33,+'Order Form'!I48,0) -> 0 | J48: =IF('Order Form'!B50=ClassicBreakdown!$J$31,+'Order Form'!I50,0) -> 0
B49: =IF('Order Form'!B49=ClassicBreakdown!$B$33,+'Order Form'!I49,0) -> 0 | J49: =IF('Order Form'!B51=ClassicBreakdown!$J$31,+'Order Form'!I51,0) -> 0
B50: =IF('Order Form'!B50=ClassicBreakdown!$B$33,+'Order Form'!I50,0) -> 0 | J50: =IF('Order Form'!B52=ClassicBreakdown!$J$31,+'Order Form'!I52,0) -> 0
B51: =IF('Order Form'!B51=ClassicBreakdown!$B$33,+'Order Form'!I51,0) -> 0 | J51: =IF('Order Form'!B53=ClassicBreakdown!$J$31,+'Order Form'!I53,0) -> 0
B52: =IF('Order Form'!B52=ClassicBreakdown!$B$33,+'Order Form'!I52,0) -> 0
B53: =IF('Order Form'!B53=ClassicBreakdown!$B$33,+'Order Form'!I53,0) -> 0

Sheet BuckleData (hidden)
G5: Etched / Printed | J5: Embossed / Debossed | M5: Polished Plate | Q5: BM / Tool
B6: Price Levels | D6: Price Sumamry | G6: Price Level | J6: Price Level | M6: Price Level | Q6: Price Adjust
B8: #1 | D8: #1 | E8: 18.00 | G8: 1 | H8: #1 | J8: 50 | K8: 29 | M8: 50 | N8: 21 | Q8: Standard Ball Mark | R8: 0
B9: #2 | D9: #2 | E9: 17.00 | G9: =+G8+1 -> 2 | H9: #1 | J9: 51 | K9: 29 | M9: 51 | N9: 21 | Q9: Ball Mark - Etched Logo (add $3) | R9: 3
B10: #3 | D10: #3 | E10: 16.00 | G10: =+G9+1 -> 3 | H10: #1 | J10: 52 | K10: 29 | M10: 52 | N10: 21 | Q10: Ball Mark - Color Logo (add $3) | R10: 3
B11: #4 | D11: #4 | E11: 15.00 | G11: 4 | H11: #1 | J11: 53 | K11: 29 | M11: 53 | N11: 21 | Q11: Divot Tool - Etched Logo (add $3) | R11: 3
B12: #5 | D12: #5 | E12: 13.00 | G12: 5 | H12: #1 | J12: 54 | K12: 29 | M12: 54 | N12: 21 | Q12: Divot Tool - Color Logo (add $3) | R12: 3
B13: #6 | D13: #6 | E13: 11.00 | G13: 6 | H13: #1 | J13: 55 | K13: 29 | M13: 55 | N13: 21 | Q13: Mark & Tool - Etched Logo (add $6) | R13: 6
G14: 7 | H14: #1 | J14: 56 | K14: 29 | M14: 56 | N14: 21 | Q14: Mark & Tool - Color Logo (add $6) | R14: 6
G15: 8 | H15: #1 | J15: 57 | K15: 29 | M15: 57 | N15: 21
G16: 9 | H16: #1 | J16: 58 | K16: 29 | M16: 58 | N16: 21
G17: 10 | H17: #1 | J17: 59 | K17: 29 | M17: 59 | N17: 21
G18: 11 | H18: #1 | J18: 60 | K18: 29 | M18: 60 | N18: 21
G19: 12 | H19: #1 | J19: 61 | K19: 29 | M19: 61 | N19: 21
G20: 13 | H20: #1 | J20: 62 | K20: 29 | M20: 62 | N20: 21
G21: 14 | H21: #1 | J21: 63 | K21: 29 | M21: 63 | N21: 21
G22: 15 | H22: #1 | J22: 64 | K22: 29 | M22: 64 | N22: 21
G23: 16 | H23: #1 | J23: 65 | K23: 29 | M23: 65 | N23: 21
G24: 17 | H24: #1 | J24: 66 | K24: 29 | M24: 66 | N24: 21
G25: 18 | H25: #1 | J25: 67 | K25: 29 | M25: 67 | N25: 21
G26: 19 | H26: #1 | J26: 68 | K26: 29 | M26: 68 | N26: 21
G27: 20 | H27: #1 | J27: 69 | K27: 29 | M27: 69 | N27: 21
G28: 21 | H28: #1 | J28: 70 | K28: 29 | M28: 70 | N28: 21
G29: 22 | H29: #1 | J29: 71 | K29: 29 | M29: 71 | N29: 21
G30: 23 | H30: #1 | J30: 72 | K30: 29 | M30: 72 | N30: 21
G31: 24 | H31: #2 | J31: 73 | K31: 29 | M31: 73 | N31: 21
G32: 25 | H32: #2 | J32: 74 | K32: 29 | M32: 74 | N32: 21
G33: 26 | H33: #2 | J33: 75 | K33: 29 | M33: 75 | N33: 21
G34: 27 | H34: #2 | J34: 76 | K34: 29 | M34: 76 | N34: 21
G35: 28 | H35: #2 | J35: 77 | K35: 29 | M35: 77 | N35: 21
G36: 29 | H36: #2 | J36: 78 | K36: 29 | M36: 78 | N36: 21
G37: 30 | H37: #2 | J37: 79 | K37: 29 | M37: 79 | N37: 21
G38: 31 | H38: #2 | J38: 80 | K38: 29 | M38: 80 | N38: 21
G39: 32 | H39: #2 | J39: 81 | K39: 29 | M39: 81 | N39: 21
G40: 33 | H40: #2 | J40: 82 | K40: 29 | M40: 82 | N40: 21
G41: 34 | H41: #2 | J41: 83 | K41: 29 | M41: 83 | N41: 21
G42: 35 | H42: #2 | J42: 84 | K42: 29 | M42: 84 | N42: 21
G43: 36 | H43: #2 | J43: 85 | K43: 29 | M43: 85 | N43: 21
G44: 37 | H44: #2 | J44: 86 | K44: 29 | M44: 86 | N44: 21
G45: 38 | H45: #2 | J45: 87 | K45: 29 | M45: 87 | N45: 21
G46: 39 | H46: #2 | J46: 88 | K46: 29 | M46: 88 | N46: 21
G47: 40 | H47: #2 | J47: 89 | K47: 29 | M47: 89 | N47: 21
G48: 41 | H48: #2 | J48: 90 | K48: 29 | M48: 90 | N48: 21
G49: 42 | H49: #2 | J49: 91 | K49: 29 | M49: 91 | N49: 21
G50: 43 | H50: #2 | J50: 92 | K50: 29 | M50: 92 | N50: 21
G51: 44 | H51: #2 | J51: 93 | K51: 29 | M51: 93 | N51: 21
G52: 45 | H52: #2 | J52: 94 | K52: 29 | M52: 94 | N52: 21
G53: 46 | H53: #2 | J53: 95 | K53: 29 | M53: 95 | N53: 21
G54: 47 | H54: #2 | J54: 96 | K54: 29 | M54: 96 | N54: 21
G55: 48 | H55: #2 | J55: 97 | K55: 29 | M55: 97 | N55: 21
G56: 49 | H56: #2 | J56: 98 | K56: 29 | M56: 98 | N56: 21
G57: 50 | H57: #2 | J57: 99 | K57: 29 | M57: 99 | N57: 21
G58: 51 | H58: #2 | J58: 100 | K58: 29 | M58: 100 | N58: 16
G59: 52 | H59: #2 | J59: =+J58+1 -> 101 | K59: 29 | M59: 101 | N59: 16
G60: 53 | H60: #2 | J60: 102 | K60: 29 | M60: 102 | N60: 16
G61: 54 | H61: #2 | J61: 103 | K61: 29 | M61: 103 | N61: 16
G62: 55 | H62: #2 | J62: 104 | K62: 29 | M62: 104 | N62: 16
G63: 56 | H63: #2 | J63: 105 | K63: 29 | M63: 105 | N63: 16
G64: 57 | H64: #2 | J64: 106 | K64: 29 | M64: 106 | N64: 16
G65: 58 | H65: #2 | J65: 107 | K65: 29 | M65: 107 | N65: 16
G66: 59 | H66: #2 | J66: 108 | K66: 29 | M66: 108 | N66: 16
G67: 60 | H67: #2 | J67: 109 | K67: 29 | M67: 109 | N67: 16
G68: 61 | H68: #2 | J68: 110 | K68: 29 | M68: 110 | N68: 16
G69: 62 | H69: #2 | J69: 111 | K69: 29 | M69: 111 | N69: 16
G70: 63 | H70: #2 | J70: 112 | K70: 29 | M70: 112 | N70: 16
G71: 64 | H71: #2 | J71: 113 | K71: 29 | M71: 113 | N71: 16
G72: 65 | H72: #2 | J72: 114 | K72: 29 | M72: 114 | N72: 16
G73: 66 | H73: #2 | J73: 115 | K73: 29 | M73: 115 | N73: 16
G74: =+G73+1 -> 67 | H74: #2 | J74: 116 | K74: 29 | M74: 116 | N74: 16
G75: 68 | H75: #2 | J75: 117 | K75: 29 | M75: 117 | N75: 16
G76: 69 | H76: #2 | J76: 118 | K76: 29 | M76: 118 | N76: 16
G77: 70 | H77: #2 | J77: 119 | K77: 29 | M77: 119 | N77: 16
G78: 71 | H78: #2 | J78: 120 | K78: 29 | M78: 120 | N78: 16
G79: 72 | H79: #2 | J79: 121 | K79: 29 | M79: 121 | N79: 16
G80: 73 | H80: #2 | J80: 122 | K80: 29 | M80: 122 | N80: 16
G81: 74 | H81: #2 | J81: 123 | K81: 29 | M81: 123 | N81: 16
G82: 75 | H82: #2 | J82: 124 | K82: 29 | M82: 124 | N82: 16
G83: 76 | H83: #2 | J83: 125 | K83: 29 | M83: 125 | N83: 16
G84: 77 | H84: #2 | J84: 126 | K84: 29 | M84: 126 | N84: 16
G85: 78 | H85: #2 | J85: 127 | K85: 29 | M85: 127 | N85: 16
G86: 79 | H86: #2 | J86: 128 | K86: 29 | M86: 128 | N86: 16
G87: 80 | H87: #2 | J87: 129 | K87: 29 | M87: 129 | N87: 16
G88: 81 | H88: #2 | J88: 130 | K88: 29 | M88: 130 | N88: 16
G89: 82 | H89: #2 | J89: 131 | K89: 29 | M89: 131 | N89: 16
G90: 83 | H90: #2 | J90: 132 | K90: 29 | M90: 132 | N90: 16
G91: 84 | H91: #2 | J91: 133 | K91: 29 | M91: 133 | N91: 16
G92: 85 | H92: #2 | J92: 134 | K92: 29 | M92: 134 | N92: 16
G93: 86 | H93: #2 | J93: 135 | K93: 29 | M93: 135 | N93: 16
G94: 87 | H94: #2 | J94: 136 | K94: 29 | M94: 136 | N94: 16
G95: 88 | H95: #2 | J95: 137 | K95: 29 | M95: 137 | N95: 16
G96: 89 | H96: #2 | J96: 138 | K96: 29 | M96: 138 | N96: 16
G97: 90 | H97: #2 | J97: 139 | K97: 29 | M97: 139 | N97: 16
G98: 91 | H98: #2 | J98: 140 | K98: 29 | M98: 140 | N98: 16
G99: 92 | H99: #2 | J99: 141 | K99: 29 | M99: 141 | N99: 16
G100: 93 | H100: #2 | J100: 142 | K100: 29 | M100: 142 | N100: 16
G101: 94 | H101: #2 | J101: 143 | K101: 29 | M101: 143 | N101: 16
G102: 95 | H102: #2 | J102: 144 | K102: 29 | M102: 144 | N102: 16
G103: 96 | H103: #2 | J103: 145 | K103: 29 | M103: 145 | N103: 16
G104: 97 | H104: #2 | J104: 146 | K104: 29 | M104: 146 | N104: 16
G105: 98 | H105: #2 | J105: 147 | K105: 29 | M105: 147 | N105: 16
G106: 99 | H106: #2 | J106: 148 | K106: 29 | M106: 148 | N106: 16
G107: 100 | H107: #3 | J107: 149 | K107: 29 | M107: 149 | N107: 16
G108: 101 | H108: #3 | J108: 150 | K108: 29 | M108: 150 | N108: 16
G109: 102 | H109: #3 | J109: 151 | K109: 29 | M109: 151 | N109: 16
G110: 103 | H110: #3 | J110: 152 | K110: 29 | M110: 152 | N110: 16
G111: 104 | H111: #3 | J111: 153 | K111: 29 | M111: 153 | N111: 16
G112: 105 | H112: #3 | J112: 154 | K112: 29 | M112: 154 | N112: 16
G113: 106 | H113: #3 | J113: 155 | K113: 29 | M113: 155 | N113: 16
G114: 107 | H114: #3 | J114: 156 | K114: 29 | M114: 156 | N114: 16
G115: 108 | H115: #3 | J115: 157 | K115: 29 | M115: 157 | N115: 16
G116: 109 | H116: #3 | J116: 158 | K116: 29 | M116: 158 | N116: 16
G117: 110 | H117: #3 | J117: 159 | K117: 29 | M117: 159 | N117: 16
G118: 111 | H118: #3 | J118: 160 | K118: 29 | M118: 160 | N118: 16
G119: 112 | H119: #3 | J119: 161 | K119: 29 | M119: 161 | N119: 16
G120: 113 | H120: #3 | J120: 162 | K120: 29 | M120: 162 | N120: 16
G121: 114 | H121: #3 | J121: 163 | K121: 29 | M121: 163 | N121: 16
G122: 115 | H122: #3 | J122: 164 | K122: 29 | M122: 164 | N122: 16
G123: 116 | H123: #3 | J123: =+J122+1 -> 165 | K123: 29 | M123: 165 | N123: 16
G124: 117 | H124: #3 | J124: 166 | K124: 29 | M124: 166 | N124: 16
G125: 118 | H125: #3 | J125: 167 | K125: 29 | M125: 167 | N125: 16
G126: 119 | H126: #3 | J126: 168 | K126: 29 | M126: 168 | N126: 16
G127: 120 | H127: #3 | J127: 169 | K127: 29 | M127: 169 | N127: 16
G128: 121 | H128: #3 | J128: 170 | K128: 29 | M128: 170 | N128: 16
G129: 122 | H129: #3 | J129: 171 | K129: 29 | M129: 171 | N129: 16
G130: 123 | H130: #3 | J130: 172 | K130: 29 | M130: 172 | N130: 16
G131: 124 | H131: #3 | J131: 173 | K131: 29 | M131: 173 | N131: 16
G132: 125 | H132: #3 | J132: 174 | K132: 29 | M132: 174 | N132: 16
G133: 126 | H133: #3 | J133: 175 | K133: 29 | M133: 175 | N133: 16
G134: 127 | H134: #3 | J134: 176 | K134: 29 | M134: 176 | N134: 16
G135: 128 | H135: #3 | J135: 177 | K135: 29 | M135: 177 | N135: 16
G136: 129 | H136: #3 | J136: 178 | K136: 29 | M136: 178 | N136: 16
G137: 130 | H137: #3 | J137: 179 | K137: 29 | M137: 179 | N137: 16
G138: =+G137+1 -> 131 | H138: #3 | J138: 180 | K138: 29 | M138: 180 | N138: 16
G139: 132 | H139: #3 | J139: 181 | K139: 29 | M139: 181 | N139: 16
G140: 133 | H140: #3 | J140: 182 | K140: 29 | M140: 182 | N140: 16
G141: 134 | H141: #3 | J141: 183 | K141: 29 | M141: 183 | N141: 16
G142: 135 | H142: #3 | J142: 184 | K142: 29 | M142: 184 | N142: 16
G143: 136 | H143: #3 | J143: 185 | K143: 29 | M143: 185 | N143: 16
G144: 137 | H144: #3 | J144: 186 | K144: 29 | M144: 186 | N144: 16
G145: 138 | H145: #3 | J145: 187 | K145: 29 | M145: 187 | N145: 16
G146: 139 | H146: #3 | J146: 188 | K146: 29 | M146: 188 | N146: 16
G147: 140 | H147: #3 | J147: 189 | K147: 29 | M147: 189 | N147: 16
G148: 141 | H148: #3 | J148: 190 | K148: 29 | M148: 190 | N148: 16
G149: 142 | H149: #3 | J149: 191 | K149: 29 | M149: 191 | N149: 16
G150: 143 | H150: #3 | J150: 192 | K150: 29 | M150: 192 | N150: 16
G151: 144 | H151: #3 | J151: 193 | K151: 29 | M151: 193 | N151: 16
G152: 145 | H152: #3 | J152: 194 | K152: 29 | M152: 194 | N152: 16
G153: 146 | H153: #3 | J153: 195 | K153: 29 | M153: 195 | N153: 16
G154: 147 | H154: #3 | J154: 196 | K154: 29 | M154: 196 | N154: 16
G155: 148 | H155: #3 | J155: 197 | K155: 29 | M155: 197 | N155: 16
G156: 149 | H156: #3 | J156: 198 | K156: 29 | M156: 198 | N156: 16
G157: 150 | H157: #3 | J157: 199 | K157: 29 | M157: 199 | N157: 16
G158: 151 | H158: #3 | J158: 200 | K158: 25 | M158: 200 | N158: 13
G159: 152 | H159: #3 | J159: 201 | K159: 25 | M159: 201 | N159: 13
G160: 153 | H160: #3 | J160: 202 | K160: 25 | M160: 202 | N160: 13
G161: 154 | H161: #3 | J161: 203 | K161: 25 | M161: 203 | N161: 13
G162: 155 | H162: #3 | J162: 204 | K162: 25 | M162: 204 | N162: 13
G163: 156 | H163: #3 | J163: 205 | K163: 25 | M163: 205 | N163: 13
G164: 157 | H164: #3 | J164: 206 | K164: 25 | M164: 206 | N164: 13
G165: 158 | H165: #3 | J165: 207 | K165: 25 | M165: 207 | N165: 13
G166: 159 | H166: #3 | J166: 208 | K166: 25 | M166: 208 | N166: 13
G167: 160 | H167: #3 | J167: 209 | K167: 25 | M167: 209 | N167: 13
G168: 161 | H168: #3 | J168: 210 | K168: 25 | M168: 210 | N168: 13
G169: 162 | H169: #3 | J169: 211 | K169: 25 | M169: 211 | N169: 13
G170: 163 | H170: #3 | J170: 212 | K170: 25 | M170: 212 | N170: 13
G171: 164 | H171: #3 | J171: 213 | K171: 25 | M171: 213 | N171: 13
G172: 165 | H172: #3 | J172: 214 | K172: 25 | M172: 214 | N172: 13
G173: 166 | H173: #3 | J173: 215 | K173: 25 | M173: 215 | N173: 13
G174: 167 | H174: #3 | J174: 216 | K174: 25 | M174: 216 | N174: 13
G175: 168 | H175: #3 | J175: 217 | K175: 25 | M175: 217 | N175: 13
G176: 169 | H176: #3 | J176: 218 | K176: 25 | M176: 218 | N176: 13
G177: 170 | H177: #3 | J177: 219 | K177: 25 | M177: 219 | N177: 13
G178: 171 | H178: #3 | J178: 220 | K178: 25 | M178: 220 | N178: 13
G179: 172 | H179: #3 | J179: 221 | K179: 25 | M179: 221 | N179: 13
G180: 173 | H180: #3 | J180: 222 | K180: 25 | M180: 222 | N180: 13
G181: 174 | H181: #3 | J181: 223 | K181: 25 | M181: 223 | N181: 13
G182: 175 | H182: #3 | J182: 224 | K182: 25 | M182: 224 | N182: 13
G183: 176 | H183: #3 | J183: 225 | K183: 25 | M183: 225 | N183: 13
G184: 177 | H184: #3 | J184: 226 | K184: 25 | M184: 226 | N184: 13
G185: 178 | H185: #3 | J185: 227 | K185: 25 | M185: 227 | N185: 13
G186: 179 | H186: #3 | J186: 228 | K186: 25 | M186: 228 | N186: 13
G187: 180 | H187: #3 | J187: =+J186+1 -> 229 | K187: 25 | M187: 229 | N187: 13
G188: 181 | H188: #3 | J188: 230 | K188: 25 | M188: 230 | N188: 13
G189: 182 | H189: #3 | J189: 231 | K189: 25 | M189: 231 | N189: 13
G190: 183 | H190: #3 | J190: 232 | K190: 25 | M190: 232 | N190: 13
G191: 184 | H191: #3 | J191: 233 | K191: 25 | M191: 233 | N191: 13
G192: 185 | H192: #3 | J192: 234 | K192: 25 | M192: 234 | N192: 13
G193: 186 | H193: #3 | J193: 235 | K193: 25 | M193: 235 | N193: 13
G194: 187 | H194: #3 | J194: 236 | K194: 25 | M194: 236 | N194: 13
G195: 188 | H195: #3 | J195: 237 | K195: 25 | M195: 237 | N195: 13
G196: 189 | H196: #3 | J196: 238 | K196: 25 | M196: 238 | N196: 13
G197: 190 | H197: #3 | J197: 239 | K197: 25 | M197: 239 | N197: 13
G198: 191 | H198: #3 | J198: 240 | K198: 25 | M198: 240 | N198: 13
G199: 192 | H199: #3 | J199: 241 | K199: 25 | M199: 241 | N199: 13
G200: 193 | H200: #3 | J200: 242 | K200: 25 | M200: 242 | N200: 13
G201: 194 | H201: #3 | J201: 243 | K201: 25 | M201: 243 | N201: 13
G202: =+G201+1 -> 195 | H202: #3 | J202: 244 | K202: 25 | M202: 244 | N202: 13
G203: 196 | H203: #3 | J203: 245 | K203: 25 | M203: 245 | N203: 13
G204: 197 | H204: #3 | J204: 246 | K204: 25 | M204: 246 | N204: 13
G205: 198 | H205: #3 | J205: 247 | K205: 25 | M205: 247 | N205: 13
... 301 more rows

Sheet BuckleBreakdown (hidden)
C4: QTY | D4: Grandfather Price | E4: Order Price Level | F4: Order Price | G4: Order Rate
C5: =SUM(B8:C17) -> 0 | D5: =IF(ISBLANK('Order Form'!B31),BuckleData!E8,VLOOKUP('Order Form'!B31,BuckleData!$D:$E,2,FALSE)) -> $18 | E5: =IFERROR(VLOOKUP(C5,BuckleData!G:H,2,FALSE),"#1") -> #1 | F5: =VLOOKUP(E5,BuckleData!$D:$E,2,FALSE) -> $18.00 | G5: =MIN(D5,F5) -> $18.00
E6: =VLOOKUP(E5,'Order Form'!F94:G99,2,FALSE) -> 1 | K6: QTY | L6: Order Rate
B7: Etched | C7: ColorPrint | K7: =SUM(J9:J18) -> 0 | L7: =IF(K7<50,"Less Than MOQ",VLOOKUP(K7,BuckleData!$J:$K,2,FALSE)) -> Less Than MOQ
B8: =IF('Order Form'!B58=BuckleBreakdown!$B$7,+'Order Form'!I58,0) -> 0 | C8: =IF('Order Form'!B58=BuckleBreakdown!$C$7,+'Order Form'!I58,0) -> 0 | J8: Embossed
B9: =IF('Order Form'!B59=BuckleBreakdown!$B$7,+'Order Form'!I59,0) -> 0 | C9: =IF('Order Form'!B59=BuckleBreakdown!$C$7,+'Order Form'!I59,0) -> 0 | J9: =IF('Order Form'!B58=BuckleBreakdown!$J$8,+'Order Form'!I58,0) -> 0
B10: =IF('Order Form'!B60=BuckleBreakdown!$B$7,+'Order Form'!I60,0) -> 0 | C10: =IF('Order Form'!B60=BuckleBreakdown!$C$7,+'Order Form'!I60,0) -> 0 | J10: =IF('Order Form'!B59=BuckleBreakdown!$J$8,+'Order Form'!I59,0) -> 0
B11: =IF('Order Form'!B61=BuckleBreakdown!$B$7,+'Order Form'!I61,0) -> 0 | C11: =IF('Order Form'!B61=BuckleBreakdown!$C$7,+'Order Form'!I61,0) -> 0 | J11: =IF('Order Form'!B60=BuckleBreakdown!$J$8,+'Order Form'!I60,0) -> 0
B12: =IF('Order Form'!B62=BuckleBreakdown!$B$7,+'Order Form'!I62,0) -> 0 | C12: =IF('Order Form'!B62=BuckleBreakdown!$C$7,+'Order Form'!I62,0) -> 0 | J12: =IF('Order Form'!B61=BuckleBreakdown!$J$8,+'Order Form'!I61,0) -> 0
B13: =IF('Order Form'!B63=BuckleBreakdown!$B$7,+'Order Form'!I63,0) -> 0 | C13: =IF('Order Form'!B63=BuckleBreakdown!$C$7,+'Order Form'!I63,0) -> 0 | J13: =IF('Order Form'!B62=BuckleBreakdown!$J$8,+'Order Form'!I62,0) -> 0
B14: =IF('Order Form'!B64=BuckleBreakdown!$B$7,+'Order Form'!I64,0) -> 0 | C14: =IF('Order Form'!B64=BuckleBreakdown!$C$7,+'Order Form'!I64,0) -> 0 | J14: =IF('Order Form'!B63=BuckleBreakdown!$J$8,+'Order Form'!I63,0) -> 0
B15: =IF('Order Form'!B65=BuckleBreakdown!$B$7,+'Order Form'!I65,0) -> 0 | C15: =IF('Order Form'!B65=BuckleBreakdown!$C$7,+'Order Form'!I65,0) -> 0 | J15: =IF('Order Form'!B64=BuckleBreakdown!$J$8,+'Order Form'!I64,0) -> 0
B16: =IF('Order Form'!B66=BuckleBreakdown!$B$7,+'Order Form'!I66,0) -> 0 | C16: =IF('Order Form'!B66=BuckleBreakdown!$C$7,+'Order Form'!I66,0) -> 0 | J16: =IF('Order Form'!B65=BuckleBreakdown!$J$8,+'Order Form'!I65,0) -> 0
B17: =IF('Order Form'!B67=BuckleBreakdown!$B$7,+'Order Form'!I67,0) -> 0 | C17: =IF('Order Form'!B67=BuckleBreakdown!$C$7,+'Order Form'!I67,0) -> 0 | J17: =IF('Order Form'!B66=BuckleBreakdown!$J$8,+'Order Form'!I66,0) -> 0
J18: =IF('Order Form'!B67=BuckleBreakdown!$J$8,+'Order Form'!I67,0) -> 0
K19: QTY | L19: Order Rate
K20: =SUM(J22:J31) -> 0 | L20: =IF(K20<200,"Less Than MOQ",VLOOKUP(K20,BuckleData!$M:$N,2,FALSE)) -> Less Than MOQ
C21: QTY | D21: Order Rate | J21: Polished Plate
C22: =SUM(B24:B33) -> 0 | D22: =IF(C22<50,"Less Than MOQ",VLOOKUP(C22,BuckleData!$J:$K,2,FALSE)) -> Less Than MOQ | J22: =IF('Order Form'!B58=BuckleBreakdown!$J$21,+'Order Form'!I58,0) -> 0
B23: Debossed | J23: =IF('Order Form'!B59=BuckleBreakdown!$J$21,+'Order Form'!I59,0) -> 0
B24: =IF('Order Form'!B58=BuckleBreakdown!$B$23,+'Order Form'!I58,0) -> 0 | J24: =IF('Order Form'!B60=BuckleBreakdown!$J$21,+'Order Form'!I60,0) -> 0
B25: =IF('Order Form'!B59=BuckleBreakdown!$B$23,+'Order Form'!I59,0) -> 0 | J25: =IF('Order Form'!B61=BuckleBreakdown!$J$21,+'Order Form'!I61,0) -> 0
B26: =IF('Order Form'!B60=BuckleBreakdown!$B$23,+'Order Form'!I60,0) -> 0 | J26: =IF('Order Form'!B62=BuckleBreakdown!$J$21,+'Order Form'!I62,0) -> 0
B27: =IF('Order Form'!B61=BuckleBreakdown!$B$23,+'Order Form'!I61,0) -> 0 | J27: =IF('Order Form'!B63=BuckleBreakdown!$J$21,+'Order Form'!I63,0) -> 0
B28: =IF('Order Form'!B62=BuckleBreakdown!$B$23,+'Order Form'!I62,0) -> 0 | J28: =IF('Order Form'!B64=BuckleBreakdown!$J$21,+'Order Form'!I64,0) -> 0
B29: =IF('Order Form'!B63=BuckleBreakdown!$B$23,+'Order Form'!I63,0) -> 0 | J29: =IF('Order Form'!B65=BuckleBreakdown!$J$21,+'Order Form'!I65,0) -> 0
B30: =IF('Order Form'!B64=BuckleBreakdown!$B$23,+'Order Form'!I64,0) -> 0 | J30: =IF('Order Form'!B66=BuckleBreakdown!$J$21,+'Order Form'!I66,0) -> 0
B31: =IF('Order Form'!B65=BuckleBreakdown!$B$23,+'Order Form'!I65,0) -> 0 | J31: =IF('Order Form'!B67=BuckleBreakdown!$J$21,+'Order Form'!I67,0) -> 0
B32: =IF('Order Form'!B66=BuckleBreakdown!$B$23,+'Order Form'!I66,0) -> 0
B33: =IF('Order Form'!B67=BuckleBreakdown!$B$23,+'Order Form'!I67,0) -> 0

Sheet Go-In! & Fast Eddie Package BD (hidden)
B2: Go-In! | L2: Go-In!
C3: QTY | D3: Grandfather Price | E3: Order Price Level | F3: Order Price | G3: Order Rate | M3: QTY | N3: Grandfather Price | O3: Order Price Level | P3: Order Price | Q3: Order Rate
C4: =SUM(B7:C26) -> 0 | D4: =IF(ISBLANK('Order Form'!$B$31),'Go-In! & Fast Eddie Data'!E8,VLOOKUP('Order Form'!$B$31,'Go-In! & Fast Eddie Data'!$D:$E,2,FALSE)) -> $4.00 | E4: =IFERROR(VLOOKUP(C4,'Go-In! & Fast Eddie Data'!G:H,2,FALSE),"#1") -> #1 | F4: =VLOOKUP(E4,'Go-In! & Fast Eddie Data'!$D:$E,2,FALSE) -> $4.00 | G4: =MIN(D4,F4) -> $4.00 | M4: =SUM(L7:L26) -> 0 | N4: =IF(ISBLANK('Order Form'!$B$31),'Go-In! & Fast Eddie Data'!E8,VLOOKUP('Order Form'!$B$31,'Go-In! & Fast Eddie Data'!$D:$E,2,FALSE)) -> $4.00 | O4: =IFERROR(VLOOKUP(M4,'Go-In! & Fast Eddie Data'!G:H,2,FALSE),"#1") -> #1 | P4: =VLOOKUP(O4,'Go-In! & Fast Eddie Data'!D:E,2,FALSE) -> $4.00 | Q4: =MIN(N4,P4) -> $4.00
E5: =VLOOKUP(E4,'Order Form'!F93:G98,2,FALSE) -> 1
B6: Etched | C6: ColorPrint | L6: Polished Plate
B7: =IF('Order Form'!B34='Go-In! & Fast Eddie Package BD'!$B$6,+'Order Form'!I34,0) -> 0 | C7: =IF('Order Form'!B34='Go-In! & Fast Eddie Package BD'!$C$6,+'Order Form'!I34,0) -> 0 | L7: =IF('Order Form'!B34='Go-In! & Fast Eddie Package BD'!$L$6,+'Order Form'!I34,0) -> 0
B8: =IF('Order Form'!B35='Go-In! & Fast Eddie Package BD'!$B$6,+'Order Form'!I35,0) -> 0 | C8: =IF('Order Form'!B35='Go-In! & Fast Eddie Package BD'!$C$6,+'Order Form'!I35,0) -> 0 | L8: =IF('Order Form'!B35='Go-In! & Fast Eddie Package BD'!$L$6,+'Order Form'!I35,0) -> 0
B9: =IF('Order Form'!B36='Go-In! & Fast Eddie Package BD'!$B$6,+'Order Form'!I36,0) -> 0 | C9: =IF('Order Form'!B36='Go-In! & Fast Eddie Package BD'!$C$6,+'Order Form'!I36,0) -> 0 | L9: =IF('Order Form'!B36='Go-In! & Fast Eddie Package BD'!$L$6,+'Order Form'!I36,0) -> 0
B10: =IF('Order Form'!B37='Go-In! & Fast Eddie Package BD'!$B$6,+'Order Form'!I37,0) -> 0 | C10: =IF('Order Form'!B37='Go-In! & Fast Eddie Package BD'!$C$6,+'Order Form'!I37,0) -> 0 | L10: =IF('Order Form'!B37='Go-In! & Fast Eddie Package BD'!$L$6,+'Order Form'!I37,0) -> 0
B11: =IF('Order Form'!B38='Go-In! & Fast Eddie Package BD'!$B$6,+'Order Form'!I38,0) -> 0 | C11: =IF('Order Form'!B38='Go-In! & Fast Eddie Package BD'!$C$6,+'Order Form'!I38,0) -> 0 | L11: =IF('Order Form'!B38='Go-In! & Fast Eddie Package BD'!$L$6,+'Order Form'!I38,0) -> 0
B12: =IF('Order Form'!B39='Go-In! & Fast Eddie Package BD'!$B$6,+'Order Form'!I39,0) -> 0 | C12: =IF('Order Form'!B39='Go-In! & Fast Eddie Package BD'!$C$6,+'Order Form'!I39,0) -> 0 | L12: =IF('Order Form'!B39='Go-In! & Fast Eddie Package BD'!$L$6,+'Order Form'!I39,0) -> 0
B13: =IF('Order Form'!B40='Go-In! & Fast Eddie Package BD'!$B$6,+'Order Form'!I40,0) -> 0 | C13: =IF('Order Form'!B40='Go-In! & Fast Eddie Package BD'!$C$6,+'Order Form'!I40,0) -> 0 | L13: =IF('Order Form'!B40='Go-In! & Fast Eddie Package BD'!$L$6,+'Order Form'!I40,0) -> 0
B14: =IF('Order Form'!B41='Go-In! & Fast Eddie Package BD'!$B$6,+'Order Form'!I41,0) -> 0 | C14: =IF('Order Form'!B41='Go-In! & Fast Eddie Package BD'!$C$6,+'Order Form'!I41,0) -> 0 | L14: =IF('Order Form'!B41='Go-In! & Fast Eddie Package BD'!$L$6,+'Order Form'!I41,0) -> 0
B15: =IF('Order Form'!B42='Go-In! & Fast Eddie Package BD'!$B$6,+'Order Form'!I42,0) -> 0 | C15: =IF('Order Form'!B42='Go-In! & Fast Eddie Package BD'!$C$6,+'Order Form'!I42,0) -> 0 | L15: =IF('Order Form'!B42='Go-In! & Fast Eddie Package BD'!$L$6,+'Order Form'!I42,0) -> 0
B16: =IF('Order Form'!B43='Go-In! & Fast Eddie Package BD'!$B$6,+'Order Form'!I43,0) -> 0 | C16: =IF('Order Form'!B43='Go-In! & Fast Eddie Package BD'!$C$6,+'Order Form'!I43,0) -> 0 | L16: =IF('Order Form'!B43='Go-In! & Fast Eddie Package BD'!$L$6,+'Order Form'!I43,0) -> 0
B17: =IF('Order Form'!B44='Go-In! & Fast Eddie Package BD'!$B$6,+'Order Form'!I44,0) -> 0 | C17: =IF('Order Form'!B44='Go-In! & Fast Eddie Package BD'!$C$6,+'Order Form'!I44,0) -> 0 | L17: =IF('Order Form'!B44='Go-In! & Fast Eddie Package BD'!$L$6,+'Order Form'!I44,0) -> 0
B18: =IF('Order Form'!B45='Go-In! & Fast Eddie Package BD'!$B$6,+'Order Form'!I45,0) -> 0 | C18: =IF('Order Form'!B45='Go-In! & Fast Eddie Package BD'!$C$6,+'Order Form'!I45,0) -> 0 | L18: =IF('Order Form'!B45='Go-In! & Fast Eddie Package BD'!$L$6,+'Order Form'!I45,0) -> 0
B19: =IF('Order Form'!B46='Go-In! & Fast Eddie Package BD'!$B$6,+'Order Form'!I46,0) -> 0 | C19: =IF('Order Form'!B46='Go-In! & Fast Eddie Package BD'!$C$6,+'Order Form'!I46,0) -> 0 | L19: =IF('Order Form'!B46='Go-In! & Fast Eddie Package BD'!$L$6,+'Order Form'!I46,0) -> 0
B20: =IF('Order Form'!B47='Go-In! & Fast Eddie Package BD'!$B$6,+'Order Form'!I47,0) -> 0 | C20: =IF('Order Form'!B47='Go-In! & Fast Eddie Package BD'!$C$6,+'Order Form'!I47,0) -> 0 | L20: =IF('Order Form'!B47='Go-In! & Fast Eddie Package BD'!$L$6,+'Order Form'!I47,0) -> 0
B21: =IF('Order Form'!B48='Go-In! & Fast Eddie Package BD'!$B$6,+'Order Form'!I48,0) -> 0 | C21: =IF('Order Form'!B48='Go-In! & Fast Eddie Package BD'!$C$6,+'Order Form'!I48,0) -> 0 | L21: =IF('Order Form'!B48='Go-In! & Fast Eddie Package BD'!$L$6,+'Order Form'!I48,0) -> 0
B22: =IF('Order Form'!B49='Go-In! & Fast Eddie Package BD'!$B$6,+'Order Form'!I49,0) -> 0 | C22: =IF('Order Form'!B49='Go-In! & Fast Eddie Package BD'!$C$6,+'Order Form'!I49,0) -> 0 | L22: =IF('Order Form'!B49='Go-In! & Fast Eddie Package BD'!$L$6,+'Order Form'!I49,0) -> 0
B23: =IF('Order Form'!B50='Go-In! & Fast Eddie Package BD'!$B$6,+'Order Form'!I50,0) -> 0 | C23: =IF('Order Form'!B50='Go-In! & Fast Eddie Package BD'!$C$6,+'Order Form'!I50,0) -> 0 | L23: =IF('Order Form'!B50='Go-In! & Fast Eddie Package BD'!$L$6,+'Order Form'!I50,0) -> 0
B24: =IF('Order Form'!B51='Go-In! & Fast Eddie Package BD'!$B$6,+'Order Form'!I51,0) -> 0 | C24: =IF('Order Form'!B51='Go-In! & Fast Eddie Package BD'!$C$6,+'Order Form'!I51,0) -> 0 | L24: =IF('Order Form'!B51='Go-In! & Fast Eddie Package BD'!$L$6,+'Order Form'!I51,0) -> 0
B25: =IF('Order Form'!B52='Go-In! & Fast Eddie Package BD'!$B$6,+'Order Form'!I52,0) -> 0 | C25: =IF('Order Form'!B52='Go-In! & Fast Eddie Package BD'!$C$6,+'Order Form'!I52,0) -> 0 | L25: =IF('Order Form'!B52='Go-In! & Fast Eddie Package BD'!$L$6,+'Order Form'!I52,0) -> 0
B26: =IF('Order Form'!B53='Go-In! & Fast Eddie Package BD'!$B$6,+'Order Form'!I53,0) -> 0 | C26: =IF('Order Form'!B53='Go-In! & Fast Eddie Package BD'!$C$6,+'Order Form'!I53,0) -> 0 | L26: =IF('Order Form'!B53='Go-In! & Fast Eddie Package BD'!$L$6,+'Order Form'!I53,0) -> 0
B30: Fast Eddie
C31: QTY | D31: Grandfather Price | E31: Order Price Level | F31: Order Price | G31: Order Rate
C32: =SUM(B35:C54) -> 0 | D32: =IF(ISBLANK('Order Form'!B31),'Go-In! & Fast Eddie Data'!M8,VLOOKUP('Order Form'!B31,'Go-In! & Fast Eddie Data'!L:M,2,FALSE)) -> $6.50 | E32: =IFERROR(VLOOKUP(C32,'Go-In! & Fast Eddie Data'!G:H,2,FALSE),1) -> 1 | F32: =VLOOKUP(E32,'Go-In! & Fast Eddie Data'!L:M,2,FALSE) ->  | G32: =MIN(D32,F32) -> 
B34: Etched | C34: ColorPrint
B35: =IF('Order Form'!B34='Go-In! & Fast Eddie Package BD'!$B$34,+'Order Form'!I34,0) -> 0 | C35: =IF('Order Form'!B34='Go-In! & Fast Eddie Package BD'!$C$34,+'Order Form'!I34,0) -> 0
B36: =IF('Order Form'!B35='Go-In! & Fast Eddie Package BD'!$B$34,+'Order Form'!I35,0) -> 0 | C36: =IF('Order Form'!B35='Go-In! & Fast Eddie Package BD'!$C$34,+'Order Form'!I35,0) -> 0
B37: =IF('Order Form'!B36='Go-In! & Fast Eddie Package BD'!$B$34,+'Order Form'!I36,0) -> 0 | C37: =IF('Order Form'!B36='Go-In! & Fast Eddie Package BD'!$C$34,+'Order Form'!I36,0) -> 0
B38: =IF('Order Form'!B37='Go-In! & Fast Eddie Package BD'!$B$34,+'Order Form'!I37,0) -> 0 | C38: =IF('Order Form'!B37='Go-In! & Fast Eddie Package BD'!$C$34,+'Order Form'!I37,0) -> 0
B39: =IF('Order Form'!B38='Go-In! & Fast Eddie Package BD'!$B$34,+'Order Form'!I38,0) -> 0 | C39: =IF('Order Form'!B38='Go-In! & Fast Eddie Package BD'!$C$34,+'Order Form'!I38,0) -> 0
B40: =IF('Order Form'!B39='Go-In! & Fast Eddie Package BD'!$B$34,+'Order Form'!I39,0) -> 0 | C40: =IF('Order Form'!B39='Go-In! & Fast Eddie Package BD'!$C$34,+'Order Form'!I39,0) -> 0
B41: =IF('Order Form'!B40='Go-In! & Fast Eddie Package BD'!$B$34,+'Order Form'!I40,0) -> 0 | C41: =IF('Order Form'!B40='Go-In! & Fast Eddie Package BD'!$C$34,+'Order Form'!I40,0) -> 0
B42: =IF('Order Form'!B41='Go-In! & Fast Eddie Package BD'!$B$34,+'Order Form'!I41,0) -> 0 | C42: =IF('Order Form'!B41='Go-In! & Fast Eddie Package BD'!$C$34,+'Order Form'!I41,0) -> 0
B43: =IF('Order Form'!B42='Go-In! & Fast Eddie Package BD'!$B$34,+'Order Form'!I42,0) -> 0 | C43: =IF('Order Form'!B42='Go-In! & Fast Eddie Package BD'!$C$34,+'Order Form'!I42,0) -> 0
B44: =IF('Order Form'!B43='Go-In! & Fast Eddie Package BD'!$B$34,+'Order Form'!I43,0) -> 0 | C44: =IF('Order Form'!B43='Go-In! & Fast Eddie Package BD'!$C$34,+'Order Form'!I43,0) -> 0
B45: =IF('Order Form'!B44='Go-In! & Fast Eddie Package BD'!$B$34,+'Order Form'!I44,0) -> 0 | C45: =IF('Order Form'!B44='Go-In! & Fast Eddie Package BD'!$C$34,+'Order Form'!I44,0) -> 0
B46: =IF('Order Form'!B45='Go-In! & Fast Eddie Package BD'!$B$34,+'Order Form'!I45,0) -> 0 | C46: =IF('Order Form'!B45='Go-In! & Fast Eddie Package BD'!$C$34,+'Order Form'!I45,0) -> 0
B47: =IF('Order Form'!B46='Go-In! & Fast Eddie Package BD'!$B$34,+'Order Form'!I46,0) -> 0 | C47: =IF('Order Form'!B46='Go-In! & Fast Eddie Package BD'!$C$34,+'Order Form'!I46,0) -> 0
B48: =IF('Order Form'!B47='Go-In! & Fast Eddie Package BD'!$B$34,+'Order Form'!I47,0) -> 0 | C48: =IF('Order Form'!B47='Go-In! & Fast Eddie Package BD'!$C$34,+'Order Form'!I47,0) -> 0
B49: =IF('Order Form'!B48='Go-In! & Fast Eddie Package BD'!$B$34,+'Order Form'!I48,0) -> 0 | C49: =IF('Order Form'!B48='Go-In! & Fast Eddie Package BD'!$C$34,+'Order Form'!I48,0) -> 0
B50: =IF('Order Form'!B49='Go-In! & Fast Eddie Package BD'!$B$34,+'Order Form'!I49,0) -> 0 | C50: =IF('Order Form'!B49='Go-In! & Fast Eddie Package BD'!$C$34,+'Order Form'!I49,0) -> 0
B51: =IF('Order Form'!B50='Go-In! & Fast Eddie Package BD'!$B$34,+'Order Form'!I50,0) -> 0 | C51: =IF('Order Form'!B50='Go-In! & Fast Eddie Package BD'!$C$34,+'Order Form'!I50,0) -> 0
B52: =IF('Order Form'!B51='Go-In! & Fast Eddie Package BD'!$B$34,+'Order Form'!I51,0) -> 0 | C52: =IF('Order Form'!B51='Go-In! & Fast Eddie Package BD'!$C$34,+'Order Form'!I51,0) -> 0
B53: =IF('Order Form'!B52='Go-In! & Fast Eddie Package BD'!$B$34,+'Order Form'!I52,0) -> 0 | C53: =IF('Order Form'!B52='Go-In! & Fast Eddie Package BD'!$C$34,+'Order Form'!I52,0) -> 0
B54: =IF('Order Form'!B53='Go-In! & Fast Eddie Package BD'!$B$34,+'Order Form'!I53,0) -> 0 | C54: =IF('Order Form'!B53='Go-In! & Fast Eddie Package BD'!$C$34,+'Order Form'!I53,0) -> 0

Sheet Go-In! & Fast Eddie Data (hidden)
B3: Go-In! | J3: Fast Eddie
G5: Etched / Printed
B6: Price Levels | D6: Price Sumamry | G6: Price Level | J6: Price Levels | L6: Price Summary
B8: #1 | D8: #1 | E8: 4.00 | G8: 1 | H8: #1 | J8: #1 | L8: #1 | M8: 6.5
B9: #2 | D9: #2 | E9: 3.00 | G9: =+G8+1 -> 2 | H9: #1 | J9: #2 | L9: #2 | M9: 5.5
B10: #3 | D10: #3 | E10: 2.00 | G10: =+G9+1 -> 3 | H10: #1 | J10: #3 | L10: #3 | M10: 4.5
B11: #4 | D11: #4 | E11: 1.00 | G11: 4 | H11: #1 | J11: #4 | L11: #4 | M11: 3.5
B12: #5 | D12: #5 | E12: 1.00 | G12: 5 | H12: #1 | J12: #5 | L12: #5 | M12: 3.5
B13: #6 | D13: #6 | E13: 1.00 | G13: 6 | H13: #1 | J13: #6 | L13: #6 | M13: 3.5
G14: 7 | H14: #1
G15: 8 | H15: #1
G16: 9 | H16: #1
G17: 10 | H17: #1
G18: 11 | H18: #1
G19: 12 | H19: #1
G20: 13 | H20: #1
G21: 14 | H21: #1
G22: 15 | H22: #1
G23: 16 | H23: #1
G24: 17 | H24: #1
G25: 18 | H25: #1
G26: 19 | H26: #1
G27: 20 | H27: #1
G28: 21 | H28: #1
G29: 22 | H29: #1
G30: 23 | H30: #1
G31: 24 | H31: #2
G32: 25 | H32: #2
G33: 26 | H33: #2
G34: 27 | H34: #2
G35: 28 | H35: #2
G36: 29 | H36: #2
G37: 30 | H37: #2
G38: 31 | H38: #2
G39: 32 | H39: #2
G40: 33 | H40: #2
G41: 34 | H41: #2
G42: 35 | H42: #2
G43: 36 | H43: #2
G44: 37 | H44: #2
G45: 38 | H45: #2
G46: 39 | H46: #2
G47: 40 | H47: #2
G48: 41 | H48: #2
G49: 42 | H49: #2
G50: 43 | H50: #2
G51: 44 | H51: #2
G52: 45 | H52: #2
G53: 46 | H53: #2
G54: 47 | H54: #2
G55: 48 | H55: #2
G56: 49 | H56: #2
G57: 50 | H57: #2
G58: 51 | H58: #2
G59: 52 | H59: #2
G60: 53 | H60: #2
G61: 54 | H61: #2
G62: 55 | H62: #2
G63: 56 | H63: #2
G64: 57 | H64: #2
G65: 58 | H65: #2
G66: 59 | H66: #2
G67: 60 | H67: #2
G68: 61 | H68: #2
G69: 62 | H69: #2
G70: 63 | H70: #2
G71: 64 | H71: #2
G72: 65 | H72: #2
G73: 66 | H73: #2
G74: =+G73+1 -> 67 | H74: #2
G75: 68 | H75: #2
G76: 69 | H76: #2
G77: 70 | H77: #2
G78: 71 | H78: #2
G79: 72 | H79: #2
G80: 73 | H80: #2
G81: 74 | H81: #2
G82: 75 | H82: #2
G83: 76 | H83: #2
G84: 77 | H84: #2
G85: 78 | H85: #2
G86: 79 | H86: #2
G87: 80 | H87: #2
G88: 81 | H88: #2
G89: 82 | H89: #2
G90: 83 | H90: #2
G91: 84 | H91: #2
G92: 85 | H92: #2
G93: 86 | H93: #2
G94: 87 | H94: #2
G95: 88 | H95: #2
G96: 89 | H96: #2
G97: 90 | H97: #2
G98: 91 | H98: #2
G99: 92 | H99: #2
G100: 93 | H100: #2
G101: 94 | H101: #2
G102: 95 | H102: #2
G103: 96 | H103: #2
G104: 97 | H104: #2
G105: 98 | H105: #2
G106: 99 | H106: #2
G107: 100 | H107: #3
G108: 101 | H108: #3
G109: 102 | H109: #3
G110: 103 | H110: #3
G111: 104 | H111: #3
G112: 105 | H112: #3
G113: 106 | H113: #3
G114: 107 | H114: #3
G115: 108 | H115: #3
G116: 109 | H116: #3
G117: 110 | H117: #3
G118: 111 | H118: #3
G119: 112 | H119: #3
G120: 113 | H120: #3
G121: 114 | H121: #3
G122: 115 | H122: #3
G123: 116 | H123: #3
G124: 117 | H124: #3
G125: 118 | H125: #3
G126: 119 | H126: #3
G127: 120 | H127: #3
G128: 121 | H128: #3
G129: 122 | H129: #3
G130: 123 | H130: #3
G131: 124 | H131: #3
G132: 125 | H132: #3
G133: 126 | H133: #3
G134: 127 | H134: #3
G135: 128 | H135: #3
G136: 129 | H136: #3
G137: 130 | H137: #3
G138: =+G137+1 -> 131 | H138: #3
G139: 132 | H139: #3
G140: 133 | H140: #3
G141: 134 | H141: #3
G142: 135 | H142: #3
G143: 136 | H143: #3
G144: 137 | H144: #3
G145: 138 | H145: #3
G146: 139 | H146: #3
G147: 140 | H147: #3
G148: 141 | H148: #3
G149: 142 | H149: #3
G150: 143 | H150: #3
G151: 144 | H151: #3
G152: 145 | H152: #3
G153: 146 | H153: #3
G154: 147 | H154: #3
G155: 148 | H155: #3
G156: 149 | H156: #3
G157: 150 | H157: #3
G158: 151 | H158: #3
G159: 152 | H159: #3
G160: 153 | H160: #3
G161: 154 | H161: #3
G162: 155 | H162: #3
G163: 156 | H163: #3
G164: 157 | H164: #3
G165: 158 | H165: #3
G166: 159 | H166: #3
G167: 160 | H167: #3
G168: 161 | H168: #3
G169: 162 | H169: #3
G170: 163 | H170: #3
G171: 164 | H171: #3
G172: 165 | H172: #3
G173: 166 | H173: #3
G174: 167 | H174: #3
G175: 168 | H175: #3
G176: 169 | H176: #3
G177: 170 | H177: #3
G178: 171 | H178: #3
G179: 172 | H179: #3
G180: 173 | H180: #3
G181: 174 | H181: #3
G182: 175 | H182: #3
G183: 176 | H183: #3
G184: 177 | H184: #3
G185: 178 | H185: #3
G186: 179 | H186: #3
G187: 180 | H187: #3
G188: 181 | H188: #3
G189: 182 | H189: #3
G190: 183 | H190: #3
G191: 184 | H191: #3
G192: 185 | H192: #3
G193: 186 | H193: #3
G194: 187 | H194: #3
G195: 188 | H195: #3
G196: 189 | H196: #3
G197: 190 | H197: #3
G198: 191 | H198: #3
G199: 192 | H199: #3
G200: 193 | H200: #3
G201: 194 | H201: #3
G202: =+G201+1 -> 195 | H202: #3
G203: 196 | H203: #3
G204: 197 | H204: #3
... 302 more rows

Sheet Go-In! & Fast Eddie Buckle BD (hidden)
B2: Go-In! | L2: Go-In!
C3: QTY | D3: Grandfather Price | E3: Order Price Level | F3: Order Price | G3: Order Rate | M3: QTY | N3: Grandfather Price | O3: Order Price Level | P3: Order Price | Q3: Order Rate
C4: =SUM(B7:C16) -> 0 | D4: =IF(ISBLANK('Order Form'!$B$31),'Go-In! & Fast Eddie Buckle Data'!E8,VLOOKUP('Order Form'!$B$31,'Go-In! & Fast Eddie Buckle Data'!$D:$E,2,FALSE)) -> $4.00 | E4: =IFERROR(VLOOKUP(C4,'Go-In! & Fast Eddie Buckle Data'!G:H,2,FALSE),"#1") -> #1 | F4: =VLOOKUP(E4,'Go-In! & Fast Eddie Buckle Data'!D:E,2,FALSE) -> $4.00 | G4: =MIN(D4,F4) -> $4.00 | M4: =SUM(L7:L16) -> 0 | N4: =IF(ISBLANK('Order Form'!$B$31),'Go-In! & Fast Eddie Buckle Data'!E8,VLOOKUP('Order Form'!$B$31,'Go-In! & Fast Eddie Buckle Data'!$D:$E,2,FALSE)) -> $4.00 | O4: =IFERROR(VLOOKUP(M4,'Go-In! & Fast Eddie Buckle Data'!G:H,2,FALSE),"#1") -> #1 | P4: =VLOOKUP(O4,'Go-In! & Fast Eddie Buckle Data'!D:E,2,FALSE) -> $4.00 | Q4: =MIN(N4,P4) -> $4.00
E5: =VLOOKUP(E4,'Order Form'!F93:G98,2,FALSE) -> 1
B6: Etched | C6: ColorPrint | L6: Polished Plate
B7: =IF('Order Form'!B58=$B$6,+'Order Form'!I58,0) -> 0 | C7: =IF('Order Form'!B58=$C$6,+'Order Form'!I58,0) -> 0 | L7: =IF('Order Form'!B58=$L$6,+'Order Form'!I58,0) -> 0
B8: =IF('Order Form'!B59=$B$6,+'Order Form'!I59,0) -> 0 | C8: =IF('Order Form'!B59=$C$6,+'Order Form'!I59,0) -> 0 | L8: =IF('Order Form'!B59=$L$6,+'Order Form'!I59,0) -> 0
B9: =IF('Order Form'!B60=$B$6,+'Order Form'!I60,0) -> 0 | C9: =IF('Order Form'!B60=$C$6,+'Order Form'!I60,0) -> 0 | L9: =IF('Order Form'!B60=$L$6,+'Order Form'!I60,0) -> 0
B10: =IF('Order Form'!B61=$B$6,+'Order Form'!I61,0) -> 0 | C10: =IF('Order Form'!B61=$C$6,+'Order Form'!I61,0) -> 0 | L10: =IF('Order Form'!B61=$L$6,+'Order Form'!I61,0) -> 0
B11: =IF('Order Form'!B62=$B$6,+'Order Form'!I62,0) -> 0 | C11: =IF('Order Form'!B62=$C$6,+'Order Form'!I62,0) -> 0 | L11: =IF('Order Form'!B62=$L$6,+'Order Form'!I62,0) -> 0
B12: =IF('Order Form'!B63=$B$6,+'Order Form'!I63,0) -> 0 | C12: =IF('Order Form'!B63=$C$6,+'Order Form'!I63,0) -> 0 | L12: =IF('Order Form'!B63=$L$6,+'Order Form'!I63,0) -> 0
B13: =IF('Order Form'!B64=$B$6,+'Order Form'!I64,0) -> 0 | C13: =IF('Order Form'!B64=$C$6,+'Order Form'!I64,0) -> 0 | L13: =IF('Order Form'!B64=$L$6,+'Order Form'!I64,0) -> 0
B14: =IF('Order Form'!B65=$B$6,+'Order Form'!I65,0) -> 0 | C14: =IF('Order Form'!B65=$C$6,+'Order Form'!I65,0) -> 0 | L14: =IF('Order Form'!B65=$L$6,+'Order Form'!I65,0) -> 0
B15: =IF('Order Form'!B66=$B$6,+'Order Form'!I66,0) -> 0 | C15: =IF('Order Form'!B66=$C$6,+'Order Form'!I66,0) -> 0 | L15: =IF('Order Form'!B66=$L$6,+'Order Form'!I66,0) -> 0
B16: =IF('Order Form'!B67=$B$6,+'Order Form'!I67,0) -> 0 | C16: =IF('Order Form'!B67=$C$6,+'Order Form'!I67,0) -> 0 | L16: =IF('Order Form'!B67=$L$6,+'Order Form'!I67,0) -> 0
B28: Fast Eddie
C29: QTY | D29: Grandfather Price | E29: Order Price Level | F29: Order Price | G29: Order Rate
C30: =SUM(B33:C42) -> 0 | D30: =IF(ISBLANK('Order Form'!$B$31),'Go-In! & Fast Eddie Buckle Data'!M8,VLOOKUP('Order Form'!$B$31,'Go-In! & Fast Eddie Buckle Data'!$L:$M,2,FALSE)) -> $6.50 | E30: =IFERROR(VLOOKUP(C30,'Go-In! & Fast Eddie Buckle Data'!G:H,2,FALSE),1) -> 1 | F30: =VLOOKUP(E30,'Go-In! & Fast Eddie Buckle Data'!L:M,2,FALSE) ->  | G30: =MIN(D30,F30) -> 
B32: Etched | C32: ColorPrint
B33: =IF('Order Form'!B58=$B$32,+'Order Form'!I58,0) -> 0 | C33: =IF('Order Form'!B58=$C$32,+'Order Form'!I58,0) -> 0
B34: =IF('Order Form'!B59=$B$32,+'Order Form'!I59,0) -> 0 | C34: =IF('Order Form'!B59=$C$32,+'Order Form'!I59,0) -> 0
B35: =IF('Order Form'!B60=$B$32,+'Order Form'!I60,0) -> 0 | C35: =IF('Order Form'!B60=$C$32,+'Order Form'!I60,0) -> 0
B36: =IF('Order Form'!B61=$B$32,+'Order Form'!I61,0) -> 0 | C36: =IF('Order Form'!B61=$C$32,+'Order Form'!I61,0) -> 0
B37: =IF('Order Form'!B62=$B$32,+'Order Form'!I62,0) -> 0 | C37: =IF('Order Form'!B62=$C$32,+'Order Form'!I62,0) -> 0
B38: =IF('Order Form'!B63=$B$32,+'Order Form'!I63,0) -> 0 | C38: =IF('Order Form'!B63=$C$32,+'Order Form'!I63,0) -> 0
B39: =IF('Order Form'!B64=$B$32,+'Order Form'!I64,0) -> 0 | C39: =IF('Order Form'!B64=$C$32,+'Order Form'!I64,0) -> 0
B40: =IF('Order Form'!B65=$B$32,+'Order Form'!I65,0) -> 0 | C40: =IF('Order Form'!B65=$C$32,+'Order Form'!I65,0) -> 0
B41: =IF('Order Form'!B66=$B$32,+'Order Form'!I66,0) -> 0 | C41: =IF('Order Form'!B66=$C$32,+'Order Form'!I66,0) -> 0
B42: =IF('Order Form'!B67=$B$32,+'Order Form'!I67,0) -> 0 | C42: =IF('Order Form'!B67=$C$32,+'Order Form'!I67,0) -> 0

Sheet Go-In! & Fast Eddie Buckle Data (hidden)
B3: Go-In! | J3: Fast Eddie
G5: Etched / Printed
B6: Price Levels | D6: Price Sumamry | G6: Price Level | J6: Price Levels | L6: Price Summary
B8: #1 | D8: #1 | E8: 4.00 | G8: 1 | H8: #1 | J8: #1 | L8: #1 | M8: 6.5
B9: #2 | D9: #2 | E9: 3.00 | G9: =+G8+1 -> 2 | H9: #1 | J9: #2 | L9: #2 | M9: 5.5
B10: #3 | D10: #3 | E10: 2.00 | G10: =+G9+1 -> 3 | H10: #1 | J10: #3 | L10: #3 | M10: 4.5
B11: #4 | D11: #4 | E11: 1.00 | G11: 4 | H11: #1 | J11: #4 | L11: #4 | M11: 3.5
B12: #5 | D12: #5 | E12: 1.00 | G12: 5 | H12: #1 | J12: #5 | L12: #5 | M12: 3.5
B13: #6 | D13: #6 | E13: 1.00 | G13: 6 | H13: #1 | J13: #6 | L13: #6 | M13: 3.5
G14: 7 | H14: #1
G15: 8 | H15: #1
G16: 9 | H16: #1
G17: 10 | H17: #1
G18: 11 | H18: #1
G19: 12 | H19: #1
G20: 13 | H20: #1
G21: 14 | H21: #1
G22: 15 | H22: #1
G23: 16 | H23: #1
G24: 17 | H24: #1
G25: 18 | H25: #1
G26: 19 | H26: #1
G27: 20 | H27: #1
G28: 21 | H28: #1
G29: 22 | H29: #1
G30: 23 | H30: #1
G31: 24 | H31: #2
G32: 25 | H32: #2
G33: 26 | H33: #2
G34: 27 | H34: #2
G35: 28 | H35: #2
G36: 29 | H36: #2
G37: 30 | H37: #2
G38: 31 | H38: #2
G39: 32 | H39: #2
G40: 33 | H40: #2
G41: 34 | H41: #2
G42: 35 | H42: #2
G43: 36 | H43: #2
G44: 37 | H44: #2
G45: 38 | H45: #2
G46: 39 | H46: #2
G47: 40 | H47: #2
G48: 41 | H48: #2
G49: 42 | H49: #2
G50: 43 | H50: #2
G51: 44 | H51: #2
G52: 45 | H52: #2
G53: 46 | H53: #2
G54: 47 | H54: #2
G55: 48 | H55: #2
G56: 49 | H56: #2
G57: 50 | H57: #2
G58: 51 | H58: #2
G59: 52 | H59: #2
G60: 53 | H60: #2
G61: 54 | H61: #2
G62: 55 | H62: #2
G63: 56 | H63: #2
G64: 57 | H64: #2
G65: 58 | H65: #2
G66: 59 | H66: #2
G67: 60 | H67: #2
G68: 61 | H68: #2
G69: 62 | H69: #2
G70: 63 | H70: #2
G71: 64 | H71: #2
G72: 65 | H72: #2
G73: 66 | H73: #2
G74: =+G73+1 -> 67 | H74: #2
G75: 68 | H75: #2
G76: 69 | H76: #2
G77: 70 | H77: #2
G78: 71 | H78: #2
G79: 72 | H79: #2
G80: 73 | H80: #2
G81: 74 | H81: #2
G82: 75 | H82: #2
G83: 76 | H83: #2
G84: 77 | H84: #2
G85: 78 | H85: #2
G86: 79 | H86: #2
G87: 80 | H87: #2
G88: 81 | H88: #2
G89: 82 | H89: #2
G90: 83 | H90: #2
G91: 84 | H91: #2
G92: 85 | H92: #2
G93: 86 | H93: #2
G94: 87 | H94: #2
G95: 88 | H95: #2
G96: 89 | H96: #2
G97: 90 | H97: #2
G98: 91 | H98: #2
G99: 92 | H99: #2
G100: 93 | H100: #2
G101: 94 | H101: #2
G102: 95 | H102: #2
G103: 96 | H103: #2
G104: 97 | H104: #2
G105: 98 | H105: #2
G106: 99 | H106: #2
G107: 100 | H107: #3
G108: 101 | H108: #3
G109: 102 | H109: #3
G110: 103 | H110: #3
G111: 104 | H111: #3
G112: 105 | H112: #3
G113: 106 | H113: #3
G114: 107 | H114: #3
G115: 108 | H115: #3
G116: 109 | H116: #3
G117: 110 | H117: #3
G118: 111 | H118: #3
G119: 112 | H119: #3
G120: 113 | H120: #3
G121: 114 | H121: #3
G122: 115 | H122: #3
G123: 116 | H123: #3
G124: 117 | H124: #3
G125: 118 | H125: #3
G126: 119 | H126: #3
G127: 120 | H127: #3
G128: 121 | H128: #3
G129: 122 | H129: #3
G130: 123 | H130: #3
G131: 124 | H131: #3
G132: 125 | H132: #3
G133: 126 | H133: #3
G134: 127 | H134: #3
G135: 128 | H135: #3
G136: 129 | H136: #3
G137: 130 | H137: #3
G138: =+G137+1 -> 131 | H138: #3
G139: 132 | H139: #3
G140: 133 | H140: #3
G141: 134 | H141: #3
G142: 135 | H142: #3
G143: 136 | H143: #3
G144: 137 | H144: #3
G145: 138 | H145: #3
G146: 139 | H146: #3
G147: 140 | H147: #3
G148: 141 | H148: #3
G149: 142 | H149: #3
G150: 143 | H150: #3
G151: 144 | H151: #3
G152: 145 | H152: #3
G153: 146 | H153: #3
G154: 147 | H154: #3
G155: 148 | H155: #3
G156: 149 | H156: #3
G157: 150 | H157: #3
G158: 151 | H158: #3
G159: 152 | H159: #3
G160: 153 | H160: #3
G161: 154 | H161: #3
G162: 155 | H162: #3
G163: 156 | H163: #3
G164: 157 | H164: #3
G165: 158 | H165: #3
G166: 159 | H166: #3
G167: 160 | H167: #3
G168: 161 | H168: #3
G169: 162 | H169: #3
G170: 163 | H170: #3
G171: 164 | H171: #3
G172: 165 | H172: #3
G173: 166 | H173: #3
G174: 167 | H174: #3
G175: 168 | H175: #3
G176: 169 | H176: #3
G177: 170 | H177: #3
G178: 171 | H178: #3
G179: 172 | H179: #3
G180: 173 | H180: #3
G181: 174 | H181: #3
G182: 175 | H182: #3
G183: 176 | H183: #3
G184: 177 | H184: #3
G185: 178 | H185: #3
G186: 179 | H186: #3
G187: 180 | H187: #3
G188: 181 | H188: #3
G189: 182 | H189: #3
G190: 183 | H190: #3
G191: 184 | H191: #3
G192: 185 | H192: #3
G193: 186 | H193: #3
G194: 187 | H194: #3
G195: 188 | H195: #3
G196: 189 | H196: #3
G197: 190 | H197: #3
G198: 191 | H198: #3
G199: 192 | H199: #3
G200: 193 | H200: #3
G201: 194 | H201: #3
G202: =+G201+1 -> 195 | H202: #3
G203: 196 | H203: #3
G204: 197 | H204: #3
... 302 more rows
